Workbook

Sheet Latitude en longitude
B1: Oud coordinaten systeem (zoals uit google) | E1: Juiste coordinaten systeem voor zwerfafval.incijfers.nl - kopiëren en plakken naar SUF (plakken van waarden)
A2: Vooraf ingevuld | B2: Invullen door gemeente | C2: Invullen door gemeente | E2: Automatisch gegenereerd | F2: Automatisch gegenereerd
A3: Meetlocatienummer | B3: Latitude - Y (vaak xx,xxxxxxx) | C3: Longitude - X (vaak x,xxxxxx) | E3: X | F3: Y
A4: 1 | E4: =155000+SUM({190094.945,-11832.228,-144.221,-32.391,-0.705,-2.34,-0.608,-0.008,0.148}*(0.36*(B4-52.1551744))^{0,1,2,0,1,3,1,0,2}*(0.36*(C4-5.38720621))^{1,1,1,3,0,1,3,2,3}) -> -576174.5704 | F4: =463000+SUM({309056.544,3638.893,73.077,-157.984,59.788,0.433,-6.439,-0.032,0.092,-0.054}*(0.36*(B4-52.1551744))^{1,0,2,1,3,0,2,1,0,1}*(0.36*(C4-5.38720621))^{0,2,0,2,0,1,2,1,4,4}) -> -5693465.174
A5: 2 | E5: =155000+SUM({190094.945,-11832.228,-144.221,-32.391,-0.705,-2.34,-0.608,-0.008,0.148}*(0.36*(B5-52.1551744))^{0,1,2,0,1,3,1,0,2}*(0.36*(C5-5.38720621))^{1,1,1,3,0,1,3,2,3}) -> -576174.5704 | F5: =463000+SUM({309056.544,3638.893,73.077,-157.984,59.788,0.433,-6.439,-0.032,0.092,-0.054}*(0.36*(B5-52.1551744))^{1,0,2,1,3,0,2,1,0,1}*(0.36*(C5-5.38720621))^{0,2,0,2,0,1,2,1,4,4}) -> -5693465.174
A6: 3 | E6: =155000+SUM({190094.945,-11832.228,-144.221,-32.391,-0.705,-2.34,-0.608,-0.008,0.148}*(0.36*(B6-52.1551744))^{0,1,2,0,1,3,1,0,2}*(0.36*(C6-5.38720621))^{1,1,1,3,0,1,3,2,3}) -> -576174.5704 | F6: =463000+SUM({309056.544,3638.893,73.077,-157.984,59.788,0.433,-6.439,-0.032,0.092,-0.054}*(0.36*(B6-52.1551744))^{1,0,2,1,3,0,2,1,0,1}*(0.36*(C6-5.38720621))^{0,2,0,2,0,1,2,1,4,4}) -> -5693465.174
A7: 4 | E7: =155000+SUM({190094.945,-11832.228,-144.221,-32.391,-0.705,-2.34,-0.608,-0.008,0.148}*(0.36*(B7-52.1551744))^{0,1,2,0,1,3,1,0,2}*(0.36*(C7-5.38720621))^{1,1,1,3,0,1,3,2,3}) -> -576174.5704 | F7: =463000+SUM({309056.544,3638.893,73.077,-157.984,59.788,0.433,-6.439,-0.032,0.092,-0.054}*(0.36*(B7-52.1551744))^{1,0,2,1,3,0,2,1,0,1}*(0.36*(C7-5.38720621))^{0,2,0,2,0,1,2,1,4,4}) -> -5693465.174
A8: 5 | E8: =155000+SUM({190094.945,-11832.228,-144.221,-32.391,-0.705,-2.34,-0.608,-0.008,0.148}*(0.36*(B8-52.1551744))^{0,1,2,0,1,3,1,0,2}*(0.36*(C8-5.38720621))^{1,1,1,3,0,1,3,2,3}) -> -576174.5704 | F8: =463000+SUM({309056.544,3638.893,73.077,-157.984,59.788,0.433,-6.439,-0.032,0.092,-0.054}*(0.36*(B8-52.1551744))^{1,0,2,1,3,0,2,1,0,1}*(0.36*(C8-5.38720621))^{0,2,0,2,0,1,2,1,4,4}) -> -5693465.174
A9: 6 | E9: =155000+SUM({190094.945,-11832.228,-144.221,-32.391,-0.705,-2.34,-0.608,-0.008,0.148}*(0.36*(B9-52.1551744))^{0,1,2,0,1,3,1,0,2}*(0.36*(C9-5.38720621))^{1,1,1,3,0,1,3,2,3}) -> -576174.5704 | F9: =463000+SUM({309056.544,3638.893,73.077,-157.984,59.788,0.433,-6.439,-0.032,0.092,-0.054}*(0.36*(B9-52.1551744))^{1,0,2,1,3,0,2,1,0,1}*(0.36*(C9-5.38720621))^{0,2,0,2,0,1,2,1,4,4}) -> -5693465.174
A10: 7 | E10: =155000+SUM({190094.945,-11832.228,-144.221,-32.391,-0.705,-2.34,-0.608,-0.008,0.148}*(0.36*(B10-52.1551744))^{0,1,2,0,1,3,1,0,2}*(0.36*(C10-5.38720621))^{1,1,1,3,0,1,3,2,3}) -> -576174.5704 | F10: =463000+SUM({309056.544,3638.893,73.077,-157.984,59.788,0.433,-6.439,-0.032,0.092,-0.054}*(0.36*(B10-52.1551744))^{1,0,2,1,3,0,2,1,0,1}*(0.36*(C10-5.38720621))^{0,2,0,2,0,1,2,1,4,4}) -> -5693465.174
A11: 8 | E11: =155000+SUM({190094.945,-11832.228,-144.221,-32.391,-0.705,-2.34,-0.608,-0.008,0.148}*(0.36*(B11-52.1551744))^{0,1,2,0,1,3,1,0,2}*(0.36*(C11-5.38720621))^{1,1,1,3,0,1,3,2,3}) -> -576174.5704 | F11: =463000+SUM({309056.544,3638.893,73.077,-157.984,59.788,0.433,-6.439,-0.032,0.092,-0.054}*(0.36*(B11-52.1551744))^{1,0,2,1,3,0,2,1,0,1}*(0.36*(C11-5.38720621))^{0,2,0,2,0,1,2,1,4,4}) -> -5693465.174
A12: 9 | E12: =155000+SUM({190094.945,-11832.228,-144.221,-32.391,-0.705,-2.34,-0.608,-0.008,0.148}*(0.36*(B12-52.1551744))^{0,1,2,0,1,3,1,0,2}*(0.36*(C12-5.38720621))^{1,1,1,3,0,1,3,2,3}) -> -576174.5704 | F12: =463000+SUM({309056.544,3638.893,73.077,-157.984,59.788,0.433,-6.439,-0.032,0.092,-0.054}*(0.36*(B12-52.1551744))^{1,0,2,1,3,0,2,1,0,1}*(0.36*(C12-5.38720621))^{0,2,0,2,0,1,2,1,4,4}) -> -5693465.174
A13: 10 | E13: =155000+SUM({190094.945,-11832.228,-144.221,-32.391,-0.705,-2.34,-0.608,-0.008,0.148}*(0.36*(B13-52.1551744))^{0,1,2,0,1,3,1,0,2}*(0.36*(C13-5.38720621))^{1,1,1,3,0,1,3,2,3}) -> -576174.5704 | F13: =463000+SUM({309056.544,3638.893,73.077,-157.984,59.788,0.433,-6.439,-0.032,0.092,-0.054}*(0.36*(B13-52.1551744))^{1,0,2,1,3,0,2,1,0,1}*(0.36*(C13-5.38720621))^{0,2,0,2,0,1,2,1,4,4}) -> -5693465.174
A14: 11 | E14: =155000+SUM({190094.945,-11832.228,-144.221,-32.391,-0.705,-2.34,-0.608,-0.008,0.148}*(0.36*(B14-52.1551744))^{0,1,2,0,1,3,1,0,2}*(0.36*(C14-5.38720621))^{1,1,1,3,0,1,3,2,3}) -> -576174.5704 | F14: =463000+SUM({309056.544,3638.893,73.077,-157.984,59.788,0.433,-6.439,-0.032,0.092,-0.054}*(0.36*(B14-52.1551744))^{1,0,2,1,3,0,2,1,0,1}*(0.36*(C14-5.38720621))^{0,2,0,2,0,1,2,1,4,4}) -> -5693465.174
A15: 12 | E15: =155000+SUM({190094.945,-11832.228,-144.221,-32.391,-0.705,-2.34,-0.608,-0.008,0.148}*(0.36*(B15-52.1551744))^{0,1,2,0,1,3,1,0,2}*(0.36*(C15-5.38720621))^{1,1,1,3,0,1,3,2,3}) -> -576174.5704 | F15: =463000+SUM({309056.544,3638.893,73.077,-157.984,59.788,0.433,-6.439,-0.032,0.092,-0.054}*(0.36*(B15-52.1551744))^{1,0,2,1,3,0,2,1,0,1}*(0.36*(C15-5.38720621))^{0,2,0,2,0,1,2,1,4,4}) -> -5693465.174
A16: 13 | E16: =155000+SUM({190094.945,-11832.228,-144.221,-32.391,-0.705,-2.34,-0.608,-0.008,0.148}*(0.36*(B16-52.1551744))^{0,1,2,0,1,3,1,0,2}*(0.36*(C16-5.38720621))^{1,1,1,3,0,1,3,2,3}) -> -576174.5704 | F16: =463000+SUM({309056.544,3638.893,73.077,-157.984,59.788,0.433,-6.439,-0.032,0.092,-0.054}*(0.36*(B16-52.1551744))^{1,0,2,1,3,0,2,1,0,1}*(0.36*(C16-5.38720621))^{0,2,0,2,0,1,2,1,4,4}) -> -5693465.174
A17: 14 | E17: =155000+SUM({190094.945,-11832.228,-144.221,-32.391,-0.705,-2.34,-0.608,-0.008,0.148}*(0.36*(B17-52.1551744))^{0,1,2,0,1,3,1,0,2}*(0.36*(C17-5.38720621))^{1,1,1,3,0,1,3,2,3}) -> -576174.5704 | F17: =463000+SUM({309056.544,3638.893,73.077,-157.984,59.788,0.433,-6.439,-0.032,0.092,-0.054}*(0.36*(B17-52.1551744))^{1,0,2,1,3,0,2,1,0,1}*(0.36*(C17-5.38720621))^{0,2,0,2,0,1,2,1,4,4}) -> -5693465.174
A18: 15 | E18: =155000+SUM({190094.945,-11832.228,-144.221,-32.391,-0.705,-2.34,-0.608,-0.008,0.148}*(0.36*(B18-52.1551744))^{0,1,2,0,1,3,1,0,2}*(0.36*(C18-5.38720621))^{1,1,1,3,0,1,3,2,3}) -> -576174.5704 | F18: =463000+SUM({309056.544,3638.893,73.077,-157.984,59.788,0.433,-6.439,-0.032,0.092,-0.054}*(0.36*(B18-52.1551744))^{1,0,2,1,3,0,2,1,0,1}*(0.36*(C18-5.38720621))^{0,2,0,2,0,1,2,1,4,4}) -> -5693465.174
A19: 16 | E19: =155000+SUM({190094.945,-11832.228,-144.221,-32.391,-0.705,-2.34,-0.608,-0.008,0.148}*(0.36*(B19-52.1551744))^{0,1,2,0,1,3,1,0,2}*(0.36*(C19-5.38720621))^{1,1,1,3,0,1,3,2,3}) -> -576174.5704 | F19: =463000+SUM({309056.544,3638.893,73.077,-157.984,59.788,0.433,-6.439,-0.032,0.092,-0.054}*(0.36*(B19-52.1551744))^{1,0,2,1,3,0,2,1,0,1}*(0.36*(C19-5.38720621))^{0,2,0,2,0,1,2,1,4,4}) -> -5693465.174
A20: 17 | E20: =155000+SUM({190094.945,-11832.228,-144.221,-32.391,-0.705,-2.34,-0.608,-0.008,0.148}*(0.36*(B20-52.1551744))^{0,1,2,0,1,3,1,0,2}*(0.36*(C20-5.38720621))^{1,1,1,3,0,1,3,2,3}) -> -576174.5704 | F20: =463000+SUM({309056.544,3638.893,73.077,-157.984,59.788,0.433,-6.439,-0.032,0.092,-0.054}*(0.36*(B20-52.1551744))^{1,0,2,1,3,0,2,1,0,1}*(0.36*(C20-5.38720621))^{0,2,0,2,0,1,2,1,4,4}) -> -5693465.174
A21: 18 | E21: =155000+SUM({190094.945,-11832.228,-144.221,-32.391,-0.705,-2.34,-0.608,-0.008,0.148}*(0.36*(B21-52.1551744))^{0,1,2,0,1,3,1,0,2}*(0.36*(C21-5.38720621))^{1,1,1,3,0,1,3,2,3}) -> -576174.5704 | F21: =463000+SUM({309056.544,3638.893,73.077,-157.984,59.788,0.433,-6.439,-0.032,0.092,-0.054}*(0.36*(B21-52.1551744))^{1,0,2,1,3,0,2,1,0,1}*(0.36*(C21-5.38720621))^{0,2,0,2,0,1,2,1,4,4}) -> -5693465.174
A22: 19 | E22: =155000+SUM({190094.945,-11832.228,-144.221,-32.391,-0.705,-2.34,-0.608,-0.008,0.148}*(0.36*(B22-52.1551744))^{0,1,2,0,1,3,1,0,2}*(0.36*(C22-5.38720621))^{1,1,1,3,0,1,3,2,3}) -> -576174.5704 | F22: =463000+SUM({309056.544,3638.893,73.077,-157.984,59.788,0.433,-6.439,-0.032,0.092,-0.054}*(0.36*(B22-52.1551744))^{1,0,2,1,3,0,2,1,0,1}*(0.36*(C22-5.38720621))^{0,2,0,2,0,1,2,1,4,4}) -> -5693465.174
A23: 20 | E23: =155000+SUM({190094.945,-11832.228,-144.221,-32.391,-0.705,-2.34,-0.608,-0.008,0.148}*(0.36*(B23-52.1551744))^{0,1,2,0,1,3,1,0,2}*(0.36*(C23-5.38720621))^{1,1,1,3,0,1,3,2,3}) -> -576174.5704 | F23: =463000+SUM({309056.544,3638.893,73.077,-157.984,59.788,0.433,-6.439,-0.032,0.092,-0.054}*(0.36*(B23-52.1551744))^{1,0,2,1,3,0,2,1,0,1}*(0.36*(C23-5.38720621))^{0,2,0,2,0,1,2,1,4,4}) -> -5693465.174
A24: 21 | E24: =155000+SUM({190094.945,-11832.228,-144.221,-32.391,-0.705,-2.34,-0.608,-0.008,0.148}*(0.36*(B24-52.1551744))^{0,1,2,0,1,3,1,0,2}*(0.36*(C24-5.38720621))^{1,1,1,3,0,1,3,2,3}) -> -576174.5704 | F24: =463000+SUM({309056.544,3638.893,73.077,-157.984,59.788,0.433,-6.439,-0.032,0.092,-0.054}*(0.36*(B24-52.1551744))^{1,0,2,1,3,0,2,1,0,1}*(0.36*(C24-5.38720621))^{0,2,0,2,0,1,2,1,4,4}) -> -5693465.174
A25: 22 | E25: =155000+SUM({190094.945,-11832.228,-144.221,-32.391,-0.705,-2.34,-0.608,-0.008,0.148}*(0.36*(B25-52.1551744))^{0,1,2,0,1,3,1,0,2}*(0.36*(C25-5.38720621))^{1,1,1,3,0,1,3,2,3}) -> -576174.5704 | F25: =463000+SUM({309056.544,3638.893,73.077,-157.984,59.788,0.433,-6.439,-0.032,0.092,-0.054}*(0.36*(B25-52.1551744))^{1,0,2,1,3,0,2,1,0,1}*(0.36*(C25-5.38720621))^{0,2,0,2,0,1,2,1,4,4}) -> -5693465.174
A26: 23 | E26: =155000+SUM({190094.945,-11832.228,-144.221,-32.391,-0.705,-2.34,-0.608,-0.008,0.148}*(0.36*(B26-52.1551744))^{0,1,2,0,1,3,1,0,2}*(0.36*(C26-5.38720621))^{1,1,1,3,0,1,3,2,3}) -> -576174.5704 | F26: =463000+SUM({309056.544,3638.893,73.077,-157.984,59.788,0.433,-6.439,-0.032,0.092,-0.054}*(0.36*(B26-52.1551744))^{1,0,2,1,3,0,2,1,0,1}*(0.36*(C26-5.38720621))^{0,2,0,2,0,1,2,1,4,4}) -> -5693465.174
A27: 24 | E27: =155000+SUM({190094.945,-11832.228,-144.221,-32.391,-0.705,-2.34,-0.608,-0.008,0.148}*(0.36*(B27-52.1551744))^{0,1,2,0,1,3,1,0,2}*(0.36*(C27-5.38720621))^{1,1,1,3,0,1,3,2,3}) -> -576174.5704 | F27: =463000+SUM({309056.544,3638.893,73.077,-157.984,59.788,0.433,-6.439,-0.032,0.092,-0.054}*(0.36*(B27-52.1551744))^{1,0,2,1,3,0,2,1,0,1}*(0.36*(C27-5.38720621))^{0,2,0,2,0,1,2,1,4,4}) -> -5693465.174
A28: 25 | E28: =155000+SUM({190094.945,-11832.228,-144.221,-32.391,-0.705,-2.34,-0.608,-0.008,0.148}*(0.36*(B28-52.1551744))^{0,1,2,0,1,3,1,0,2}*(0.36*(C28-5.38720621))^{1,1,1,3,0,1,3,2,3}) -> -576174.5704 | F28: =463000+SUM({309056.544,3638.893,73.077,-157.984,59.788,0.433,-6.439,-0.032,0.092,-0.054}*(0.36*(B28-52.1551744))^{1,0,2,1,3,0,2,1,0,1}*(0.36*(C28-5.38720621))^{0,2,0,2,0,1,2,1,4,4}) -> -5693465.174
A29: 26 | E29: =155000+SUM({190094.945,-11832.228,-144.221,-32.391,-0.705,-2.34,-0.608,-0.008,0.148}*(0.36*(B29-52.1551744))^{0,1,2,0,1,3,1,0,2}*(0.36*(C29-5.38720621))^{1,1,1,3,0,1,3,2,3}) -> -576174.5704 | F29: =463000+SUM({309056.544,3638.893,73.077,-157.984,59.788,0.433,-6.439,-0.032,0.092,-0.054}*(0.36*(B29-52.1551744))^{1,0,2,1,3,0,2,1,0,1}*(0.36*(C29-5.38720621))^{0,2,0,2,0,1,2,1,4,4}) -> -5693465.174
A30: 27 | E30: =155000+SUM({190094.945,-11832.228,-144.221,-32.391,-0.705,-2.34,-0.608,-0.008,0.148}*(0.36*(B30-52.1551744))^{0,1,2,0,1,3,1,0,2}*(0.36*(C30-5.38720621))^{1,1,1,3,0,1,3,2,3}) -> -576174.5704 | F30: =463000+SUM({309056.544,3638.893,73.077,-157.984,59.788,0.433,-6.439,-0.032,0.092,-0.054}*(0.36*(B30-52.1551744))^{1,0,2,1,3,0,2,1,0,1}*(0.36*(C30-5.38720621))^{0,2,0,2,0,1,2,1,4,4}) -> -5693465.174
A31: 28 | E31: =155000+SUM({190094.945,-11832.228,-144.221,-32.391,-0.705,-2.34,-0.608,-0.008,0.148}*(0.36*(B31-52.1551744))^{0,1,2,0,1,3,1,0,2}*(0.36*(C31-5.38720621))^{1,1,1,3,0,1,3,2,3}) -> -576174.5704 | F31: =463000+SUM({309056.544,3638.893,73.077,-157.984,59.788,0.433,-6.439,-0.032,0.092,-0.054}*(0.36*(B31-52.1551744))^{1,0,2,1,3,0,2,1,0,1}*(0.36*(C31-5.38720621))^{0,2,0,2,0,1,2,1,4,4}) -> -5693465.174
A32: 29 | E32: =155000+SUM({190094.945,-11832.228,-144.221,-32.391,-0.705,-2.34,-0.608,-0.008,0.148}*(0.36*(B32-52.1551744))^{0,1,2,0,1,3,1,0,2}*(0.36*(C32-5.38720621))^{1,1,1,3,0,1,3,2,3}) -> -576174.5704 | F32: =463000+SUM({309056.544,3638.893,73.077,-157.984,59.788,0.433,-6.439,-0.032,0.092,-0.054}*(0.36*(B32-52.1551744))^{1,0,2,1,3,0,2,1,0,1}*(0.36*(C32-5.38720621))^{0,2,0,2,0,1,2,1,4,4}) -> -5693465.174
A33: 30 | E33: =155000+SUM({190094.945,-11832.228,-144.221,-32.391,-0.705,-2.34,-0.608,-0.008,0.148}*(0.36*(B33-52.1551744))^{0,1,2,0,1,3,1,0,2}*(0.36*(C33-5.38720621))^{1,1,1,3,0,1,3,2,3}) -> -576174.5704 | F33: =463000+SUM({309056.544,3638.893,73.077,-157.984,59.788,0.433,-6.439,-0.032,0.092,-0.054}*(0.36*(B33-52.1551744))^{1,0,2,1,3,0,2,1,0,1}*(0.36*(C33-5.38720621))^{0,2,0,2,0,1,2,1,4,4}) -> -5693465.174
A34: 31 | E34: =155000+SUM({190094.945,-11832.228,-144.221,-32.391,-0.705,-2.34,-0.608,-0.008,0.148}*(0.36*(B34-52.1551744))^{0,1,2,0,1,3,1,0,2}*(0.36*(C34-5.38720621))^{1,1,1,3,0,1,3,2,3}) -> -576174.5704 | F34: =463000+SUM({309056.544,3638.893,73.077,-157.984,59.788,0.433,-6.439,-0.032,0.092,-0.054}*(0.36*(B34-52.1551744))^{1,0,2,1,3,0,2,1,0,1}*(0.36*(C34-5.38720621))^{0,2,0,2,0,1,2,1,4,4}) -> -5693465.174
A35: 32 | E35: =155000+SUM({190094.945,-11832.228,-144.221,-32.391,-0.705,-2.34,-0.608,-0.008,0.148}*(0.36*(B35-52.1551744))^{0,1,2,0,1,3,1,0,2}*(0.36*(C35-5.38720621))^{1,1,1,3,0,1,3,2,3}) -> -576174.5704 | F35: =463000+SUM({309056.544,3638.893,73.077,-157.984,59.788,0.433,-6.439,-0.032,0.092,-0.054}*(0.36*(B35-52.1551744))^{1,0,2,1,3,0,2,1,0,1}*(0.36*(C35-5.38720621))^{0,2,0,2,0,1,2,1,4,4}) -> -5693465.174
A36: 33 | E36: =155000+SUM({190094.945,-11832.228,-144.221,-32.391,-0.705,-2.34,-0.608,-0.008,0.148}*(0.36*(B36-52.1551744))^{0,1,2,0,1,3,1,0,2}*(0.36*(C36-5.38720621))^{1,1,1,3,0,1,3,2,3}) -> -576174.5704 | F36: =463000+SUM({309056.544,3638.893,73.077,-157.984,59.788,0.433,-6.439,-0.032,0.092,-0.054}*(0.36*(B36-52.1551744))^{1,0,2,1,3,0,2,1,0,1}*(0.36*(C36-5.38720621))^{0,2,0,2,0,1,2,1,4,4}) -> -5693465.174
A37: 34 | E37: =155000+SUM({190094.945,-11832.228,-144.221,-32.391,-0.705,-2.34,-0.608,-0.008,0.148}*(0.36*(B37-52.1551744))^{0,1,2,0,1,3,1,0,2}*(0.36*(C37-5.38720621))^{1,1,1,3,0,1,3,2,3}) -> -576174.5704 | F37: =463000+SUM({309056.544,3638.893,73.077,-157.984,59.788,0.433,-6.439,-0.032,0.092,-0.054}*(0.36*(B37-52.1551744))^{1,0,2,1,3,0,2,1,0,1}*(0.36*(C37-5.38720621))^{0,2,0,2,0,1,2,1,4,4}) -> -5693465.174
A38: 35 | E38: =155000+SUM({190094.945,-11832.228,-144.221,-32.391,-0.705,-2.34,-0.608,-0.008,0.148}*(0.36*(B38-52.1551744))^{0,1,2,0,1,3,1,0,2}*(0.36*(C38-5.38720621))^{1,1,1,3,0,1,3,2,3}) -> -576174.5704 | F38: =463000+SUM({309056.544,3638.893,73.077,-157.984,59.788,0.433,-6.439,-0.032,0.092,-0.054}*(0.36*(B38-52.1551744))^{1,0,2,1,3,0,2,1,0,1}*(0.36*(C38-5.38720621))^{0,2,0,2,0,1,2,1,4,4}) -> -5693465.174
A39: 36 | E39: =155000+SUM({190094.945,-11832.228,-144.221,-32.391,-0.705,-2.34,-0.608,-0.008,0.148}*(0.36*(B39-52.1551744))^{0,1,2,0,1,3,1,0,2}*(0.36*(C39-5.38720621))^{1,1,1,3,0,1,3,2,3}) -> -576174.5704 | F39: =463000+SUM({309056.544,3638.893,73.077,-157.984,59.788,0.433,-6.439,-0.032,0.092,-0.054}*(0.36*(B39-52.1551744))^{1,0,2,1,3,0,2,1,0,1}*(0.36*(C39-5.38720621))^{0,2,0,2,0,1,2,1,4,4}) -> -5693465.174
A40: 37 | E40: =155000+SUM({190094.945,-11832.228,-144.221,-32.391,-0.705,-2.34,-0.608,-0.008,0.148}*(0.36*(B40-52.1551744))^{0,1,2,0,1,3,1,0,2}*(0.36*(C40-5.38720621))^{1,1,1,3,0,1,3,2,3}) -> -576174.5704 | F40: =463000+SUM({309056.544,3638.893,73.077,-157.984,59.788,0.433,-6.439,-0.032,0.092,-0.054}*(0.36*(B40-52.1551744))^{1,0,2,1,3,0,2,1,0,1}*(0.36*(C40-5.38720621))^{0,2,0,2,0,1,2,1,4,4}) -> -5693465.174
A41: 38 | E41: =155000+SUM({190094.945,-11832.228,-144.221,-32.391,-0.705,-2.34,-0.608,-0.008,0.148}*(0.36*(B41-52.1551744))^{0,1,2,0,1,3,1,0,2}*(0.36*(C41-5.38720621))^{1,1,1,3,0,1,3,2,3}) -> -576174.5704 | F41: =463000+SUM({309056.544,3638.893,73.077,-157.984,59.788,0.433,-6.439,-0.032,0.092,-0.054}*(0.36*(B41-52.1551744))^{1,0,2,1,3,0,2,1,0,1}*(0.36*(C41-5.38720621))^{0,2,0,2,0,1,2,1,4,4}) -> -5693465.174
A42: 39 | E42: =155000+SUM({190094.945,-11832.228,-144.221,-32.391,-0.705,-2.34,-0.608,-0.008,0.148}*(0.36*(B42-52.1551744))^{0,1,2,0,1,3,1,0,2}*(0.36*(C42-5.38720621))^{1,1,1,3,0,1,3,2,3}) -> -576174.5704 | F42: =463000+SUM({309056.544,3638.893,73.077,-157.984,59.788,0.433,-6.439,-0.032,0.092,-0.054}*(0.36*(B42-52.1551744))^{1,0,2,1,3,0,2,1,0,1}*(0.36*(C42-5.38720621))^{0,2,0,2,0,1,2,1,4,4}) -> -5693465.174
A43: 40 | E43: =155000+SUM({190094.945,-11832.228,-144.221,-32.391,-0.705,-2.34,-0.608,-0.008,0.148}*(0.36*(B43-52.1551744))^{0,1,2,0,1,3,1,0,2}*(0.36*(C43-5.38720621))^{1,1,1,3,0,1,3,2,3}) -> -576174.5704 | F43: =463000+SUM({309056.544,3638.893,73.077,-157.984,59.788,0.433,-6.439,-0.032,0.092,-0.054}*(0.36*(B43-52.1551744))^{1,0,2,1,3,0,2,1,0,1}*(0.36*(C43-5.38720621))^{0,2,0,2,0,1,2,1,4,4}) -> -5693465.174
A44: 41 | E44: =155000+SUM({190094.945,-11832.228,-144.221,-32.391,-0.705,-2.34,-0.608,-0.008,0.148}*(0.36*(B44-52.1551744))^{0,1,2,0,1,3,1,0,2}*(0.36*(C44-5.38720621))^{1,1,1,3,0,1,3,2,3}) -> -576174.5704 | F44: =463000+SUM({309056.544,3638.893,73.077,-157.984,59.788,0.433,-6.439,-0.032,0.092,-0.054}*(0.36*(B44-52.1551744))^{1,0,2,1,3,0,2,1,0,1}*(0.36*(C44-5.38720621))^{0,2,0,2,0,1,2,1,4,4}) -> -5693465.174
A45: 42 | E45: =155000+SUM({190094.945,-11832.228,-144.221,-32.391,-0.705,-2.34,-0.608,-0.008,0.148}*(0.36*(B45-52.1551744))^{0,1,2,0,1,3,1,0,2}*(0.36*(C45-5.38720621))^{1,1,1,3,0,1,3,2,3}) -> -576174.5704 | F45: =463000+SUM({309056.544,3638.893,73.077,-157.984,59.788,0.433,-6.439,-0.032,0.092,-0.054}*(0.36*(B45-52.1551744))^{1,0,2,1,3,0,2,1,0,1}*(0.36*(C45-5.38720621))^{0,2,0,2,0,1,2,1,4,4}) -> -5693465.174
A46: 43 | E46: =155000+SUM({190094.945,-11832.228,-144.221,-32.391,-0.705,-2.34,-0.608,-0.008,0.148}*(0.36*(B46-52.1551744))^{0,1,2,0,1,3,1,0,2}*(0.36*(C46-5.38720621))^{1,1,1,3,0,1,3,2,3}) -> -576174.5704 | F46: =463000+SUM({309056.544,3638.893,73.077,-157.984,59.788,0.433,-6.439,-0.032,0.092,-0.054}*(0.36*(B46-52.1551744))^{1,0,2,1,3,0,2,1,0,1}*(0.36*(C46-5.38720621))^{0,2,0,2,0,1,2,1,4,4}) -> -5693465.174
A47: 44 | E47: =155000+SUM({190094.945,-11832.228,-144.221,-32.391,-0.705,-2.34,-0.608,-0.008,0.148}*(0.36*(B47-52.1551744))^{0,1,2,0,1,3,1,0,2}*(0.36*(C47-5.38720621))^{1,1,1,3,0,1,3,2,3}) -> -576174.5704 | F47: =463000+SUM({309056.544,3638.893,73.077,-157.984,59.788,0.433,-6.439,-0.032,0.092,-0.054}*(0.36*(B47-52.1551744))^{1,0,2,1,3,0,2,1,0,1}*(0.36*(C47-5.38720621))^{0,2,0,2,0,1,2,1,4,4}) -> -5693465.174
A48: 45 | E48: =155000+SUM({190094.945,-11832.228,-144.221,-32.391,-0.705,-2.34,-0.608,-0.008,0.148}*(0.36*(B48-52.1551744))^{0,1,2,0,1,3,1,0,2}*(0.36*(C48-5.38720621))^{1,1,1,3,0,1,3,2,3}) -> -576174.5704 | F48: =463000+SUM({309056.544,3638.893,73.077,-157.984,59.788,0.433,-6.439,-0.032,0.092,-0.054}*(0.36*(B48-52.1551744))^{1,0,2,1,3,0,2,1,0,1}*(0.36*(C48-5.38720621))^{0,2,0,2,0,1,2,1,4,4}) -> -5693465.174
A49: 46 | E49: =155000+SUM({190094.945,-11832.228,-144.221,-32.391,-0.705,-2.34,-0.608,-0.008,0.148}*(0.36*(B49-52.1551744))^{0,1,2,0,1,3,1,0,2}*(0.36*(C49-5.38720621))^{1,1,1,3,0,1,3,2,3}) -> -576174.5704 | F49: =463000+SUM({309056.544,3638.893,73.077,-157.984,59.788,0.433,-6.439,-0.032,0.092,-0.054}*(0.36*(B49-52.1551744))^{1,0,2,1,3,0,2,1,0,1}*(0.36*(C49-5.38720621))^{0,2,0,2,0,1,2,1,4,4}) -> -5693465.174
A50: 47 | E50: =155000+SUM({190094.945,-11832.228,-144.221,-32.391,-0.705,-2.34,-0.608,-0.008,0.148}*(0.36*(B50-52.1551744))^{0,1,2,0,1,3,1,0,2}*(0.36*(C50-5.38720621))^{1,1,1,3,0,1,3,2,3}) -> -576174.5704 | F50: =463000+SUM({309056.544,3638.893,73.077,-157.984,59.788,0.433,-6.439,-0.032,0.092,-0.054}*(0.36*(B50-52.1551744))^{1,0,2,1,3,0,2,1,0,1}*(0.36*(C50-5.38720621))^{0,2,0,2,0,1,2,1,4,4}) -> -5693465.174
A51: 48 | E51: =155000+SUM({190094.945,-11832.228,-144.221,-32.391,-0.705,-2.34,-0.608,-0.008,0.148}*(0.36*(B51-52.1551744))^{0,1,2,0,1,3,1,0,2}*(0.36*(C51-5.38720621))^{1,1,1,3,0,1,3,2,3}) -> -576174.5704 | F51: =463000+SUM({309056.544,3638.893,73.077,-157.984,59.788,0.433,-6.439,-0.032,0.092,-0.054}*(0.36*(B51-52.1551744))^{1,0,2,1,3,0,2,1,0,1}*(0.36*(C51-5.38720621))^{0,2,0,2,0,1,2,1,4,4}) -> -5693465.174
A52: 49 | E52: =155000+SUM({190094.945,-11832.228,-144.221,-32.391,-0.705,-2.34,-0.608,-0.008,0.148}*(0.36*(B52-52.1551744))^{0,1,2,0,1,3,1,0,2}*(0.36*(C52-5.38720621))^{1,1,1,3,0,1,3,2,3}) -> -576174.5704 | F52: =463000+SUM({309056.544,3638.893,73.077,-157.984,59.788,0.433,-6.439,-0.032,0.092,-0.054}*(0.36*(B52-52.1551744))^{1,0,2,1,3,0,2,1,0,1}*(0.36*(C52-5.38720621))^{0,2,0,2,0,1,2,1,4,4}) -> -5693465.174
A53: 50 | E53: =155000+SUM({190094.945,-11832.228,-144.221,-32.391,-0.705,-2.34,-0.608,-0.008,0.148}*(0.36*(B53-52.1551744))^{0,1,2,0,1,3,1,0,2}*(0.36*(C53-5.38720621))^{1,1,1,3,0,1,3,2,3}) -> -576174.5704 | F53: =463000+SUM({309056.544,3638.893,73.077,-157.984,59.788,0.433,-6.439,-0.032,0.092,-0.054}*(0.36*(B53-52.1551744))^{1,0,2,1,3,0,2,1,0,1}*(0.36*(C53-5.38720621))^{0,2,0,2,0,1,2,1,4,4}) -> -5693465.174
A54: 51 | E54: =155000+SUM({190094.945,-11832.228,-144.221,-32.391,-0.705,-2.34,-0.608,-0.008,0.148}*(0.36*(B54-52.1551744))^{0,1,2,0,1,3,1,0,2}*(0.36*(C54-5.38720621))^{1,1,1,3,0,1,3,2,3}) -> -576174.5704 | F54: =463000+SUM({309056.544,3638.893,73.077,-157.984,59.788,0.433,-6.439,-0.032,0.092,-0.054}*(0.36*(B54-52.1551744))^{1,0,2,1,3,0,2,1,0,1}*(0.36*(C54-5.38720621))^{0,2,0,2,0,1,2,1,4,4}) -> -5693465.174
A55: 52 | E55: =155000+SUM({190094.945,-11832.228,-144.221,-32.391,-0.705,-2.34,-0.608,-0.008,0.148}*(0.36*(B55-52.1551744))^{0,1,2,0,1,3,1,0,2}*(0.36*(C55-5.38720621))^{1,1,1,3,0,1,3,2,3}) -> -576174.5704 | F55: =463000+SUM({309056.544,3638.893,73.077,-157.984,59.788,0.433,-6.439,-0.032,0.092,-0.054}*(0.36*(B55-52.1551744))^{1,0,2,1,3,0,2,1,0,1}*(0.36*(C55-5.38720621))^{0,2,0,2,0,1,2,1,4,4}) -> -5693465.174
A56: 53 | E56: =155000+SUM({190094.945,-11832.228,-144.221,-32.391,-0.705,-2.34,-0.608,-0.008,0.148}*(0.36*(B56-52.1551744))^{0,1,2,0,1,3,1,0,2}*(0.36*(C56-5.38720621))^{1,1,1,3,0,1,3,2,3}) -> -576174.5704 | F56: =463000+SUM({309056.544,3638.893,73.077,-157.984,59.788,0.433,-6.439,-0.032,0.092,-0.054}*(0.36*(B56-52.1551744))^{1,0,2,1,3,0,2,1,0,1}*(0.36*(C56-5.38720621))^{0,2,0,2,0,1,2,1,4,4}) -> -5693465.174
A57: 54 | E57: =155000+SUM({190094.945,-11832.228,-144.221,-32.391,-0.705,-2.34,-0.608,-0.008,0.148}*(0.36*(B57-52.1551744))^{0,1,2,0,1,3,1,0,2}*(0.36*(C57-5.38720621))^{1,1,1,3,0,1,3,2,3}) -> -576174.5704 | F57: =463000+SUM({309056.544,3638.893,73.077,-157.984,59.788,0.433,-6.439,-0.032,0.092,-0.054}*(0.36*(B57-52.1551744))^{1,0,2,1,3,0,2,1,0,1}*(0.36*(C57-5.38720621))^{0,2,0,2,0,1,2,1,4,4}) -> -5693465.174
A58: 55 | E58: =155000+SUM({190094.945,-11832.228,-144.221,-32.391,-0.705,-2.34,-0.608,-0.008,0.148}*(0.36*(B58-52.1551744))^{0,1,2,0,1,3,1,0,2}*(0.36*(C58-5.38720621))^{1,1,1,3,0,1,3,2,3}) -> -576174.5704 | F58: =463000+SUM({309056.544,3638.893,73.077,-157.984,59.788,0.433,-6.439,-0.032,0.092,-0.054}*(0.36*(B58-52.1551744))^{1,0,2,1,3,0,2,1,0,1}*(0.36*(C58-5.38720621))^{0,2,0,2,0,1,2,1,4,4}) -> -5693465.174
A59: 56 | E59: =155000+SUM({190094.945,-11832.228,-144.221,-32.391,-0.705,-2.34,-0.608,-0.008,0.148}*(0.36*(B59-52.1551744))^{0,1,2,0,1,3,1,0,2}*(0.36*(C59-5.38720621))^{1,1,1,3,0,1,3,2,3}) -> -576174.5704 | F59: =463000+SUM({309056.544,3638.893,73.077,-157.984,59.788,0.433,-6.439,-0.032,0.092,-0.054}*(0.36*(B59-52.1551744))^{1,0,2,1,3,0,2,1,0,1}*(0.36*(C59-5.38720621))^{0,2,0,2,0,1,2,1,4,4}) -> -5693465.174
A60: 57 | E60: =155000+SUM({190094.945,-11832.228,-144.221,-32.391,-0.705,-2.34,-0.608,-0.008,0.148}*(0.36*(B60-52.1551744))^{0,1,2,0,1,3,1,0,2}*(0.36*(C60-5.38720621))^{1,1,1,3,0,1,3,2,3}) -> -576174.5704 | F60: =463000+SUM({309056.544,3638.893,73.077,-157.984,59.788,0.433,-6.439,-0.032,0.092,-0.054}*(0.36*(B60-52.1551744))^{1,0,2,1,3,0,2,1,0,1}*(0.36*(C60-5.38720621))^{0,2,0,2,0,1,2,1,4,4}) -> -5693465.174
A61: 58 | E61: =155000+SUM({190094.945,-11832.228,-144.221,-32.391,-0.705,-2.34,-0.608,-0.008,0.148}*(0.36*(B61-52.1551744))^{0,1,2,0,1,3,1,0,2}*(0.36*(C61-5.38720621))^{1,1,1,3,0,1,3,2,3}) -> -576174.5704 | F61: =463000+SUM({309056.544,3638.893,73.077,-157.984,59.788,0.433,-6.439,-0.032,0.092,-0.054}*(0.36*(B61-52.1551744))^{1,0,2,1,3,0,2,1,0,1}*(0.36*(C61-5.38720621))^{0,2,0,2,0,1,2,1,4,4}) -> -5693465.174
A62: 59 | E62: =155000+SUM({190094.945,-11832.228,-144.221,-32.391,-0.705,-2.34,-0.608,-0.008,0.148}*(0.36*(B62-52.1551744))^{0,1,2,0,1,3,1,0,2}*(0.36*(C62-5.38720621))^{1,1,1,3,0,1,3,2,3}) -> -576174.5704 | F62: =463000+SUM({309056.544,3638.893,73.077,-157.984,59.788,0.433,-6.439,-0.032,0.092,-0.054}*(0.36*(B62-52.1551744))^{1,0,2,1,3,0,2,1,0,1}*(0.36*(C62-5.38720621))^{0,2,0,2,0,1,2,1,4,4}) -> -5693465.174
A63: 60 | E63: =155000+SUM({190094.945,-11832.228,-144.221,-32.391,-0.705,-2.34,-0.608,-0.008,0.148}*(0.36*(B63-52.1551744))^{0,1,2,0,1,3,1,0,2}*(0.36*(C63-5.38720621))^{1,1,1,3,0,1,3,2,3}) -> -576174.5704 | F63: =463000+SUM({309056.544,3638.893,73.077,-157.984,59.788,0.433,-6.439,-0.032,0.092,-0.054}*(0.36*(B63-52.1551744))^{1,0,2,1,3,0,2,1,0,1}*(0.36*(C63-5.38720621))^{0,2,0,2,0,1,2,1,4,4}) -> -5693465.174
A64: 61 | E64: =155000+SUM({190094.945,-11832.228,-144.221,-32.391,-0.705,-2.34,-0.608,-0.008,0.148}*(0.36*(B64-52.1551744))^{0,1,2,0,1,3,1,0,2}*(0.36*(C64-5.38720621))^{1,1,1,3,0,1,3,2,3}) -> -576174.5704 | F64: =463000+SUM({309056.544,3638.893,73.077,-157.984,59.788,0.433,-6.439,-0.032,0.092,-0.054}*(0.36*(B64-52.1551744))^{1,0,2,1,3,0,2,1,0,1}*(0.36*(C64-5.38720621))^{0,2,0,2,0,1,2,1,4,4}) -> -5693465.174
A65: 62 | E65: =155000+SUM({190094.945,-11832.228,-144.221,-32.391,-0.705,-2.34,-0.608,-0.008,0.148}*(0.36*(B65-52.1551744))^{0,1,2,0,1,3,1,0,2}*(0.36*(C65-5.38720621))^{1,1,1,3,0,1,3,2,3}) -> -576174.5704 | F65: =463000+SUM({309056.544,3638.893,73.077,-157.984,59.788,0.433,-6.439,-0.032,0.092,-0.054}*(0.36*(B65-52.1551744))^{1,0,2,1,3,0,2,1,0,1}*(0.36*(C65-5.38720621))^{0,2,0,2,0,1,2,1,4,4}) -> -5693465.174
A66: 63 | E66: =155000+SUM({190094.945,-11832.228,-144.221,-32.391,-0.705,-2.34,-0.608,-0.008,0.148}*(0.36*(B66-52.1551744))^{0,1,2,0,1,3,1,0,2}*(0.36*(C66-5.38720621))^{1,1,1,3,0,1,3,2,3}) -> -576174.5704 | F66: =463000+SUM({309056.544,3638.893,73.077,-157.984,59.788,0.433,-6.439,-0.032,0.092,-0.054}*(0.36*(B66-52.1551744))^{1,0,2,1,3,0,2,1,0,1}*(0.36*(C66-5.38720621))^{0,2,0,2,0,1,2,1,4,4}) -> -5693465.174
A67: 64 | E67: =155000+SUM({190094.945,-11832.228,-144.221,-32.391,-0.705,-2.34,-0.608,-0.008,0.148}*(0.36*(B67-52.1551744))^{0,1,2,0,1,3,1,0,2}*(0.36*(C67-5.38720621))^{1,1,1,3,0,1,3,2,3}) -> -576174.5704 | F67: =463000+SUM({309056.544,3638.893,73.077,-157.984,59.788,0.433,-6.439,-0.032,0.092,-0.054}*(0.36*(B67-52.1551744))^{1,0,2,1,3,0,2,1,0,1}*(0.36*(C67-5.38720621))^{0,2,0,2,0,1,2,1,4,4}) -> -5693465.174
A68: 65 | E68: =155000+SUM({190094.945,-11832.228,-144.221,-32.391,-0.705,-2.34,-0.608,-0.008,0.148}*(0.36*(B68-52.1551744))^{0,1,2,0,1,3,1,0,2}*(0.36*(C68-5.38720621))^{1,1,1,3,0,1,3,2,3}) -> -576174.5704 | F68: =463000+SUM({309056.544,3638.893,73.077,-157.984,59.788,0.433,-6.439,-0.032,0.092,-0.054}*(0.36*(B68-52.1551744))^{1,0,2,1,3,0,2,1,0,1}*(0.36*(C68-5.38720621))^{0,2,0,2,0,1,2,1,4,4}) -> -5693465.174
A69: 66 | E69: =155000+SUM({190094.945,-11832.228,-144.221,-32.391,-0.705,-2.34,-0.608,-0.008,0.148}*(0.36*(B69-52.1551744))^{0,1,2,0,1,3,1,0,2}*(0.36*(C69-5.38720621))^{1,1,1,3,0,1,3,2,3}) -> -576174.5704 | F69: =463000+SUM({309056.544,3638.893,73.077,-157.984,59.788,0.433,-6.439,-0.032,0.092,-0.054}*(0.36*(B69-52.1551744))^{1,0,2,1,3,0,2,1,0,1}*(0.36*(C69-5.38720621))^{0,2,0,2,0,1,2,1,4,4}) -> -5693465.174
A70: 67 | E70: =155000+SUM({190094.945,-11832.228,-144.221,-32.391,-0.705,-2.34,-0.608,-0.008,0.148}*(0.36*(B70-52.1551744))^{0,1,2,0,1,3,1,0,2}*(0.36*(C70-5.38720621))^{1,1,1,3,0,1,3,2,3}) -> -576174.5704 | F70: =463000+SUM({309056.544,3638.893,73.077,-157.984,59.788,0.433,-6.439,-0.032,0.092,-0.054}*(0.36*(B70-52.1551744))^{1,0,2,1,3,0,2,1,0,1}*(0.36*(C70-5.38720621))^{0,2,0,2,0,1,2,1,4,4}) -> -5693465.174
A71: 68 | E71: =155000+SUM({190094.945,-11832.228,-144.221,-32.391,-0.705,-2.34,-0.608,-0.008,0.148}*(0.36*(B71-52.1551744))^{0,1,2,0,1,3,1,0,2}*(0.36*(C71-5.38720621))^{1,1,1,3,0,1,3,2,3}) -> -576174.5704 | F71: =463000+SUM({309056.544,3638.893,73.077,-157.984,59.788,0.433,-6.439,-0.032,0.092,-0.054}*(0.36*(B71-52.1551744))^{1,0,2,1,3,0,2,1,0,1}*(0.36*(C71-5.38720621))^{0,2,0,2,0,1,2,1,4,4}) -> -5693465.174
A72: 69 | E72: =155000+SUM({190094.945,-11832.228,-144.221,-32.391,-0.705,-2.34,-0.608,-0.008,0.148}*(0.36*(B72-52.1551744))^{0,1,2,0,1,3,1,0,2}*(0.36*(C72-5.38720621))^{1,1,1,3,0,1,3,2,3}) -> -576174.5704 | F72: =463000+SUM({309056.544,3638.893,73.077,-157.984,59.788,0.433,-6.439,-0.032,0.092,-0.054}*(0.36*(B72-52.1551744))^{1,0,2,1,3,0,2,1,0,1}*(0.36*(C72-5.38720621))^{0,2,0,2,0,1,2,1,4,4}) -> -5693465.174
A73: 70 | E73: =155000+SUM({190094.945,-11832.228,-144.221,-32.391,-0.705,-2.34,-0.608,-0.008,0.148}*(0.36*(B73-52.1551744))^{0,1,2,0,1,3,1,0,2}*(0.36*(C73-5.38720621))^{1,1,1,3,0,1,3,2,3}) -> -576174.5704 | F73: =463000+SUM({309056.544,3638.893,73.077,-157.984,59.788,0.433,-6.439,-0.032,0.092,-0.054}*(0.36*(B73-52.1551744))^{1,0,2,1,3,0,2,1,0,1}*(0.36*(C73-5.38720621))^{0,2,0,2,0,1,2,1,4,4}) -> -5693465.174
A74: 71 | E74: =155000+SUM({190094.945,-11832.228,-144.221,-32.391,-0.705,-2.34,-0.608,-0.008,0.148}*(0.36*(B74-52.1551744))^{0,1,2,0,1,3,1,0,2}*(0.36*(C74-5.38720621))^{1,1,1,3,0,1,3,2,3}) -> -576174.5704 | F74: =463000+SUM({309056.544,3638.893,73.077,-157.984,59.788,0.433,-6.439,-0.032,0.092,-0.054}*(0.36*(B74-52.1551744))^{1,0,2,1,3,0,2,1,0,1}*(0.36*(C74-5.38720621))^{0,2,0,2,0,1,2,1,4,4}) -> -5693465.174
A75: 72 | E75: =155000+SUM({190094.945,-11832.228,-144.221,-32.391,-0.705,-2.34,-0.608,-0.008,0.148}*(0.36*(B75-52.1551744))^{0,1,2,0,1,3,1,0,2}*(0.36*(C75-5.38720621))^{1,1,1,3,0,1,3,2,3}) -> -576174.5704 | F75: =463000+SUM({309056.544,3638.893,73.077,-157.984,59.788,0.433,-6.439,-0.032,0.092,-0.054}*(0.36*(B75-52.1551744))^{1,0,2,1,3,0,2,1,0,1}*(0.36*(C75-5.38720621))^{0,2,0,2,0,1,2,1,4,4}) -> -5693465.174
A76: 73 | E76: =155000+SUM({190094.945,-11832.228,-144.221,-32.391,-0.705,-2.34,-0.608,-0.008,0.148}*(0.36*(B76-52.1551744))^{0,1,2,0,1,3,1,0,2}*(0.36*(C76-5.38720621))^{1,1,1,3,0,1,3,2,3}) -> -576174.5704 | F76: =463000+SUM({309056.544,3638.893,73.077,-157.984,59.788,0.433,-6.439,-0.032,0.092,-0.054}*(0.36*(B76-52.1551744))^{1,0,2,1,3,0,2,1,0,1}*(0.36*(C76-5.38720621))^{0,2,0,2,0,1,2,1,4,4}) -> -5693465.174
A77: 74 | E77: =155000+SUM({190094.945,-11832.228,-144.221,-32.391,-0.705,-2.34,-0.608,-0.008,0.148}*(0.36*(B77-52.1551744))^{0,1,2,0,1,3,1,0,2}*(0.36*(C77-5.38720621))^{1,1,1,3,0,1,3,2,3}) -> -576174.5704 | F77: =463000+SUM({309056.544,3638.893,73.077,-157.984,59.788,0.433,-6.439,-0.032,0.092,-0.054}*(0.36*(B77-52.1551744))^{1,0,2,1,3,0,2,1,0,1}*(0.36*(C77-5.38720621))^{0,2,0,2,0,1,2,1,4,4}) -> -5693465.174
A78: 75 | E78: =155000+SUM({190094.945,-11832.228,-144.221,-32.391,-0.705,-2.34,-0.608,-0.008,0.148}*(0.36*(B78-52.1551744))^{0,1,2,0,1,3,1,0,2}*(0.36*(C78-5.38720621))^{1,1,1,3,0,1,3,2,3}) -> -576174.5704 | F78: =463000+SUM({309056.544,3638.893,73.077,-157.984,59.788,0.433,-6.439,-0.032,0.092,-0.054}*(0.36*(B78-52.1551744))^{1,0,2,1,3,0,2,1,0,1}*(0.36*(C78-5.38720621))^{0,2,0,2,0,1,2,1,4,4}) -> -5693465.174
A79: 76 | E79: =155000+SUM({190094.945,-11832.228,-144.221,-32.391,-0.705,-2.34,-0.608,-0.008,0.148}*(0.36*(B79-52.1551744))^{0,1,2,0,1,3,1,0,2}*(0.36*(C79-5.38720621))^{1,1,1,3,0,1,3,2,3}) -> -576174.5704 | F79: =463000+SUM({309056.544,3638.893,73.077,-157.984,59.788,0.433,-6.439,-0.032,0.092,-0.054}*(0.36*(B79-52.1551744))^{1,0,2,1,3,0,2,1,0,1}*(0.36*(C79-5.38720621))^{0,2,0,2,0,1,2,1,4,4}) -> -5693465.174
A80: 77 | E80: =155000+SUM({190094.945,-11832.228,-144.221,-32.391,-0.705,-2.34,-0.608,-0.008,0.148}*(0.36*(B80-52.1551744))^{0,1,2,0,1,3,1,0,2}*(0.36*(C80-5.38720621))^{1,1,1,3,0,1,3,2,3}) -> -576174.5704 | F80: =463000+SUM({309056.544,3638.893,73.077,-157.984,59.788,0.433,-6.439,-0.032,0.092,-0.054}*(0.36*(B80-52.1551744))^{1,0,2,1,3,0,2,1,0,1}*(0.36*(C80-5.38720621))^{0,2,0,2,0,1,2,1,4,4}) -> -5693465.174
A81: 78 | E81: =155000+SUM({190094.945,-11832.228,-144.221,-32.391,-0.705,-2.34,-0.608,-0.008,0.148}*(0.36*(B81-52.1551744))^{0,1,2,0,1,3,1,0,2}*(0.36*(C81-5.38720621))^{1,1,1,3,0,1,3,2,3}) -> -576174.5704 | F81: =463000+SUM({309056.544,3638.893,73.077,-157.984,59.788,0.433,-6.439,-0.032,0.092,-0.054}*(0.36*(B81-52.1551744))^{1,0,2,1,3,0,2,1,0,1}*(0.36*(C81-5.38720621))^{0,2,0,2,0,1,2,1,4,4}) -> -5693465.174
A82: 79 | E82: =155000+SUM({190094.945,-11832.228,-144.221,-32.391,-0.705,-2.34,-0.608,-0.008,0.148}*(0.36*(B82-52.1551744))^{0,1,2,0,1,3,1,0,2}*(0.36*(C82-5.38720621))^{1,1,1,3,0,1,3,2,3}) -> -576174.5704 | F82: =463000+SUM({309056.544,3638.893,73.077,-157.984,59.788,0.433,-6.439,-0.032,0.092,-0.054}*(0.36*(B82-52.1551744))^{1,0,2,1,3,0,2,1,0,1}*(0.36*(C82-5.38720621))^{0,2,0,2,0,1,2,1,4,4}) -> -5693465.174
A83: 80 | E83: =155000+SUM({190094.945,-11832.228,-144.221,-32.391,-0.705,-2.34,-0.608,-0.008,0.148}*(0.36*(B83-52.1551744))^{0,1,2,0,1,3,1,0,2}*(0.36*(C83-5.38720621))^{1,1,1,3,0,1,3,2,3}) -> -576174.5704 | F83: =463000+SUM({309056.544,3638.893,73.077,-157.984,59.788,0.433,-6.439,-0.032,0.092,-0.054}*(0.36*(B83-52.1551744))^{1,0,2,1,3,0,2,1,0,1}*(0.36*(C83-5.38720621))^{0,2,0,2,0,1,2,1,4,4}) -> -5693465.174
A84: 81 | E84: =155000+SUM({190094.945,-11832.228,-144.221,-32.391,-0.705,-2.34,-0.608,-0.008,0.148}*(0.36*(B84-52.1551744))^{0,1,2,0,1,3,1,0,2}*(0.36*(C84-5.38720621))^{1,1,1,3,0,1,3,2,3}) -> -576174.5704 | F84: =463000+SUM({309056.544,3638.893,73.077,-157.984,59.788,0.433,-6.439,-0.032,0.092,-0.054}*(0.36*(B84-52.1551744))^{1,0,2,1,3,0,2,1,0,1}*(0.36*(C84-5.38720621))^{0,2,0,2,0,1,2,1,4,4}) -> -5693465.174
A85: 82 | E85: =155000+SUM({190094.945,-11832.228,-144.221,-32.391,-0.705,-2.34,-0.608,-0.008,0.148}*(0.36*(B85-52.1551744))^{0,1,2,0,1,3,1,0,2}*(0.36*(C85-5.38720621))^{1,1,1,3,0,1,3,2,3}) -> -576174.5704 | F85: =463000+SUM({309056.544,3638.893,73.077,-157.984,59.788,0.433,-6.439,-0.032,0.092,-0.054}*(0.36*(B85-52.1551744))^{1,0,2,1,3,0,2,1,0,1}*(0.36*(C85-5.38720621))^{0,2,0,2,0,1,2,1,4,4}) -> -5693465.174
A86: 83 | E86: =155000+SUM({190094.945,-11832.228,-144.221,-32.391,-0.705,-2.34,-0.608,-0.008,0.148}*(0.36*(B86-52.1551744))^{0,1,2,0,1,3,1,0,2}*(0.36*(C86-5.38720621))^{1,1,1,3,0,1,3,2,3}) -> -576174.5704 | F86: =463000+SUM({309056.544,3638.893,73.077,-157.984,59.788,0.433,-6.439,-0.032,0.092,-0.054}*(0.36*(B86-52.1551744))^{1,0,2,1,3,0,2,1,0,1}*(0.36*(C86-5.38720621))^{0,2,0,2,0,1,2,1,4,4}) -> -5693465.174
A87: 84 | E87: =155000+SUM({190094.945,-11832.228,-144.221,-32.391,-0.705,-2.34,-0.608,-0.008,0.148}*(0.36*(B87-52.1551744))^{0,1,2,0,1,3,1,0,2}*(0.36*(C87-5.38720621))^{1,1,1,3,0,1,3,2,3}) -> -576174.5704 | F87: =463000+SUM({309056.544,3638.893,73.077,-157.984,59.788,0.433,-6.439,-0.032,0.092,-0.054}*(0.36*(B87-52.1551744))^{1,0,2,1,3,0,2,1,0,1}*(0.36*(C87-5.38720621))^{0,2,0,2,0,1,2,1,4,4}) -> -5693465.174
A88: 85 | E88: =155000+SUM({190094.945,-11832.228,-144.221,-32.391,-0.705,-2.34,-0.608,-0.008,0.148}*(0.36*(B88-52.1551744))^{0,1,2,0,1,3,1,0,2}*(0.36*(C88-5.38720621))^{1,1,1,3,0,1,3,2,3}) -> -576174.5704 | F88: =463000+SUM({309056.544,3638.893,73.077,-157.984,59.788,0.433,-6.439,-0.032,0.092,-0.054}*(0.36*(B88-52.1551744))^{1,0,2,1,3,0,2,1,0,1}*(0.36*(C88-5.38720621))^{0,2,0,2,0,1,2,1,4,4}) -> -5693465.174
A89: 86 | E89: =155000+SUM({190094.945,-11832.228,-144.221,-32.391,-0.705,-2.34,-0.608,-0.008,0.148}*(0.36*(B89-52.1551744))^{0,1,2,0,1,3,1,0,2}*(0.36*(C89-5.38720621))^{1,1,1,3,0,1,3,2,3}) -> -576174.5704 | F89: =463000+SUM({309056.544,3638.893,73.077,-157.984,59.788,0.433,-6.439,-0.032,0.092,-0.054}*(0.36*(B89-52.1551744))^{1,0,2,1,3,0,2,1,0,1}*(0.36*(C89-5.38720621))^{0,2,0,2,0,1,2,1,4,4}) -> -5693465.174
A90: 87 | E90: =155000+SUM({190094.945,-11832.228,-144.221,-32.391,-0.705,-2.34,-0.608,-0.008,0.148}*(0.36*(B90-52.1551744))^{0,1,2,0,1,3,1,0,2}*(0.36*(C90-5.38720621))^{1,1,1,3,0,1,3,2,3}) -> -576174.5704 | F90: =463000+SUM({309056.544,3638.893,73.077,-157.984,59.788,0.433,-6.439,-0.032,0.092,-0.054}*(0.36*(B90-52.1551744))^{1,0,2,1,3,0,2,1,0,1}*(0.36*(C90-5.38720621))^{0,2,0,2,0,1,2,1,4,4}) -> -5693465.174
A91: 88 | E91: =155000+SUM({190094.945,-11832.228,-144.221,-32.391,-0.705,-2.34,-0.608,-0.008,0.148}*(0.36*(B91-52.1551744))^{0,1,2,0,1,3,1,0,2}*(0.36*(C91-5.38720621))^{1,1,1,3,0,1,3,2,3}) -> -576174.5704 | F91: =463000+SUM({309056.544,3638.893,73.077,-157.984,59.788,0.433,-6.439,-0.032,0.092,-0.054}*(0.36*(B91-52.1551744))^{1,0,2,1,3,0,2,1,0,1}*(0.36*(C91-5.38720621))^{0,2,0,2,0,1,2,1,4,4}) -> -5693465.174
A92: 89 | E92: =155000+SUM({190094.945,-11832.228,-144.221,-32.391,-0.705,-2.34,-0.608,-0.008,0.148}*(0.36*(B92-52.1551744))^{0,1,2,0,1,3,1,0,2}*(0.36*(C92-5.38720621))^{1,1,1,3,0,1,3,2,3}) -> -576174.5704 | F92: =463000+SUM({309056.544,3638.893,73.077,-157.984,59.788,0.433,-6.439,-0.032,0.092,-0.054}*(0.36*(B92-52.1551744))^{1,0,2,1,3,0,2,1,0,1}*(0.36*(C92-5.38720621))^{0,2,0,2,0,1,2,1,4,4}) -> -5693465.174
A93: 90 | E93: =155000+SUM({190094.945,-11832.228,-144.221,-32.391,-0.705,-2.34,-0.608,-0.008,0.148}*(0.36*(B93-52.1551744))^{0,1,2,0,1,3,1,0,2}*(0.36*(C93-5.38720621))^{1,1,1,3,0,1,3,2,3}) -> -576174.5704 | F93: =463000+SUM({309056.544,3638.893,73.077,-157.984,59.788,0.433,-6.439,-0.032,0.092,-0.054}*(0.36*(B93-52.1551744))^{1,0,2,1,3,0,2,1,0,1}*(0.36*(C93-5.38720621))^{0,2,0,2,0,1,2,1,4,4}) -> -5693465.174
A94: 91 | E94: =155000+SUM({190094.945,-11832.228,-144.221,-32.391,-0.705,-2.34,-0.608,-0.008,0.148}*(0.36*(B94-52.1551744))^{0,1,2,0,1,3,1,0,2}*(0.36*(C94-5.38720621))^{1,1,1,3,0,1,3,2,3}) -> -576174.5704 | F94: =463000+SUM({309056.544,3638.893,73.077,-157.984,59.788,0.433,-6.439,-0.032,0.092,-0.054}*(0.36*(B94-52.1551744))^{1,0,2,1,3,0,2,1,0,1}*(0.36*(C94-5.38720621))^{0,2,0,2,0,1,2,1,4,4}) -> -5693465.174
A95: 92 | E95: =155000+SUM({190094.945,-11832.228,-144.221,-32.391,-0.705,-2.34,-0.608,-0.008,0.148}*(0.36*(B95-52.1551744))^{0,1,2,0,1,3,1,0,2}*(0.36*(C95-5.38720621))^{1,1,1,3,0,1,3,2,3}) -> -576174.5704 | F95: =463000+SUM({309056.544,3638.893,73.077,-157.984,59.788,0.433,-6.439,-0.032,0.092,-0.054}*(0.36*(B95-52.1551744))^{1,0,2,1,3,0,2,1,0,1}*(0.36*(C95-5.38720621))^{0,2,0,2,0,1,2,1,4,4}) -> -5693465.174
A96: 93 | E96: =155000+SUM({190094.945,-11832.228,-144.221,-32.391,-0.705,-2.34,-0.608,-0.008,0.148}*(0.36*(B96-52.1551744))^{0,1,2,0,1,3,1,0,2}*(0.36*(C96-5.38720621))^{1,1,1,3,0,1,3,2,3}) -> -576174.5704 | F96: =463000+SUM({309056.544,3638.893,73.077,-157.984,59.788,0.433,-6.439,-0.032,0.092,-0.054}*(0.36*(B96-52.1551744))^{1,0,2,1,3,0,2,1,0,1}*(0.36*(C96-5.38720621))^{0,2,0,2,0,1,2,1,4,4}) -> -5693465.174
A97: 94 | E97: =155000+SUM({190094.945,-11832.228,-144.221,-32.391,-0.705,-2.34,-0.608,-0.008,0.148}*(0.36*(B97-52.1551744))^{0,1,2,0,1,3,1,0,2}*(0.36*(C97-5.38720621))^{1,1,1,3,0,1,3,2,3}) -> -576174.5704 | F97: =463000+SUM({309056.544,3638.893,73.077,-157.984,59.788,0.433,-6.439,-0.032,0.092,-0.054}*(0.36*(B97-52.1551744))^{1,0,2,1,3,0,2,1,0,1}*(0.36*(C97-5.38720621))^{0,2,0,2,0,1,2,1,4,4}) -> -5693465.174
A98: 95 | E98: =155000+SUM({190094.945,-11832.228,-144.221,-32.391,-0.705,-2.34,-0.608,-0.008,0.148}*(0.36*(B98-52.1551744))^{0,1,2,0,1,3,1,0,2}*(0.36*(C98-5.38720621))^{1,1,1,3,0,1,3,2,3}) -> -576174.5704 | F98: =463000+SUM({309056.544,3638.893,73.077,-157.984,59.788,0.433,-6.439,-0.032,0.092,-0.054}*(0.36*(B98-52.1551744))^{1,0,2,1,3,0,2,1,0,1}*(0.36*(C98-5.38720621))^{0,2,0,2,0,1,2,1,4,4}) -> -5693465.174
A99: 96 | E99: =155000+SUM({190094.945,-11832.228,-144.221,-32.391,-0.705,-2.34,-0.608,-0.008,0.148}*(0.36*(B99-52.1551744))^{0,1,2,0,1,3,1,0,2}*(0.36*(C99-5.38720621))^{1,1,1,3,0,1,3,2,3}) -> -576174.5704 | F99: =463000+SUM({309056.544,3638.893,73.077,-157.984,59.788,0.433,-6.439,-0.032,0.092,-0.054}*(0.36*(B99-52.1551744))^{1,0,2,1,3,0,2,1,0,1}*(0.36*(C99-5.38720621))^{0,2,0,2,0,1,2,1,4,4}) -> -5693465.174
A100: 97 | E100: =155000+SUM({190094.945,-11832.228,-144.221,-32.391,-0.705,-2.34,-0.608,-0.008,0.148}*(0.36*(B100-52.1551744))^{0,1,2,0,1,3,1,0,2}*(0.36*(C100-5.38720621))^{1,1,1,3,0,1,3,2,3}) -> -576174.5704 | F100: =463000+SUM({309056.544,3638.893,73.077,-157.984,59.788,0.433,-6.439,-0.032,0.092,-0.054}*(0.36*(B100-52.1551744))^{1,0,2,1,3,0,2,1,0,1}*(0.36*(C100-5.38720621))^{0,2,0,2,0,1,2,1,4,4}) -> -5693465.174
A101: 98 | E101: =155000+SUM({190094.945,-11832.228,-144.221,-32.391,-0.705,-2.34,-0.608,-0.008,0.148}*(0.36*(B101-52.1551744))^{0,1,2,0,1,3,1,0,2}*(0.36*(C101-5.38720621))^{1,1,1,3,0,1,3,2,3}) -> -576174.5704 | F101: =463000+SUM({309056.544,3638.893,73.077,-157.984,59.788,0.433,-6.439,-0.032,0.092,-0.054}*(0.36*(B101-52.1551744))^{1,0,2,1,3,0,2,1,0,1}*(0.36*(C101-5.38720621))^{0,2,0,2,0,1,2,1,4,4}) -> -5693465.174
A102: 99 | E102: =155000+SUM({190094.945,-11832.228,-144.221,-32.391,-0.705,-2.34,-0.608,-0.008,0.148}*(0.36*(B102-52.1551744))^{0,1,2,0,1,3,1,0,2}*(0.36*(C102-5.38720621))^{1,1,1,3,0,1,3,2,3}) -> -576174.5704 | F102: =463000+SUM({309056.544,3638.893,73.077,-157.984,59.788,0.433,-6.439,-0.032,0.092,-0.054}*(0.36*(B102-52.1551744))^{1,0,2,1,3,0,2,1,0,1}*(0.36*(C102-5.38720621))^{0,2,0,2,0,1,2,1,4,4}) -> -5693465.174
A103: 100 | E103: =155000+SUM({190094.945,-11832.228,-144.221,-32.391,-0.705,-2.34,-0.608,-0.008,0.148}*(0.36*(B103-52.1551744))^{0,1,2,0,1,3,1,0,2}*(0.36*(C103-5.38720621))^{1,1,1,3,0,1,3,2,3}) -> -576174.5704 | F103: =463000+SUM({309056.544,3638.893,73.077,-157.984,59.788,0.433,-6.439,-0.032,0.092,-0.054}*(0.36*(B103-52.1551744))^{1,0,2,1,3,0,2,1,0,1}*(0.36*(C103-5.38720621))^{0,2,0,2,0,1,2,1,4,4}) -> -5693465.174
A104: 101 | E104: =155000+SUM({190094.945,-11832.228,-144.221,-32.391,-0.705,-2.34,-0.608,-0.008,0.148}*(0.36*(B104-52.1551744))^{0,1,2,0,1,3,1,0,2}*(0.36*(C104-5.38720621))^{1,1,1,3,0,1,3,2,3}) -> -576174.5704 | F104: =463000+SUM({309056.544,3638.893,73.077,-157.984,59.788,0.433,-6.439,-0.032,0.092,-0.054}*(0.36*(B104-52.1551744))^{1,0,2,1,3,0,2,1,0,1}*(0.36*(C104-5.38720621))^{0,2,0,2,0,1,2,1,4,4}) -> -5693465.174
A105: 102 | E105: =155000+SUM({190094.945,-11832.228,-144.221,-32.391,-0.705,-2.34,-0.608,-0.008,0.148}*(0.36*(B105-52.1551744))^{0,1,2,0,1,3,1,0,2}*(0.36*(C105-5.38720621))^{1,1,1,3,0,1,3,2,3}) -> -576174.5704 | F105: =463000+SUM({309056.544,3638.893,73.077,-157.984,59.788,0.433,-6.439,-0.032,0.092,-0.054}*(0.36*(B105-52.1551744))^{1,0,2,1,3,0,2,1,0,1}*(0.36*(C105-5.38720621))^{0,2,0,2,0,1,2,1,4,4}) -> -5693465.174
A106: 103 | E106: =155000+SUM({190094.945,-11832.228,-144.221,-32.391,-0.705,-2.34,-0.608,-0.008,0.148}*(0.36*(B106-52.1551744))^{0,1,2,0,1,3,1,0,2}*(0.36*(C106-5.38720621))^{1,1,1,3,0,1,3,2,3}) -> -576174.5704 | F106: =463000+SUM({309056.544,3638.893,73.077,-157.984,59.788,0.433,-6.439,-0.032,0.092,-0.054}*(0.36*(B106-52.1551744))^{1,0,2,1,3,0,2,1,0,1}*(0.36*(C106-5.38720621))^{0,2,0,2,0,1,2,1,4,4}) -> -5693465.174
A107: 104 | E107: =155000+SUM({190094.945,-11832.228,-144.221,-32.391,-0.705,-2.34,-0.608,-0.008,0.148}*(0.36*(B107-52.1551744))^{0,1,2,0,1,3,1,0,2}*(0.36*(C107-5.38720621))^{1,1,1,3,0,1,3,2,3}) -> -576174.5704 | F107: =463000+SUM({309056.544,3638.893,73.077,-157.984,59.788,0.433,-6.439,-0.032,0.092,-0.054}*(0.36*(B107-52.1551744))^{1,0,2,1,3,0,2,1,0,1}*(0.36*(C107-5.38720621))^{0,2,0,2,0,1,2,1,4,4}) -> -5693465.174
A108: 105 | E108: =155000+SUM({190094.945,-11832.228,-144.221,-32.391,-0.705,-2.34,-0.608,-0.008,0.148}*(0.36*(B108-52.1551744))^{0,1,2,0,1,3,1,0,2}*(0.36*(C108-5.38720621))^{1,1,1,3,0,1,3,2,3}) -> -576174.5704 | F108: =463000+SUM({309056.544,3638.893,73.077,-157.984,59.788,0.433,-6.439,-0.032,0.092,-0.054}*(0.36*(B108-52.1551744))^{1,0,2,1,3,0,2,1,0,1}*(0.36*(C108-5.38720621))^{0,2,0,2,0,1,2,1,4,4}) -> -5693465.174
A109: 106 | E109: =155000+SUM({190094.945,-11832.228,-144.221,-32.391,-0.705,-2.34,-0.608,-0.008,0.148}*(0.36*(B109-52.1551744))^{0,1,2,0,1,3,1,0,2}*(0.36*(C109-5.38720621))^{1,1,1,3,0,1,3,2,3}) -> -576174.5704 | F109: =463000+SUM({309056.544,3638.893,73.077,-157.984,59.788,0.433,-6.439,-0.032,0.092,-0.054}*(0.36*(B109-52.1551744))^{1,0,2,1,3,0,2,1,0,1}*(0.36*(C109-5.38720621))^{0,2,0,2,0,1,2,1,4,4}) -> -5693465.174
A110: 107 | E110: =155000+SUM({190094.945,-11832.228,-144.221,-32.391,-0.705,-2.34,-0.608,-0.008,0.148}*(0.36*(B110-52.1551744))^{0,1,2,0,1,3,1,0,2}*(0.36*(C110-5.38720621))^{1,1,1,3,0,1,3,2,3}) -> -576174.5704 | F110: =463000+SUM({309056.544,3638.893,73.077,-157.984,59.788,0.433,-6.439,-0.032,0.092,-0.054}*(0.36*(B110-52.1551744))^{1,0,2,1,3,0,2,1,0,1}*(0.36*(C110-5.38720621))^{0,2,0,2,0,1,2,1,4,4}) -> -5693465.174
A111: 108 | E111: =155000+SUM({190094.945,-11832.228,-144.221,-32.391,-0.705,-2.34,-0.608,-0.008,0.148}*(0.36*(B111-52.1551744))^{0,1,2,0,1,3,1,0,2}*(0.36*(C111-5.38720621))^{1,1,1,3,0,1,3,2,3}) -> -576174.5704 | F111: =463000+SUM({309056.544,3638.893,73.077,-157.984,59.788,0.433,-6.439,-0.032,0.092,-0.054}*(0.36*(B111-52.1551744))^{1,0,2,1,3,0,2,1,0,1}*(0.36*(C111-5.38720621))^{0,2,0,2,0,1,2,1,4,4}) -> -5693465.174
A112: 109 | E112: =155000+SUM({190094.945,-11832.228,-144.221,-32.391,-0.705,-2.34,-0.608,-0.008,0.148}*(0.36*(B112-52.1551744))^{0,1,2,0,1,3,1,0,2}*(0.36*(C112-5.38720621))^{1,1,1,3,0,1,3,2,3}) -> -576174.5704 | F112: =463000+SUM({309056.544,3638.893,73.077,-157.984,59.788,0.433,-6.439,-0.032,0.092,-0.054}*(0.36*(B112-52.1551744))^{1,0,2,1,3,0,2,1,0,1}*(0.36*(C112-5.38720621))^{0,2,0,2,0,1,2,1,4,4}) -> -5693465.174
A113: 110 | E113: =155000+SUM({190094.945,-11832.228,-144.221,-32.391,-0.705,-2.34,-0.608,-0.008,0.148}*(0.36*(B113-52.1551744))^{0,1,2,0,1,3,1,0,2}*(0.36*(C113-5.38720621))^{1,1,1,3,0,1,3,2,3}) -> -576174.5704 | F113: =463000+SUM({309056.544,3638.893,73.077,-157.984,59.788,0.433,-6.439,-0.032,0.092,-0.054}*(0.36*(B113-52.1551744))^{1,0,2,1,3,0,2,1,0,1}*(0.36*(C113-5.38720621))^{0,2,0,2,0,1,2,1,4,4}) -> -5693465.174
A114: 111 | E114: =155000+SUM({190094.945,-11832.228,-144.221,-32.391,-0.705,-2.34,-0.608,-0.008,0.148}*(0.36*(B114-52.1551744))^{0,1,2,0,1,3,1,0,2}*(0.36*(C114-5.38720621))^{1,1,1,3,0,1,3,2,3}) -> -576174.5704 | F114: =463000+SUM({309056.544,3638.893,73.077,-157.984,59.788,0.433,-6.439,-0.032,0.092,-0.054}*(0.36*(B114-52.1551744))^{1,0,2,1,3,0,2,1,0,1}*(0.36*(C114-5.38720621))^{0,2,0,2,0,1,2,1,4,4}) -> -5693465.174
A115: 112 | E115: =155000+SUM({190094.945,-11832.228,-144.221,-32.391,-0.705,-2.34,-0.608,-0.008,0.148}*(0.36*(B115-52.1551744))^{0,1,2,0,1,3,1,0,2}*(0.36*(C115-5.38720621))^{1,1,1,3,0,1,3,2,3}) -> -576174.5704 | F115: =463000+SUM({309056.544,3638.893,73.077,-157.984,59.788,0.433,-6.439,-0.032,0.092,-0.054}*(0.36*(B115-52.1551744))^{1,0,2,1,3,0,2,1,0,1}*(0.36*(C115-5.38720621))^{0,2,0,2,0,1,2,1,4,4}) -> -5693465.174
A116: 113 | E116: =155000+SUM({190094.945,-11832.228,-144.221,-32.391,-0.705,-2.34,-0.608,-0.008,0.148}*(0.36*(B116-52.1551744))^{0,1,2,0,1,3,1,0,2}*(0.36*(C116-5.38720621))^{1,1,1,3,0,1,3,2,3}) -> -576174.5704 | F116: =463000+SUM({309056.544,3638.893,73.077,-157.984,59.788,0.433,-6.439,-0.032,0.092,-0.054}*(0.36*(B116-52.1551744))^{1,0,2,1,3,0,2,1,0,1}*(0.36*(C116-5.38720621))^{0,2,0,2,0,1,2,1,4,4}) -> -5693465.174
A117: 114 | E117: =155000+SUM({190094.945,-11832.228,-144.221,-32.391,-0.705,-2.34,-0.608,-0.008,0.148}*(0.36*(B117-52.1551744))^{0,1,2,0,1,3,1,0,2}*(0.36*(C117-5.38720621))^{1,1,1,3,0,1,3,2,3}) -> -576174.5704 | F117: =463000+SUM({309056.544,3638.893,73.077,-157.984,59.788,0.433,-6.439,-0.032,0.092,-0.054}*(0.36*(B117-52.1551744))^{1,0,2,1,3,0,2,1,0,1}*(0.36*(C117-5.38720621))^{0,2,0,2,0,1,2,1,4,4}) -> -5693465.174
A118: 115 | E118: =155000+SUM({190094.945,-11832.228,-144.221,-32.391,-0.705,-2.34,-0.608,-0.008,0.148}*(0.36*(B118-52.1551744))^{0,1,2,0,1,3,1,0,2}*(0.36*(C118-5.38720621))^{1,1,1,3,0,1,3,2,3}) -> -576174.5704 | F118: =463000+SUM({309056.544,3638.893,73.077,-157.984,59.788,0.433,-6.439,-0.032,0.092,-0.054}*(0.36*(B118-52.1551744))^{1,0,2,1,3,0,2,1,0,1}*(0.36*(C118-5.38720621))^{0,2,0,2,0,1,2,1,4,4}) -> -5693465.174
A119: 116 | E119: =155000+SUM({190094.945,-11832.228,-144.221,-32.391,-0.705,-2.34,-0.608,-0.008,0.148}*(0.36*(B119-52.1551744))^{0,1,2,0,1,3,1,0,2}*(0.36*(C119-5.38720621))^{1,1,1,3,0,1,3,2,3}) -> -576174.5704 | F119: =463000+SUM({309056.544,3638.893,73.077,-157.984,59.788,0.433,-6.439,-0.032,0.092,-0.054}*(0.36*(B119-52.1551744))^{1,0,2,1,3,0,2,1,0,1}*(0.36*(C119-5.38720621))^{0,2,0,2,0,1,2,1,4,4}) -> -5693465.174
A120: 117 | E120: =155000+SUM({190094.945,-11832.228,-144.221,-32.391,-0.705,-2.34,-0.608,-0.008,0.148}*(0.36*(B120-52.1551744))^{0,1,2,0,1,3,1,0,2}*(0.36*(C120-5.38720621))^{1,1,1,3,0,1,3,2,3}) -> -576174.5704 | F120: =463000+SUM({309056.544,3638.893,73.077,-157.984,59.788,0.433,-6.439,-0.032,0.092,-0.054}*(0.36*(B120-52.1551744))^{1,0,2,1,3,0,2,1,0,1}*(0.36*(C120-5.38720621))^{0,2,0,2,0,1,2,1,4,4}) -> -5693465.174
A121: 118 | E121: =155000+SUM({190094.945,-11832.228,-144.221,-32.391,-0.705,-2.34,-0.608,-0.008,0.148}*(0.36*(B121-52.1551744))^{0,1,2,0,1,3,1,0,2}*(0.36*(C121-5.38720621))^{1,1,1,3,0,1,3,2,3}) -> -576174.5704 | F121: =463000+SUM({309056.544,3638.893,73.077,-157.984,59.788,0.433,-6.439,-0.032,0.092,-0.054}*(0.36*(B121-52.1551744))^{1,0,2,1,3,0,2,1,0,1}*(0.36*(C121-5.38720621))^{0,2,0,2,0,1,2,1,4,4}) -> -5693465.174
A122: 119 | E122: =155000+SUM({190094.945,-11832.228,-144.221,-32.391,-0.705,-2.34,-0.608,-0.008,0.148}*(0.36*(B122-52.1551744))^{0,1,2,0,1,3,1,0,2}*(0.36*(C122-5.38720621))^{1,1,1,3,0,1,3,2,3}) -> -576174.5704 | F122: =463000+SUM({309056.544,3638.893,73.077,-157.984,59.788,0.433,-6.439,-0.032,0.092,-0.054}*(0.36*(B122-52.1551744))^{1,0,2,1,3,0,2,1,0,1}*(0.36*(C122-5.38720621))^{0,2,0,2,0,1,2,1,4,4}) -> -5693465.174
A123: 120 | E123: =155000+SUM({190094.945,-11832.228,-144.221,-32.391,-0.705,-2.34,-0.608,-0.008,0.148}*(0.36*(B123-52.1551744))^{0,1,2,0,1,3,1,0,2}*(0.36*(C123-5.38720621))^{1,1,1,3,0,1,3,2,3}) -> -576174.5704 | F123: =463000+SUM({309056.544,3638.893,73.077,-157.984,59.788,0.433,-6.439,-0.032,0.092,-0.054}*(0.36*(B123-52.1551744))^{1,0,2,1,3,0,2,1,0,1}*(0.36*(C123-5.38720621))^{0,2,0,2,0,1,2,1,4,4}) -> -5693465.174
A124: 121 | E124: =155000+SUM({190094.945,-11832.228,-144.221,-32.391,-0.705,-2.34,-0.608,-0.008,0.148}*(0.36*(B124-52.1551744))^{0,1,2,0,1,3,1,0,2}*(0.36*(C124-5.38720621))^{1,1,1,3,0,1,3,2,3}) -> -576174.5704 | F124: =463000+SUM({309056.544,3638.893,73.077,-157.984,59.788,0.433,-6.439,-0.032,0.092,-0.054}*(0.36*(B124-52.1551744))^{1,0,2,1,3,0,2,1,0,1}*(0.36*(C124-5.38720621))^{0,2,0,2,0,1,2,1,4,4}) -> -5693465.174
A125: 122 | E125: =155000+SUM({190094.945,-11832.228,-144.221,-32.391,-0.705,-2.34,-0.608,-0.008,0.148}*(0.36*(B125-52.1551744))^{0,1,2,0,1,3,1,0,2}*(0.36*(C125-5.38720621))^{1,1,1,3,0,1,3,2,3}) -> -576174.5704 | F125: =463000+SUM({309056.544,3638.893,73.077,-157.984,59.788,0.433,-6.439,-0.032,0.092,-0.054}*(0.36*(B125-52.1551744))^{1,0,2,1,3,0,2,1,0,1}*(0.36*(C125-5.38720621))^{0,2,0,2,0,1,2,1,4,4}) -> -5693465.174
A126: 123 | E126: =155000+SUM({190094.945,-11832.228,-144.221,-32.391,-0.705,-2.34,-0.608,-0.008,0.148}*(0.36*(B126-52.1551744))^{0,1,2,0,1,3,1,0,2}*(0.36*(C126-5.38720621))^{1,1,1,3,0,1,3,2,3}) -> -576174.5704 | F126: =463000+SUM({309056.544,3638.893,73.077,-157.984,59.788,0.433,-6.439,-0.032,0.092,-0.054}*(0.36*(B126-52.1551744))^{1,0,2,1,3,0,2,1,0,1}*(0.36*(C126-5.38720621))^{0,2,0,2,0,1,2,1,4,4}) -> -5693465.174
A127: 124 | E127: =155000+SUM({190094.945,-11832.228,-144.221,-32.391,-0.705,-2.34,-0.608,-0.008,0.148}*(0.36*(B127-52.1551744))^{0,1,2,0,1,3,1,0,2}*(0.36*(C127-5.38720621))^{1,1,1,3,0,1,3,2,3}) -> -576174.5704 | F127: =463000+SUM({309056.544,3638.893,73.077,-157.984,59.788,0.433,-6.439,-0.032,0.092,-0.054}*(0.36*(B127-52.1551744))^{1,0,2,1,3,0,2,1,0,1}*(0.36*(C127-5.38720621))^{0,2,0,2,0,1,2,1,4,4}) -> -5693465.174
A128: 125 | E128: =155000+SUM({190094.945,-11832.228,-144.221,-32.391,-0.705,-2.34,-0.608,-0.008,0.148}*(0.36*(B128-52.1551744))^{0,1,2,0,1,3,1,0,2}*(0.36*(C128-5.38720621))^{1,1,1,3,0,1,3,2,3}) -> -576174.5704 | F128: =463000+SUM({309056.544,3638.893,73.077,-157.984,59.788,0.433,-6.439,-0.032,0.092,-0.054}*(0.36*(B128-52.1551744))^{1,0,2,1,3,0,2,1,0,1}*(0.36*(C128-5.38720621))^{0,2,0,2,0,1,2,1,4,4}) -> -5693465.174
A129: 126 | E129: =155000+SUM({190094.945,-11832.228,-144.221,-32.391,-0.705,-2.34,-0.608,-0.008,0.148}*(0.36*(B129-52.1551744))^{0,1,2,0,1,3,1,0,2}*(0.36*(C129-5.38720621))^{1,1,1,3,0,1,3,2,3}) -> -576174.5704 | F129: =463000+SUM({309056.544,3638.893,73.077,-157.984,59.788,0.433,-6.439,-0.032,0.092,-0.054}*(0.36*(B129-52.1551744))^{1,0,2,1,3,0,2,1,0,1}*(0.36*(C129-5.38720621))^{0,2,0,2,0,1,2,1,4,4}) -> -5693465.174
A130: 127 | E130: =155000+SUM({190094.945,-11832.228,-144.221,-32.391,-0.705,-2.34,-0.608,-0.008,0.148}*(0.36*(B130-52.1551744))^{0,1,2,0,1,3,1,0,2}*(0.36*(C130-5.38720621))^{1,1,1,3,0,1,3,2,3}) -> -576174.5704 | F130: =463000+SUM({309056.544,3638.893,73.077,-157.984,59.788,0.433,-6.439,-0.032,0.092,-0.054}*(0.36*(B130-52.1551744))^{1,0,2,1,3,0,2,1,0,1}*(0.36*(C130-5.38720621))^{0,2,0,2,0,1,2,1,4,4}) -> -5693465.174
A131: 128 | E131: =155000+SUM({190094.945,-11832.228,-144.221,-32.391,-0.705,-2.34,-0.608,-0.008,0.148}*(0.36*(B131-52.1551744))^{0,1,2,0,1,3,1,0,2}*(0.36*(C131-5.38720621))^{1,1,1,3,0,1,3,2,3}) -> -576174.5704 | F131: =463000+SUM({309056.544,3638.893,73.077,-157.984,59.788,0.433,-6.439,-0.032,0.092,-0.054}*(0.36*(B131-52.1551744))^{1,0,2,1,3,0,2,1,0,1}*(0.36*(C131-5.38720621))^{0,2,0,2,0,1,2,1,4,4}) -> -5693465.174
A132: 129 | E132: =155000+SUM({190094.945,-11832.228,-144.221,-32.391,-0.705,-2.34,-0.608,-0.008,0.148}*(0.36*(B132-52.1551744))^{0,1,2,0,1,3,1,0,2}*(0.36*(C132-5.38720621))^{1,1,1,3,0,1,3,2,3}) -> -576174.5704 | F132: =463000+SUM({309056.544,3638.893,73.077,-157.984,59.788,0.433,-6.439,-0.032,0.092,-0.054}*(0.36*(B132-52.1551744))^{1,0,2,1,3,0,2,1,0,1}*(0.36*(C132-5.38720621))^{0,2,0,2,0,1,2,1,4,4}) -> -5693465.174
A133: 130 | E133: =155000+SUM({190094.945,-11832.228,-144.221,-32.391,-0.705,-2.34,-0.608,-0.008,0.148}*(0.36*(B133-52.1551744))^{0,1,2,0,1,3,1,0,2}*(0.36*(C133-5.38720621))^{1,1,1,3,0,1,3,2,3}) -> -576174.5704 | F133: =463000+SUM({309056.544,3638.893,73.077,-157.984,59.788,0.433,-6.439,-0.032,0.092,-0.054}*(0.36*(B133-52.1551744))^{1,0,2,1,3,0,2,1,0,1}*(0.36*(C133-5.38720621))^{0,2,0,2,0,1,2,1,4,4}) -> -5693465.174
A134: 131 | E134: =155000+SUM({190094.945,-11832.228,-144.221,-32.391,-0.705,-2.34,-0.608,-0.008,0.148}*(0.36*(B134-52.1551744))^{0,1,2,0,1,3,1,0,2}*(0.36*(C134-5.38720621))^{1,1,1,3,0,1,3,2,3}) -> -576174.5704 | F134: =463000+SUM({309056.544,3638.893,73.077,-157.984,59.788,0.433,-6.439,-0.032,0.092,-0.054}*(0.36*(B134-52.1551744))^{1,0,2,1,3,0,2,1,0,1}*(0.36*(C134-5.38720621))^{0,2,0,2,0,1,2,1,4,4}) -> -5693465.174
A135: 132 | E135: =155000+SUM({190094.945,-11832.228,-144.221,-32.391,-0.705,-2.34,-0.608,-0.008,0.148}*(0.36*(B135-52.1551744))^{0,1,2,0,1,3,1,0,2}*(0.36*(C135-5.38720621))^{1,1,1,3,0,1,3,2,3}) -> -576174.5704 | F135: =463000+SUM({309056.544,3638.893,73.077,-157.984,59.788,0.433,-6.439,-0.032,0.092,-0.054}*(0.36*(B135-52.1551744))^{1,0,2,1,3,0,2,1,0,1}*(0.36*(C135-5.38720621))^{0,2,0,2,0,1,2,1,4,4}) -> -5693465.174
A136: 133 | E136: =155000+SUM({190094.945,-11832.228,-144.221,-32.391,-0.705,-2.34,-0.608,-0.008,0.148}*(0.36*(B136-52.1551744))^{0,1,2,0,1,3,1,0,2}*(0.36*(C136-5.38720621))^{1,1,1,3,0,1,3,2,3}) -> -576174.5704 | F136: =463000+SUM({309056.544,3638.893,73.077,-157.984,59.788,0.433,-6.439,-0.032,0.092,-0.054}*(0.36*(B136-52.1551744))^{1,0,2,1,3,0,2,1,0,1}*(0.36*(C136-5.38720621))^{0,2,0,2,0,1,2,1,4,4}) -> -5693465.174
A137: 134 | E137: =155000+SUM({190094.945,-11832.228,-144.221,-32.391,-0.705,-2.34,-0.608,-0.008,0.148}*(0.36*(B137-52.1551744))^{0,1,2,0,1,3,1,0,2}*(0.36*(C137-5.38720621))^{1,1,1,3,0,1,3,2,3}) -> -576174.5704 | F137: =463000+SUM({309056.544,3638.893,73.077,-157.984,59.788,0.433,-6.439,-0.032,0.092,-0.054}*(0.36*(B137-52.1551744))^{1,0,2,1,3,0,2,1,0,1}*(0.36*(C137-5.38720621))^{0,2,0,2,0,1,2,1,4,4}) -> -5693465.174
A138: 135 | E138: =155000+SUM({190094.945,-11832.228,-144.221,-32.391,-0.705,-2.34,-0.608,-0.008,0.148}*(0.36*(B138-52.1551744))^{0,1,2,0,1,3,1,0,2}*(0.36*(C138-5.38720621))^{1,1,1,3,0,1,3,2,3}) -> -576174.5704 | F138: =463000+SUM({309056.544,3638.893,73.077,-157.984,59.788,0.433,-6.439,-0.032,0.092,-0.054}*(0.36*(B138-52.1551744))^{1,0,2,1,3,0,2,1,0,1}*(0.36*(C138-5.38720621))^{0,2,0,2,0,1,2,1,4,4}) -> -5693465.174
A139: 136 | E139: =155000+SUM({190094.945,-11832.228,-144.221,-32.391,-0.705,-2.34,-0.608,-0.008,0.148}*(0.36*(B139-52.1551744))^{0,1,2,0,1,3,1,0,2}*(0.36*(C139-5.38720621))^{1,1,1,3,0,1,3,2,3}) -> -576174.5704 | F139: =463000+SUM({309056.544,3638.893,73.077,-157.984,59.788,0.433,-6.439,-0.032,0.092,-0.054}*(0.36*(B139-52.1551744))^{1,0,2,1,3,0,2,1,0,1}*(0.36*(C139-5.38720621))^{0,2,0,2,0,1,2,1,4,4}) -> -5693465.174
A140: 137 | E140: =155000+SUM({190094.945,-11832.228,-144.221,-32.391,-0.705,-2.34,-0.608,-0.008,0.148}*(0.36*(B140-52.1551744))^{0,1,2,0,1,3,1,0,2}*(0.36*(C140-5.38720621))^{1,1,1,3,0,1,3,2,3}) -> -576174.5704 | F140: =463000+SUM({309056.544,3638.893,73.077,-157.984,59.788,0.433,-6.439,-0.032,0.092,-0.054}*(0.36*(B140-52.1551744))^{1,0,2,1,3,0,2,1,0,1}*(0.36*(C140-5.38720621))^{0,2,0,2,0,1,2,1,4,4}) -> -5693465.174
A141: 138 | E141: =155000+SUM({190094.945,-11832.228,-144.221,-32.391,-0.705,-2.34,-0.608,-0.008,0.148}*(0.36*(B141-52.1551744))^{0,1,2,0,1,3,1,0,2}*(0.36*(C141-5.38720621))^{1,1,1,3,0,1,3,2,3}) -> -576174.5704 | F141: =463000+SUM({309056.544,3638.893,73.077,-157.984,59.788,0.433,-6.439,-0.032,0.092,-0.054}*(0.36*(B141-52.1551744))^{1,0,2,1,3,0,2,1,0,1}*(0.36*(C141-5.38720621))^{0,2,0,2,0,1,2,1,4,4}) -> -5693465.174
A142: 139 | E142: =155000+SUM({190094.945,-11832.228,-144.221,-32.391,-0.705,-2.34,-0.608,-0.008,0.148}*(0.36*(B142-52.1551744))^{0,1,2,0,1,3,1,0,2}*(0.36*(C142-5.38720621))^{1,1,1,3,0,1,3,2,3}) -> -576174.5704 | F142: =463000+SUM({309056.544,3638.893,73.077,-157.984,59.788,0.433,-6.439,-0.032,0.092,-0.054}*(0.36*(B142-52.1551744))^{1,0,2,1,3,0,2,1,0,1}*(0.36*(C142-5.38720621))^{0,2,0,2,0,1,2,1,4,4}) -> -5693465.174
A143: 140 | E143: =155000+SUM({190094.945,-11832.228,-144.221,-32.391,-0.705,-2.34,-0.608,-0.008,0.148}*(0.36*(B143-52.1551744))^{0,1,2,0,1,3,1,0,2}*(0.36*(C143-5.38720621))^{1,1,1,3,0,1,3,2,3}) -> -576174.5704 | F143: =463000+SUM({309056.544,3638.893,73.077,-157.984,59.788,0.433,-6.439,-0.032,0.092,-0.054}*(0.36*(B143-52.1551744))^{1,0,2,1,3,0,2,1,0,1}*(0.36*(C143-5.38720621))^{0,2,0,2,0,1,2,1,4,4}) -> -5693465.174
A144: 141 | E144: =155000+SUM({190094.945,-11832.228,-144.221,-32.391,-0.705,-2.34,-0.608,-0.008,0.148}*(0.36*(B144-52.1551744))^{0,1,2,0,1,3,1,0,2}*(0.36*(C144-5.38720621))^{1,1,1,3,0,1,3,2,3}) -> -576174.5704 | F144: =463000+SUM({309056.544,3638.893,73.077,-157.984,59.788,0.433,-6.439,-0.032,0.092,-0.054}*(0.36*(B144-52.1551744))^{1,0,2,1,3,0,2,1,0,1}*(0.36*(C144-5.38720621))^{0,2,0,2,0,1,2,1,4,4}) -> -5693465.174
A145: 142 | E145: =155000+SUM({190094.945,-11832.228,-144.221,-32.391,-0.705,-2.34,-0.608,-0.008,0.148}*(0.36*(B145-52.1551744))^{0,1,2,0,1,3,1,0,2}*(0.36*(C145-5.38720621))^{1,1,1,3,0,1,3,2,3}) -> -576174.5704 | F145: =463000+SUM({309056.544,3638.893,73.077,-157.984,59.788,0.433,-6.439,-0.032,0.092,-0.054}*(0.36*(B145-52.1551744))^{1,0,2,1,3,0,2,1,0,1}*(0.36*(C145-5.38720621))^{0,2,0,2,0,1,2,1,4,4}) -> -5693465.174
A146: 143 | E146: =155000+SUM({190094.945,-11832.228,-144.221,-32.391,-0.705,-2.34,-0.608,-0.008,0.148}*(0.36*(B146-52.1551744))^{0,1,2,0,1,3,1,0,2}*(0.36*(C146-5.38720621))^{1,1,1,3,0,1,3,2,3}) -> -576174.5704 | F146: =463000+SUM({309056.544,3638.893,73.077,-157.984,59.788,0.433,-6.439,-0.032,0.092,-0.054}*(0.36*(B146-52.1551744))^{1,0,2,1,3,0,2,1,0,1}*(0.36*(C146-5.38720621))^{0,2,0,2,0,1,2,1,4,4}) -> -5693465.174
A147: 144 | E147: =155000+SUM({190094.945,-11832.228,-144.221,-32.391,-0.705,-2.34,-0.608,-0.008,0.148}*(0.36*(B147-52.1551744))^{0,1,2,0,1,3,1,0,2}*(0.36*(C147-5.38720621))^{1,1,1,3,0,1,3,2,3}) -> -576174.5704 | F147: =463000+SUM({309056.544,3638.893,73.077,-157.984,59.788,0.433,-6.439,-0.032,0.092,-0.054}*(0.36*(B147-52.1551744))^{1,0,2,1,3,0,2,1,0,1}*(0.36*(C147-5.38720621))^{0,2,0,2,0,1,2,1,4,4}) -> -5693465.174
A148: 145 | E148: =155000+SUM({190094.945,-11832.228,-144.221,-32.391,-0.705,-2.34,-0.608,-0.008,0.148}*(0.36*(B148-52.1551744))^{0,1,2,0,1,3,1,0,2}*(0.36*(C148-5.38720621))^{1,1,1,3,0,1,3,2,3}) -> -576174.5704 | F148: =463000+SUM({309056.544,3638.893,73.077,-157.984,59.788,0.433,-6.439,-0.032,0.092,-0.054}*(0.36*(B148-52.1551744))^{1,0,2,1,3,0,2,1,0,1}*(0.36*(C148-5.38720621))^{0,2,0,2,0,1,2,1,4,4}) -> -5693465.174
A149: 146 | E149: =155000+SUM({190094.945,-11832.228,-144.221,-32.391,-0.705,-2.34,-0.608,-0.008,0.148}*(0.36*(B149-52.1551744))^{0,1,2,0,1,3,1,0,2}*(0.36*(C149-5.38720621))^{1,1,1,3,0,1,3,2,3}) -> -576174.5704 | F149: =463000+SUM({309056.544,3638.893,73.077,-157.984,59.788,0.433,-6.439,-0.032,0.092,-0.054}*(0.36*(B149-52.1551744))^{1,0,2,1,3,0,2,1,0,1}*(0.36*(C149-5.38720621))^{0,2,0,2,0,1,2,1,4,4}) -> -5693465.174
A150: 147 | E150: =155000+SUM({190094.945,-11832.228,-144.221,-32.391,-0.705,-2.34,-0.608,-0.008,0.148}*(0.36*(B150-52.1551744))^{0,1,2,0,1,3,1,0,2}*(0.36*(C150-5.38720621))^{1,1,1,3,0,1,3,2,3}) -> -576174.5704 | F150: =463000+SUM({309056.544,3638.893,73.077,-157.984,59.788,0.433,-6.439,-0.032,0.092,-0.054}*(0.36*(B150-52.1551744))^{1,0,2,1,3,0,2,1,0,1}*(0.36*(C150-5.38720621))^{0,2,0,2,0,1,2,1,4,4}) -> -5693465.174
A151: 148 | E151: =155000+SUM({190094.945,-11832.228,-144.221,-32.391,-0.705,-2.34,-0.608,-0.008,0.148}*(0.36*(B151-52.1551744))^{0,1,2,0,1,3,1,0,2}*(0.36*(C151-5.38720621))^{1,1,1,3,0,1,3,2,3}) -> -576174.5704 | F151: =463000+SUM({309056.544,3638.893,73.077,-157.984,59.788,0.433,-6.439,-0.032,0.092,-0.054}*(0.36*(B151-52.1551744))^{1,0,2,1,3,0,2,1,0,1}*(0.36*(C151-5.38720621))^{0,2,0,2,0,1,2,1,4,4}) -> -5693465.174
A152: 149 | E152: =155000+SUM({190094.945,-11832.228,-144.221,-32.391,-0.705,-2.34,-0.608,-0.008,0.148}*(0.36*(B152-52.1551744))^{0,1,2,0,1,3,1,0,2}*(0.36*(C152-5.38720621))^{1,1,1,3,0,1,3,2,3}) -> -576174.5704 | F152: =463000+SUM({309056.544,3638.893,73.077,-157.984,59.788,0.433,-6.439,-0.032,0.092,-0.054}*(0.36*(B152-52.1551744))^{1,0,2,1,3,0,2,1,0,1}*(0.36*(C152-5.38720621))^{0,2,0,2,0,1,2,1,4,4}) -> -5693465.174
A153: 150 | E153: =155000+SUM({190094.945,-11832.228,-144.221,-32.391,-0.705,-2.34,-0.608,-0.008,0.148}*(0.36*(B153-52.1551744))^{0,1,2,0,1,3,1,0,2}*(0.36*(C153-5.38720621))^{1,1,1,3,0,1,3,2,3}) -> -576174.5704 | F153: =463000+SUM({309056.544,3638.893,73.077,-157.984,59.788,0.433,-6.439,-0.032,0.092,-0.054}*(0.36*(B153-52.1551744))^{1,0,2,1,3,0,2,1,0,1}*(0.36*(C153-5.38720621))^{0,2,0,2,0,1,2,1,4,4}) -> -5693465.174
A154: 151 | E154: =155000+SUM({190094.945,-11832.228,-144.221,-32.391,-0.705,-2.34,-0.608,-0.008,0.148}*(0.36*(B154-52.1551744))^{0,1,2,0,1,3,1,0,2}*(0.36*(C154-5.38720621))^{1,1,1,3,0,1,3,2,3}) -> -576174.5704 | F154: =463000+SUM({309056.544,3638.893,73.077,-157.984,59.788,0.433,-6.439,-0.032,0.092,-0.054}*(0.36*(B154-52.1551744))^{1,0,2,1,3,0,2,1,0,1}*(0.36*(C154-5.38720621))^{0,2,0,2,0,1,2,1,4,4}) -> -5693465.174
A155: 152 | E155: =155000+SUM({190094.945,-11832.228,-144.221,-32.391,-0.705,-2.34,-0.608,-0.008,0.148}*(0.36*(B155-52.1551744))^{0,1,2,0,1,3,1,0,2}*(0.36*(C155-5.38720621))^{1,1,1,3,0,1,3,2,3}) -> -576174.5704 | F155: =463000+SUM({309056.544,3638.893,73.077,-157.984,59.788,0.433,-6.439,-0.032,0.092,-0.054}*(0.36*(B155-52.1551744))^{1,0,2,1,3,0,2,1,0,1}*(0.36*(C155-5.38720621))^{0,2,0,2,0,1,2,1,4,4}) -> -5693465.174
A156: 153 | E156: =155000+SUM({190094.945,-11832.228,-144.221,-32.391,-0.705,-2.34,-0.608,-0.008,0.148}*(0.36*(B156-52.1551744))^{0,1,2,0,1,3,1,0,2}*(0.36*(C156-5.38720621))^{1,1,1,3,0,1,3,2,3}) -> -576174.5704 | F156: =463000+SUM({309056.544,3638.893,73.077,-157.984,59.788,0.433,-6.439,-0.032,0.092,-0.054}*(0.36*(B156-52.1551744))^{1,0,2,1,3,0,2,1,0,1}*(0.36*(C156-5.38720621))^{0,2,0,2,0,1,2,1,4,4}) -> -5693465.174
A157: 154 | E157: =155000+SUM({190094.945,-11832.228,-144.221,-32.391,-0.705,-2.34,-0.608,-0.008,0.148}*(0.36*(B157-52.1551744))^{0,1,2,0,1,3,1,0,2}*(0.36*(C157-5.38720621))^{1,1,1,3,0,1,3,2,3}) -> -576174.5704 | F157: =463000+SUM({309056.544,3638.893,73.077,-157.984,59.788,0.433,-6.439,-0.032,0.092,-0.054}*(0.36*(B157-52.1551744))^{1,0,2,1,3,0,2,1,0,1}*(0.36*(C157-5.38720621))^{0,2,0,2,0,1,2,1,4,4}) -> -5693465.174
A158: 155 | E158: =155000+SUM({190094.945,-11832.228,-144.221,-32.391,-0.705,-2.34,-0.608,-0.008,0.148}*(0.36*(B158-52.1551744))^{0,1,2,0,1,3,1,0,2}*(0.36*(C158-5.38720621))^{1,1,1,3,0,1,3,2,3}) -> -576174.5704 | F158: =463000+SUM({309056.544,3638.893,73.077,-157.984,59.788,0.433,-6.439,-0.032,0.092,-0.054}*(0.36*(B158-52.1551744))^{1,0,2,1,3,0,2,1,0,1}*(0.36*(C158-5.38720621))^{0,2,0,2,0,1,2,1,4,4}) -> -5693465.174
A159: 156 | E159: =155000+SUM({190094.945,-11832.228,-144.221,-32.391,-0.705,-2.34,-0.608,-0.008,0.148}*(0.36*(B159-52.1551744))^{0,1,2,0,1,3,1,0,2}*(0.36*(C159-5.38720621))^{1,1,1,3,0,1,3,2,3}) -> -576174.5704 | F159: =463000+SUM({309056.544,3638.893,73.077,-157.984,59.788,0.433,-6.439,-0.032,0.092,-0.054}*(0.36*(B159-52.1551744))^{1,0,2,1,3,0,2,1,0,1}*(0.36*(C159-5.38720621))^{0,2,0,2,0,1,2,1,4,4}) -> -5693465.174
A160: 157 | E160: =155000+SUM({190094.945,-11832.228,-144.221,-32.391,-0.705,-2.34,-0.608,-0.008,0.148}*(0.36*(B160-52.1551744))^{0,1,2,0,1,3,1,0,2}*(0.36*(C160-5.38720621))^{1,1,1,3,0,1,3,2,3}) -> -576174.5704 | F160: =463000+SUM({309056.544,3638.893,73.077,-157.984,59.788,0.433,-6.439,-0.032,0.092,-0.054}*(0.36*(B160-52.1551744))^{1,0,2,1,3,0,2,1,0,1}*(0.36*(C160-5.38720621))^{0,2,0,2,0,1,2,1,4,4}) -> -5693465.174
A161: 158 | E161: =155000+SUM({190094.945,-11832.228,-144.221,-32.391,-0.705,-2.34,-0.608,-0.008,0.148}*(0.36*(B161-52.1551744))^{0,1,2,0,1,3,1,0,2}*(0.36*(C161-5.38720621))^{1,1,1,3,0,1,3,2,3}) -> -576174.5704 | F161: =463000+SUM({309056.544,3638.893,73.077,-157.984,59.788,0.433,-6.439,-0.032,0.092,-0.054}*(0.36*(B161-52.1551744))^{1,0,2,1,3,0,2,1,0,1}*(0.36*(C161-5.38720621))^{0,2,0,2,0,1,2,1,4,4}) -> -5693465.174
A162: 159 | E162: =155000+SUM({190094.945,-11832.228,-144.221,-32.391,-0.705,-2.34,-0.608,-0.008,0.148}*(0.36*(B162-52.1551744))^{0,1,2,0,1,3,1,0,2}*(0.36*(C162-5.38720621))^{1,1,1,3,0,1,3,2,3}) -> -576174.5704 | F162: =463000+SUM({309056.544,3638.893,73.077,-157.984,59.788,0.433,-6.439,-0.032,0.092,-0.054}*(0.36*(B162-52.1551744))^{1,0,2,1,3,0,2,1,0,1}*(0.36*(C162-5.38720621))^{0,2,0,2,0,1,2,1,4,4}) -> -5693465.174
A163: 160 | E163: =155000+SUM({190094.945,-11832.228,-144.221,-32.391,-0.705,-2.34,-0.608,-0.008,0.148}*(0.36*(B163-52.1551744))^{0,1,2,0,1,3,1,0,2}*(0.36*(C163-5.38720621))^{1,1,1,3,0,1,3,2,3}) -> -576174.5704 | F163: =463000+SUM({309056.544,3638.893,73.077,-157.984,59.788,0.433,-6.439,-0.032,0.092,-0.054}*(0.36*(B163-52.1551744))^{1,0,2,1,3,0,2,1,0,1}*(0.36*(C163-5.38720621))^{0,2,0,2,0,1,2,1,4,4}) -> -5693465.174
A164: 161 | E164: =155000+SUM({190094.945,-11832.228,-144.221,-32.391,-0.705,-2.34,-0.608,-0.008,0.148}*(0.36*(B164-52.1551744))^{0,1,2,0,1,3,1,0,2}*(0.36*(C164-5.38720621))^{1,1,1,3,0,1,3,2,3}) -> -576174.5704 | F164: =463000+SUM({309056.544,3638.893,73.077,-157.984,59.788,0.433,-6.439,-0.032,0.092,-0.054}*(0.36*(B164-52.1551744))^{1,0,2,1,3,0,2,1,0,1}*(0.36*(C164-5.38720621))^{0,2,0,2,0,1,2,1,4,4}) -> -5693465.174
A165: 162 | E165: =155000+SUM({190094.945,-11832.228,-144.221,-32.391,-0.705,-2.34,-0.608,-0.008,0.148}*(0.36*(B165-52.1551744))^{0,1,2,0,1,3,1,0,2}*(0.36*(C165-5.38720621))^{1,1,1,3,0,1,3,2,3}) -> -576174.5704 | F165: =463000+SUM({309056.544,3638.893,73.077,-157.984,59.788,0.433,-6.439,-0.032,0.092,-0.054}*(0.36*(B165-52.1551744))^{1,0,2,1,3,0,2,1,0,1}*(0.36*(C165-5.38720621))^{0,2,0,2,0,1,2,1,4,4}) -> -5693465.174
A166: 163 | E166: =155000+SUM({190094.945,-11832.228,-144.221,-32.391,-0.705,-2.34,-0.608,-0.008,0.148}*(0.36*(B166-52.1551744))^{0,1,2,0,1,3,1,0,2}*(0.36*(C166-5.38720621))^{1,1,1,3,0,1,3,2,3}) -> -576174.5704 | F166: =463000+SUM({309056.544,3638.893,73.077,-157.984,59.788,0.433,-6.439,-0.032,0.092,-0.054}*(0.36*(B166-52.1551744))^{1,0,2,1,3,0,2,1,0,1}*(0.36*(C166-5.38720621))^{0,2,0,2,0,1,2,1,4,4}) -> -5693465.174
A167: 164 | E167: =155000+SUM({190094.945,-11832.228,-144.221,-32.391,-0.705,-2.34,-0.608,-0.008,0.148}*(0.36*(B167-52.1551744))^{0,1,2,0,1,3,1,0,2}*(0.36*(C167-5.38720621))^{1,1,1,3,0,1,3,2,3}) -> -576174.5704 | F167: =463000+SUM({309056.544,3638.893,73.077,-157.984,59.788,0.433,-6.439,-0.032,0.092,-0.054}*(0.36*(B167-52.1551744))^{1,0,2,1,3,0,2,1,0,1}*(0.36*(C167-5.38720621))^{0,2,0,2,0,1,2,1,4,4}) -> -5693465.174
A168: 165 | E168: =155000+SUM({190094.945,-11832.228,-144.221,-32.391,-0.705,-2.34,-0.608,-0.008,0.148}*(0.36*(B168-52.1551744))^{0,1,2,0,1,3,1,0,2}*(0.36*(C168-5.38720621))^{1,1,1,3,0,1,3,2,3}) -> -576174.5704 | F168: =463000+SUM({309056.544,3638.893,73.077,-157.984,59.788,0.433,-6.439,-0.032,0.092,-0.054}*(0.36*(B168-52.1551744))^{1,0,2,1,3,0,2,1,0,1}*(0.36*(C168-5.38720621))^{0,2,0,2,0,1,2,1,4,4}) -> -5693465.174
A169: 166 | E169: =155000+SUM({190094.945,-11832.228,-144.221,-32.391,-0.705,-2.34,-0.608,-0.008,0.148}*(0.36*(B169-52.1551744))^{0,1,2,0,1,3,1,0,2}*(0.36*(C169-5.38720621))^{1,1,1,3,0,1,3,2,3}) -> -576174.5704 | F169: =463000+SUM({309056.544,3638.893,73.077,-157.984,59.788,0.433,-6.439,-0.032,0.092,-0.054}*(0.36*(B169-52.1551744))^{1,0,2,1,3,0,2,1,0,1}*(0.36*(C169-5.38720621))^{0,2,0,2,0,1,2,1,4,4}) -> -5693465.174
A170: 167 | E170: =155000+SUM({190094.945,-11832.228,-144.221,-32.391,-0.705,-2.34,-0.608,-0.008,0.148}*(0.36*(B170-52.1551744))^{0,1,2,0,1,3,1,0,2}*(0.36*(C170-5.38720621))^{1,1,1,3,0,1,3,2,3}) -> -576174.5704 | F170: =463000+SUM({309056.544,3638.893,73.077,-157.984,59.788,0.433,-6.439,-0.032,0.092,-0.054}*(0.36*(B170-52.1551744))^{1,0,2,1,3,0,2,1,0,1}*(0.36*(C170-5.38720621))^{0,2,0,2,0,1,2,1,4,4}) -> -5693465.174
A171: 168 | E171: =155000+SUM({190094.945,-11832.228,-144.221,-32.391,-0.705,-2.34,-0.608,-0.008,0.148}*(0.36*(B171-52.1551744))^{0,1,2,0,1,3,1,0,2}*(0.36*(C171-5.38720621))^{1,1,1,3,0,1,3,2,3}) -> -576174.5704 | F171: =463000+SUM({309056.544,3638.893,73.077,-157.984,59.788,0.433,-6.439,-0.032,0.092,-0.054}*(0.36*(B171-52.1551744))^{1,0,2,1,3,0,2,1,0,1}*(0.36*(C171-5.38720621))^{0,2,0,2,0,1,2,1,4,4}) -> -5693465.174
A172: 169 | E172: =155000+SUM({190094.945,-11832.228,-144.221,-32.391,-0.705,-2.34,-0.608,-0.008,0.148}*(0.36*(B172-52.1551744))^{0,1,2,0,1,3,1,0,2}*(0.36*(C172-5.38720621))^{1,1,1,3,0,1,3,2,3}) -> -576174.5704 | F172: =463000+SUM({309056.544,3638.893,73.077,-157.984,59.788,0.433,-6.439,-0.032,0.092,-0.054}*(0.36*(B172-52.1551744))^{1,0,2,1,3,0,2,1,0,1}*(0.36*(C172-5.38720621))^{0,2,0,2,0,1,2,1,4,4}) -> -5693465.174
A173: 170 | E173: =155000+SUM({190094.945,-11832.228,-144.221,-32.391,-0.705,-2.34,-0.608,-0.008,0.148}*(0.36*(B173-52.1551744))^{0,1,2,0,1,3,1,0,2}*(0.36*(C173-5.38720621))^{1,1,1,3,0,1,3,2,3}) -> -576174.5704 | F173: =463000+SUM({309056.544,3638.893,73.077,-157.984,59.788,0.433,-6.439,-0.032,0.092,-0.054}*(0.36*(B173-52.1551744))^{1,0,2,1,3,0,2,1,0,1}*(0.36*(C173-5.38720621))^{0,2,0,2,0,1,2,1,4,4}) -> -5693465.174
A174: 171 | E174: =155000+SUM({190094.945,-11832.228,-144.221,-32.391,-0.705,-2.34,-0.608,-0.008,0.148}*(0.36*(B174-52.1551744))^{0,1,2,0,1,3,1,0,2}*(0.36*(C174-5.38720621))^{1,1,1,3,0,1,3,2,3}) -> -576174.5704 | F174: =463000+SUM({309056.544,3638.893,73.077,-157.984,59.788,0.433,-6.439,-0.032,0.092,-0.054}*(0.36*(B174-52.1551744))^{1,0,2,1,3,0,2,1,0,1}*(0.36*(C174-5.38720621))^{0,2,0,2,0,1,2,1,4,4}) -> -5693465.174
A175: 172 | E175: =155000+SUM({190094.945,-11832.228,-144.221,-32.391,-0.705,-2.34,-0.608,-0.008,0.148}*(0.36*(B175-52.1551744))^{0,1,2,0,1,3,1,0,2}*(0.36*(C175-5.38720621))^{1,1,1,3,0,1,3,2,3}) -> -576174.5704 | F175: =463000+SUM({309056.544,3638.893,73.077,-157.984,59.788,0.433,-6.439,-0.032,0.092,-0.054}*(0.36*(B175-52.1551744))^{1,0,2,1,3,0,2,1,0,1}*(0.36*(C175-5.38720621))^{0,2,0,2,0,1,2,1,4,4}) -> -5693465.174
A176: 173 | E176: =155000+SUM({190094.945,-11832.228,-144.221,-32.391,-0.705,-2.34,-0.608,-0.008,0.148}*(0.36*(B176-52.1551744))^{0,1,2,0,1,3,1,0,2}*(0.36*(C176-5.38720621))^{1,1,1,3,0,1,3,2,3}) -> -576174.5704 | F176: =463000+SUM({309056.544,3638.893,73.077,-157.984,59.788,0.433,-6.439,-0.032,0.092,-0.054}*(0.36*(B176-52.1551744))^{1,0,2,1,3,0,2,1,0,1}*(0.36*(C176-5.38720621))^{0,2,0,2,0,1,2,1,4,4}) -> -5693465.174
A177: 174 | E177: =155000+SUM({190094.945,-11832.228,-144.221,-32.391,-0.705,-2.34,-0.608,-0.008,0.148}*(0.36*(B177-52.1551744))^{0,1,2,0,1,3,1,0,2}*(0.36*(C177-5.38720621))^{1,1,1,3,0,1,3,2,3}) -> -576174.5704 | F177: =463000+SUM({309056.544,3638.893,73.077,-157.984,59.788,0.433,-6.439,-0.032,0.092,-0.054}*(0.36*(B177-52.1551744))^{1,0,2,1,3,0,2,1,0,1}*(0.36*(C177-5.38720621))^{0,2,0,2,0,1,2,1,4,4}) -> -5693465.174
A178: 175 | E178: =155000+SUM({190094.945,-11832.228,-144.221,-32.391,-0.705,-2.34,-0.608,-0.008,0.148}*(0.36*(B178-52.1551744))^{0,1,2,0,1,3,1,0,2}*(0.36*(C178-5.38720621))^{1,1,1,3,0,1,3,2,3}) -> -576174.5704 | F178: =463000+SUM({309056.544,3638.893,73.077,-157.984,59.788,0.433,-6.439,-0.032,0.092,-0.054}*(0.36*(B178-52.1551744))^{1,0,2,1,3,0,2,1,0,1}*(0.36*(C178-5.38720621))^{0,2,0,2,0,1,2,1,4,4}) -> -5693465.174
A179: 176 | E179: =155000+SUM({190094.945,-11832.228,-144.221,-32.391,-0.705,-2.34,-0.608,-0.008,0.148}*(0.36*(B179-52.1551744))^{0,1,2,0,1,3,1,0,2}*(0.36*(C179-5.38720621))^{1,1,1,3,0,1,3,2,3}) -> -576174.5704 | F179: =463000+SUM({309056.544,3638.893,73.077,-157.984,59.788,0.433,-6.439,-0.032,0.092,-0.054}*(0.36*(B179-52.1551744))^{1,0,2,1,3,0,2,1,0,1}*(0.36*(C179-5.38720621))^{0,2,0,2,0,1,2,1,4,4}) -> -5693465.174
A180: 177 | E180: =155000+SUM({190094.945,-11832.228,-144.221,-32.391,-0.705,-2.34,-0.608,-0.008,0.148}*(0.36*(B180-52.1551744))^{0,1,2,0,1,3,1,0,2}*(0.36*(C180-5.38720621))^{1,1,1,3,0,1,3,2,3}) -> -576174.5704 | F180: =463000+SUM({309056.544,3638.893,73.077,-157.984,59.788,0.433,-6.439,-0.032,0.092,-0.054}*(0.36*(B180-52.1551744))^{1,0,2,1,3,0,2,1,0,1}*(0.36*(C180-5.38720621))^{0,2,0,2,0,1,2,1,4,4}) -> -5693465.174
A181: 178 | E181: =155000+SUM({190094.945,-11832.228,-144.221,-32.391,-0.705,-2.34,-0.608,-0.008,0.148}*(0.36*(B181-52.1551744))^{0,1,2,0,1,3,1,0,2}*(0.36*(C181-5.38720621))^{1,1,1,3,0,1,3,2,3}) -> -576174.5704 | F181: =463000+SUM({309056.544,3638.893,73.077,-157.984,59.788,0.433,-6.439,-0.032,0.092,-0.054}*(0.36*(B181-52.1551744))^{1,0,2,1,3,0,2,1,0,1}*(0.36*(C181-5.38720621))^{0,2,0,2,0,1,2,1,4,4}) -> -5693465.174
A182: 179 | E182: =155000+SUM({190094.945,-11832.228,-144.221,-32.391,-0.705,-2.34,-0.608,-0.008,0.148}*(0.36*(B182-52.1551744))^{0,1,2,0,1,3,1,0,2}*(0.36*(C182-5.38720621))^{1,1,1,3,0,1,3,2,3}) -> -576174.5704 | F182: =463000+SUM({309056.544,3638.893,73.077,-157.984,59.788,0.433,-6.439,-0.032,0.092,-0.054}*(0.36*(B182-52.1551744))^{1,0,2,1,3,0,2,1,0,1}*(0.36*(C182-5.38720621))^{0,2,0,2,0,1,2,1,4,4}) -> -5693465.174
A183: 180 | E183: =155000+SUM({190094.945,-11832.228,-144.221,-32.391,-0.705,-2.34,-0.608,-0.008,0.148}*(0.36*(B183-52.1551744))^{0,1,2,0,1,3,1,0,2}*(0.36*(C183-5.38720621))^{1,1,1,3,0,1,3,2,3}) -> -576174.5704 | F183: =463000+SUM({309056.544,3638.893,73.077,-157.984,59.788,0.433,-6.439,-0.032,0.092,-0.054}*(0.36*(B183-52.1551744))^{1,0,2,1,3,0,2,1,0,1}*(0.36*(C183-5.38720621))^{0,2,0,2,0,1,2,1,4,4}) -> -5693465.174
A184: 181 | E184: =155000+SUM({190094.945,-11832.228,-144.221,-32.391,-0.705,-2.34,-0.608,-0.008,0.148}*(0.36*(B184-52.1551744))^{0,1,2,0,1,3,1,0,2}*(0.36*(C184-5.38720621))^{1,1,1,3,0,1,3,2,3}) -> -576174.5704 | F184: =463000+SUM({309056.544,3638.893,73.077,-157.984,59.788,0.433,-6.439,-0.032,0.092,-0.054}*(0.36*(B184-52.1551744))^{1,0,2,1,3,0,2,1,0,1}*(0.36*(C184-5.38720621))^{0,2,0,2,0,1,2,1,4,4}) -> -5693465.174
A185: 182 | E185: =155000+SUM({190094.945,-11832.228,-144.221,-32.391,-0.705,-2.34,-0.608,-0.008,0.148}*(0.36*(B185-52.1551744))^{0,1,2,0,1,3,1,0,2}*(0.36*(C185-5.38720621))^{1,1,1,3,0,1,3,2,3}) -> -576174.5704 | F185: =463000+SUM({309056.544,3638.893,73.077,-157.984,59.788,0.433,-6.439,-0.032,0.092,-0.054}*(0.36*(B185-52.1551744))^{1,0,2,1,3,0,2,1,0,1}*(0.36*(C185-5.38720621))^{0,2,0,2,0,1,2,1,4,4}) -> -5693465.174
A186: 183 | E186: =155000+SUM({190094.945,-11832.228,-144.221,-32.391,-0.705,-2.34,-0.608,-0.008,0.148}*(0.36*(B186-52.1551744))^{0,1,2,0,1,3,1,0,2}*(0.36*(C186-5.38720621))^{1,1,1,3,0,1,3,2,3}) -> -576174.5704 | F186: =463000+SUM({309056.544,3638.893,73.077,-157.984,59.788,0.433,-6.439,-0.032,0.092,-0.054}*(0.36*(B186-52.1551744))^{1,0,2,1,3,0,2,1,0,1}*(0.36*(C186-5.38720621))^{0,2,0,2,0,1,2,1,4,4}) -> -5693465.174
A187: 184 | E187: =155000+SUM({190094.945,-11832.228,-144.221,-32.391,-0.705,-2.34,-0.608,-0.008,0.148}*(0.36*(B187-52.1551744))^{0,1,2,0,1,3,1,0,2}*(0.36*(C187-5.38720621))^{1,1,1,3,0,1,3,2,3}) -> -576174.5704 | F187: =463000+SUM({309056.544,3638.893,73.077,-157.984,59.788,0.433,-6.439,-0.032,0.092,-0.054}*(0.36*(B187-52.1551744))^{1,0,2,1,3,0,2,1,0,1}*(0.36*(C187-5.38720621))^{0,2,0,2,0,1,2,1,4,4}) -> -5693465.174
A188: 185 | E188: =155000+SUM({190094.945,-11832.228,-144.221,-32.391,-0.705,-2.34,-0.608,-0.008,0.148}*(0.36*(B188-52.1551744))^{0,1,2,0,1,3,1,0,2}*(0.36*(C188-5.38720621))^{1,1,1,3,0,1,3,2,3}) -> -576174.5704 | F188: =463000+SUM({309056.544,3638.893,73.077,-157.984,59.788,0.433,-6.439,-0.032,0.092,-0.054}*(0.36*(B188-52.1551744))^{1,0,2,1,3,0,2,1,0,1}*(0.36*(C188-5.38720621))^{0,2,0,2,0,1,2,1,4,4}) -> -5693465.174
A189: 186 | E189: =155000+SUM({190094.945,-11832.228,-144.221,-32.391,-0.705,-2.34,-0.608,-0.008,0.148}*(0.36*(B189-52.1551744))^{0,1,2,0,1,3,1,0,2}*(0.36*(C189-5.38720621))^{1,1,1,3,0,1,3,2,3}) -> -576174.5704 | F189: =463000+SUM({309056.544,3638.893,73.077,-157.984,59.788,0.433,-6.439,-0.032,0.092,-0.054}*(0.36*(B189-52.1551744))^{1,0,2,1,3,0,2,1,0,1}*(0.36*(C189-5.38720621))^{0,2,0,2,0,1,2,1,4,4}) -> -5693465.174
A190: 187 | E190: =155000+SUM({190094.945,-11832.228,-144.221,-32.391,-0.705,-2.34,-0.608,-0.008,0.148}*(0.36*(B190-52.1551744))^{0,1,2,0,1,3,1,0,2}*(0.36*(C190-5.38720621))^{1,1,1,3,0,1,3,2,3}) -> -576174.5704 | F190: =463000+SUM({309056.544,3638.893,73.077,-157.984,59.788,0.433,-6.439,-0.032,0.092,-0.054}*(0.36*(B190-52.1551744))^{1,0,2,1,3,0,2,1,0,1}*(0.36*(C190-5.38720621))^{0,2,0,2,0,1,2,1,4,4}) -> -5693465.174
A191: 188 | E191: =155000+SUM({190094.945,-11832.228,-144.221,-32.391,-0.705,-2.34,-0.608,-0.008,0.148}*(0.36*(B191-52.1551744))^{0,1,2,0,1,3,1,0,2}*(0.36*(C191-5.38720621))^{1,1,1,3,0,1,3,2,3}) -> -576174.5704 | F191: =463000+SUM({309056.544,3638.893,73.077,-157.984,59.788,0.433,-6.439,-0.032,0.092,-0.054}*(0.36*(B191-52.1551744))^{1,0,2,1,3,0,2,1,0,1}*(0.36*(C191-5.38720621))^{0,2,0,2,0,1,2,1,4,4}) -> -5693465.174
A192: 189 | E192: =155000+SUM({190094.945,-11832.228,-144.221,-32.391,-0.705,-2.34,-0.608,-0.008,0.148}*(0.36*(B192-52.1551744))^{0,1,2,0,1,3,1,0,2}*(0.36*(C192-5.38720621))^{1,1,1,3,0,1,3,2,3}) -> -576174.5704 | F192: =463000+SUM({309056.544,3638.893,73.077,-157.984,59.788,0.433,-6.439,-0.032,0.092,-0.054}*(0.36*(B192-52.1551744))^{1,0,2,1,3,0,2,1,0,1}*(0.36*(C192-5.38720621))^{0,2,0,2,0,1,2,1,4,4}) -> -5693465.174
A193: 190 | E193: =155000+SUM({190094.945,-11832.228,-144.221,-32.391,-0.705,-2.34,-0.608,-0.008,0.148}*(0.36*(B193-52.1551744))^{0,1,2,0,1,3,1,0,2}*(0.36*(C193-5.38720621))^{1,1,1,3,0,1,3,2,3}) -> -576174.5704 | F193: =463000+SUM({309056.544,3638.893,73.077,-157.984,59.788,0.433,-6.439,-0.032,0.092,-0.054}*(0.36*(B193-52.1551744))^{1,0,2,1,3,0,2,1,0,1}*(0.36*(C193-5.38720621))^{0,2,0,2,0,1,2,1,4,4}) -> -5693465.174
A194: 191 | E194: =155000+SUM({190094.945,-11832.228,-144.221,-32.391,-0.705,-2.34,-0.608,-0.008,0.148}*(0.36*(B194-52.1551744))^{0,1,2,0,1,3,1,0,2}*(0.36*(C194-5.38720621))^{1,1,1,3,0,1,3,2,3}) -> -576174.5704 | F194: =463000+SUM({309056.544,3638.893,73.077,-157.984,59.788,0.433,-6.439,-0.032,0.092,-0.054}*(0.36*(B194-52.1551744))^{1,0,2,1,3,0,2,1,0,1}*(0.36*(C194-5.38720621))^{0,2,0,2,0,1,2,1,4,4}) -> -5693465.174
A195: 192 | E195: =155000+SUM({190094.945,-11832.228,-144.221,-32.391,-0.705,-2.34,-0.608,-0.008,0.148}*(0.36*(B195-52.1551744))^{0,1,2,0,1,3,1,0,2}*(0.36*(C195-5.38720621))^{1,1,1,3,0,1,3,2,3}) -> -576174.5704 | F195: =463000+SUM({309056.544,3638.893,73.077,-157.984,59.788,0.433,-6.439,-0.032,0.092,-0.054}*(0.36*(B195-52.1551744))^{1,0,2,1,3,0,2,1,0,1}*(0.36*(C195-5.38720621))^{0,2,0,2,0,1,2,1,4,4}) -> -5693465.174
A196: 193 | E196: =155000+SUM({190094.945,-11832.228,-144.221,-32.391,-0.705,-2.34,-0.608,-0.008,0.148}*(0.36*(B196-52.1551744))^{0,1,2,0,1,3,1,0,2}*(0.36*(C196-5.38720621))^{1,1,1,3,0,1,3,2,3}) -> -576174.5704 | F196: =463000+SUM({309056.544,3638.893,73.077,-157.984,59.788,0.433,-6.439,-0.032,0.092,-0.054}*(0.36*(B196-52.1551744))^{1,0,2,1,3,0,2,1,0,1}*(0.36*(C196-5.38720621))^{0,2,0,2,0,1,2,1,4,4}) -> -5693465.174
A197: 194 | E197: =155000+SUM({190094.945,-11832.228,-144.221,-32.391,-0.705,-2.34,-0.608,-0.008,0.148}*(0.36*(B197-52.1551744))^{0,1,2,0,1,3,1,0,2}*(0.36*(C197-5.38720621))^{1,1,1,3,0,1,3,2,3}) -> -576174.5704 | F197: =463000+SUM({309056.544,3638.893,73.077,-157.984,59.788,0.433,-6.439,-0.032,0.092,-0.054}*(0.36*(B197-52.1551744))^{1,0,2,1,3,0,2,1,0,1}*(0.36*(C197-5.38720621))^{0,2,0,2,0,1,2,1,4,4}) -> -5693465.174
A198: 195 | E198: =155000+SUM({190094.945,-11832.228,-144.221,-32.391,-0.705,-2.34,-0.608,-0.008,0.148}*(0.36*(B198-52.1551744))^{0,1,2,0,1,3,1,0,2}*(0.36*(C198-5.38720621))^{1,1,1,3,0,1,3,2,3}) -> -576174.5704 | F198: =463000+SUM({309056.544,3638.893,73.077,-157.984,59.788,0.433,-6.439,-0.032,0.092,-0.054}*(0.36*(B198-52.1551744))^{1,0,2,1,3,0,2,1,0,1}*(0.36*(C198-5.38720621))^{0,2,0,2,0,1,2,1,4,4}) -> -5693465.174
A199: 196 | E199: =155000+SUM({190094.945,-11832.228,-144.221,-32.391,-0.705,-2.34,-0.608,-0.008,0.148}*(0.36*(B199-52.1551744))^{0,1,2,0,1,3,1,0,2}*(0.36*(C199-5.38720621))^{1,1,1,3,0,1,3,2,3}) -> -576174.5704 | F199: =463000+SUM({309056.544,3638.893,73.077,-157.984,59.788,0.433,-6.439,-0.032,0.092,-0.054}*(0.36*(B199-52.1551744))^{1,0,2,1,3,0,2,1,0,1}*(0.36*(C199-5.38720621))^{0,2,0,2,0,1,2,1,4,4}) -> -5693465.174
A200: 197 | E200: =155000+SUM({190094.945,-11832.228,-144.221,-32.391,-0.705,-2.34,-0.608,-0.008,0.148}*(0.36*(B200-52.1551744))^{0,1,2,0,1,3,1,0,2}*(0.36*(C200-5.38720621))^{1,1,1,3,0,1,3,2,3}) -> -576174.5704 | F200: =463000+SUM({309056.544,3638.893,73.077,-157.984,59.788,0.433,-6.439,-0.032,0.092,-0.054}*(0.36*(B200-52.1551744))^{1,0,2,1,3,0,2,1,0,1}*(0.36*(C200-5.38720621))^{0,2,0,2,0,1,2,1,4,4}) -> -5693465.174
... 3 more rows

Sheet Postcode en huisnr
A1: Geen actie nodig (vooraf ingevuld) | B1: Invullen | C1: Invullen | D1: Geen actie nodig (automatisch o.b.v. postcode + huisnummer) - invullen in SUF (kopiëren en plakken van waarden) | E1: Geen actie nodig (automatisch o.b.v. postcode + huisnummer) - invullen in SUF (kopiëren en plakken van waarden) | F1: Geen actie nodig (automatisch o.b.v. postcode + huisnummer) | G1: Geen actie nodig (automatisch o.b.v. postcode + huisnummer) | H1: Geen actie nodig (automatisch o.b.v. postcode + huisnummer) | I1: Geen actie nodig (automatisch o.b.v. postcode + huisnummer)
A2: Meetlocatienummer | B2: Postcode | C2: Huisnummer | D2: X | E2: Y | F2: Straatnaam | G2: Plaats | H2: hulpkolom 1 | I2: hulpkolom 2
A3: 1 | D3: =_xlfn.NUMBERVALUE(MID(I3,FIND("(",I3)+1,FIND(" ",I3)-FIND("(",I3)-1),".") ->  | E3: =_xlfn.NUMBERVALUE(MID(I3,FIND(" ",I3)+1,FIND(")",I3)-FIND(" ",I3)-1),".") ->  | F3: =FilterXMLWebservice(HYPERLINK("http://geodata.nationaalgeoregister.nl/locatieserver/v3/lookup?wt=xml&id="&H3),"//doc/str[28]") ->  | G3: =FilterXMLWebservice(HYPERLINK("http://geodata.nationaalgeoregister.nl/locatieserver/v3/lookup?wt=xml&id="&H3),"//doc/str[3]") -> gemeente | H3: =FilterXMLWebservice(HYPERLINK("http://geodata.nationaalgeoregister.nl/locatieserver/v3/suggest?wt=xml&q="&B3&" "&C3),"//str[2]") -> gem-339aeade1bbb0005ba845b14d29d2c15 | I3: =FilterXMLWebservice(HYPERLINK("http://geodata.nationaalgeoregister.nl/locatieserver/v3/lookup?wt=xml&id="&H3),"//doc/str[27]") -> 
A4: 2 | D4: =_xlfn.NUMBERVALUE(MID(I4,FIND("(",I4)+1,FIND(" ",I4)-FIND("(",I4)-1),".") ->  | E4: =_xlfn.NUMBERVALUE(MID(I4,FIND(" ",I4)+1,FIND(")",I4)-FIND(" ",I4)-1),".") ->  | F4: =FilterXMLWebservice(HYPERLINK("http://geodata.nationaalgeoregister.nl/locatieserver/v3/lookup?wt=xml&id="&H4),"//doc/str[28]") ->  | G4: =FilterXMLWebservice(HYPERLINK("http://geodata.nationaalgeoregister.nl/locatieserver/v3/lookup?wt=xml&id="&H4),"//doc/str[3]") -> gemeente | H4: gem-339aeade1bbb0005ba845b14d29d2c15 | I4: =FilterXMLWebservice(HYPERLINK("http://geodata.nationaalgeoregister.nl/locatieserver/v3/lookup?wt=xml&id="&H4),"//doc/str[27]") -> 
A5: 3 | G5: gemeente | H5: gem-339aeade1bbb0005ba845b14d29d2c15
A6: 4 | G6: gemeente | H6: gem-339aeade1bbb0005ba845b14d29d2c15
A7: 5 | G7: gemeente | H7: gem-339aeade1bbb0005ba845b14d29d2c15
A8: 6 | G8: gemeente | H8: gem-339aeade1bbb0005ba845b14d29d2c15
A9: 7 | G9: gemeente | H9: gem-339aeade1bbb0005ba845b14d29d2c15
A10: 8 | G10: gemeente | H10: gem-339aeade1bbb0005ba845b14d29d2c15
A11: 9 | G11: gemeente | H11: gem-339aeade1bbb0005ba845b14d29d2c15
A12: 10 | G12: gemeente | H12: gem-339aeade1bbb0005ba845b14d29d2c15
A13: 11 | G13: gemeente | H13: gem-339aeade1bbb0005ba845b14d29d2c15
A14: 12 | G14: gemeente | H14: gem-339aeade1bbb0005ba845b14d29d2c15
A15: 13 | G15: gemeente | H15: gem-339aeade1bbb0005ba845b14d29d2c15
A16: 14 | G16: gemeente | H16: gem-339aeade1bbb0005ba845b14d29d2c15
A17: 15 | G17: gemeente | H17: gem-339aeade1bbb0005ba845b14d29d2c15
A18: 16 | G18: gemeente | H18: gem-339aeade1bbb0005ba845b14d29d2c15
A19: 17 | G19: gemeente | H19: gem-339aeade1bbb0005ba845b14d29d2c15
A20: 18 | G20: gemeente | H20: gem-339aeade1bbb0005ba845b14d29d2c15
A21: 19 | G21: gemeente | H21: gem-339aeade1bbb0005ba845b14d29d2c15
A22: 20 | G22: gemeente | H22: gem-339aeade1bbb0005ba845b14d29d2c15
A23: 21 | G23: gemeente | H23: gem-339aeade1bbb0005ba845b14d29d2c15
A24: 22 | G24: gemeente | H24: gem-339aeade1bbb0005ba845b14d29d2c15
A25: 23 | G25: gemeente | H25: gem-339aeade1bbb0005ba845b14d29d2c15
A26: 24 | G26: gemeente | H26: gem-339aeade1bbb0005ba845b14d29d2c15
A27: 25 | G27: gemeente | H27: gem-339aeade1bbb0005ba845b14d29d2c15
A28: 26 | G28: gemeente | H28: gem-339aeade1bbb0005ba845b14d29d2c15
A29: 27 | G29: gemeente | H29: gem-339aeade1bbb0005ba845b14d29d2c15
A30: 28 | G30: gemeente | H30: gem-339aeade1bbb0005ba845b14d29d2c15
A31: 29 | G31: gemeente | H31: gem-339aeade1bbb0005ba845b14d29d2c15
A32: 30 | G32: gemeente | H32: gem-339aeade1bbb0005ba845b14d29d2c15
A33: 31 | G33: gemeente | H33: gem-339aeade1bbb0005ba845b14d29d2c15
A34: 32 | G34: gemeente | H34: gem-339aeade1bbb0005ba845b14d29d2c15
A35: 33 | G35: gemeente | H35: =FilterXMLWebservice(HYPERLINK("http://geodata.nationaalgeoregister.nl/locatieserver/v3/suggest?wt=xml&q="&B35&" "&C35),"//str[2]") -> gem-339aeade1bbb0005ba845b14d29d2c15
A36: 34 | G36: gemeente | H36: gem-339aeade1bbb0005ba845b14d29d2c15
A37: 35 | G37: gemeente | H37: gem-339aeade1bbb0005ba845b14d29d2c15
A38: 36 | G38: gemeente | H38: gem-339aeade1bbb0005ba845b14d29d2c15
A39: 37 | G39: gemeente | H39: gem-339aeade1bbb0005ba845b14d29d2c15
A40: 38 | G40: gemeente | H40: gem-339aeade1bbb0005ba845b14d29d2c15
A41: 39 | G41: gemeente | H41: gem-339aeade1bbb0005ba845b14d29d2c15
A42: 40 | G42: gemeente | H42: gem-339aeade1bbb0005ba845b14d29d2c15
A43: 41 | G43: gemeente | H43: gem-339aeade1bbb0005ba845b14d29d2c15
A44: 42 | G44: gemeente | H44: gem-339aeade1bbb0005ba845b14d29d2c15
A45: 43 | G45: gemeente | H45: gem-339aeade1bbb0005ba845b14d29d2c15
A46: 44 | G46: gemeente | H46: gem-339aeade1bbb0005ba845b14d29d2c15
A47: 45 | G47: gemeente | H47: gem-339aeade1bbb0005ba845b14d29d2c15
A48: 46 | G48: gemeente | H48: gem-339aeade1bbb0005ba845b14d29d2c15
A49: 47 | G49: gemeente | H49: gem-339aeade1bbb0005ba845b14d29d2c15
A50: 48 | G50: gemeente | H50: gem-339aeade1bbb0005ba845b14d29d2c15
A51: 49 | G51: gemeente | H51: gem-339aeade1bbb0005ba845b14d29d2c15
A52: 50 | G52: gemeente | H52: gem-339aeade1bbb0005ba845b14d29d2c15

Sheet Calc (hidden)
A1: Constanten: | D1: rd2bessel | G1: bessel2wgs84 | J1: wgs842bessel | M1: bessel2rd
D2: RD X | E2: 123000 | F2: >> | G2: Lat | H2: =$H$9 -> 52.08683879 | J2: Lat | K2: 53.19697116 | L2: >> | M2: RD X | N2: =ROUND($N$24,0) -> 182000 | P2: wgs842utm | S2: Zone | T2: =WGS842UTM!C7 -> 31
D3: RD Y | E3: 455500 | F3: >> | G3: Long | H3: =$H$10 -> 4.920313135 | J3: Long | K3: 5.791215403 | L3: >> | M3: RD Y | N3: =ROUND($N$25,0) -> 579000 | P3: Lat | Q3: 53.19697116 | R3: >> | S3: Easting | T3: =WGS842UTM!E40 -> 686445.1155
P4: Long | Q4: 5.791215403 | R4: >> | S4: Northing | T4: =WGS842UTM!K40 -> 15897819.86
A5: x0 | B5: 155000 | D5: d_1 | E5: =$E$2-$B$5 -> -32000 | G5: dphi | H5: =$E$32-52 -> 0.08781759614 | J5: dphi | K5: =$K$2-52 -> 1.196971161 | M5: phi | N5: =$K$9/180*PI() -> 0.9284816689
A6: y0 | B6: 463000 | D6: d_2 | E6: =$E$3-$B$6 -> -7500 | G6: dlam | H6: =$E$31-5 -> -0.0793197679 | J6: dlam | K6: =$K$3-5 -> 0.7912154029 | M6: lambda | N6: =$K$10/180*PI() -> 0.1010843483 | P6: utm2wgs84
A7: k | B7: 0.9999079 | D7: r | E7: =SQRT($E$5*$E$5+$E$6*$E$6) -> 32867.15686 | G7: phicor | H7: =(-96.862-$H$5*11.714-$H$6*0.125)*0.00001 -> -0.0009788078035 | J7: phicor | K7: =(-96.862-$K$5*11.714-$K$6*0.125)*0.00001 -> -0.001109822221 | M7: qprime | N7: =LN(TAN($N$5/2+PI()/4)) -> 1.100591273 | P7: Zone | Q7: 31
A8: bigr | B8: 6382644.571 | D8: sa | E8: =IF($E$7<>0,($E$2-$B$5)/$E$7,0) -> -0.9736163106 | G8: lamcor | H8: =($H$5*0.329-37.902-$H$6*14.667)*0.00001 -> -0.0003670972498 | J8: lamcor | K8: =($K$5*0.329-37.902-$K$6*14.667)*0.00001 -> -0.000491129528 | M8: dq | N8: =$B$16/2*LN(($B$16*SIN($N$5)+1)/(1-$B$16*SIN($N$5))) -> 0.005351887974 | P8: Easting | Q8: 649333.28 | R8: >> | S8: Lat | T8: =UTM2WGS84!F42 -> 52.5
A9: m | B9: 0.003773953832 | D9: ca | E9: =IF($E$7<>0,($E$3-$B$6)/$E$7,0) -> -0.2281913228 | G9: phiwgs | H9: =$E$32+$H$7 -> 52.08683879 | J9: phibes | K9: =$K$2-$K$7 -> 53.19808098 | M9: q | N9: =$N$7-$N$8 -> 1.095239385 | P9: Northing | Q9: 15818927.03 | R9: >> | S9: Long | T9: =UTM2WGS84!P42 -> 5.2
A10: n | B10: 1.000475857 | D10: psi | E10: =ATAN2($B$7*2*$B$8,$E$7)*2 -> 0.005149920411 | G10: lamwgs | H10: =$E$31+$H$8 -> 4.920313135 | J10: lambes | K10: =$K$3-$K$8 -> 5.791706532 | M10: w | N10: =$B$10*$N$9+$B$9 -> 1.099534516
A11: pi | B11: =PI() -> 3.141592654 | D11: cpsi | E11: =COS($E$10) -> 0.9999867392 | M11: b | N11: =ATAN(EXP($N$10))*2-PI()/2 -> 0.9278483502
A12: lambda0 | B12: =PI()*0.0299313271611111 -> 0.09403203752 | D12: spsi | E12: =SIN($E$10) -> 0.005149897647 | M12: dl | N12: =$B$10*($N$6-$B$12) -> 0.007055666667 | P12: wgs842ukgrid | S12: Code | T12: =UK!C3 -> TO
A13: phi0 | B13: =PI()*0.289756447533333 -> 0.9102967269 | D13: sb | E13: =$E$9*COS($B$15)*$E$12+SIN($B$15)*$E$11 -> 0.7885782113 | M13: d_1 | N13: =SIN(($N$11-$B$15)/2) -> 0.009081671888 | P13: Lat | Q13: 51.50475 | R13: >> | S13: Easting | T13: =UK!D3 -> 78455 | U13: =UK!D4 -> 878455
A14: l0 | B14: =PI()*0.0299313271611111 -> 0.09403203752 | D14: d_1 | E14: =$E$13 -> 0.7885782113 | M14: d_2 | N14: =SIN($N$12/2) -> 0.003527826016 | P14: Long | Q14: 4.895917 | R14: >> | S14: Northing | T14: =UK!E3 -> 1007 | U14: =UK!E4 -> 201007
A15: b0 | B15: =PI()*0.289561651383333 -> 0.9096847567 | D15: cb | E15: =SQRT(1-$E$14^2) -> 0.6149344719 | M15: s2psihalf | N15: =$N$13*$N$13+$N$14*$N$14*COS($N$11)*COS($B$15) -> 8.705828485e-05
A16: e | B16: 0.08169683122 | D16: b | E16: =ACOS($E$15) -> 0.9084934595 | M16: cpsihalf | N16: =SQRT(1-$N$15) -> 0.9999564699 | P16: ukgrid2wgs84
A17: a | B17: 6377397.155 | D17: sdl | E17: =$E$8*$E$12/$E$15 -> -0.008153753898 | M17: spsihalf | N17: =SQRT($N$15) -> 0.009330502926 | P17: Code | Q17: TP
D18: dl | E18: =ASIN($E$17) -> -0.008153844249 | M18: tpsihalf | N18: =$N$17/$N$16 -> 0.009330909101 | P18: Easting | Q18: 43352 | S18: Lat | T18: =UK!I3 -> 52.000361
D19: lambda | E19: =$E$18/$B$10+$B$12 -> 0.08588207149 | M19: spsi | N19: =$N$17*2*$N$16 -> 0.01866019354 | P19: Northing | Q19: 63219 | S19: Long | T19: =UK!J3 -> 5.919472381
D20: w | E20: =LN(TAN($E$16/2+PI()/4)) -> 1.067660575 | M20: cpsi | N20: =1-$N$15*2 -> 0.9998258834
D21: q | E21: =($E$20-$B$9)/$B$10 -> 1.063380605 | M21: sa | N21: =SIN($N$12)*COS($N$11)/$N$19 -> 0.2266987249
D22: phiprime | E22: =ATAN(EXP($E$21))*2-PI()/2 -> 0.9058571146 | M22: ca | N22: =(SIN($N$11)-SIN($B$15)*$N$20)/(COS($B15)*$N$19) -> 0.9739649317
D23: dq | E23: =$B$16/2*LN(($B$16*SIN($E$22)+1)/(1-$B$16*SIN($E$22))) -> 0.00525968071 | M23: r | N23: =$B$7*2*$B$8*$N$18 -> 119100.7824
D24: phi | E24: =ATAN(EXP($E$21+$E$23))*2-PI()/2 -> 0.9090956843 | M24: x | N24: =$N$23*$N$21+$B$5 -> 181999.9955
D25: dq | E25: =$B$16/2*LN(($B$16*SIN($E$24)+1)/(1-$B$16*SIN($E$24))) -> 0.005273045482 | M25: y | N25: =$N$23*$N$22+$B$6 -> 578999.9854
D26: phi | E26: =ATAN(EXP($E$21+$E$25))*2-PI()/2 -> 0.9091038964
D27: dq | E27: =$B$16/2*LN(($B$16*SIN($E$26)+1)/(1-$B$16*SIN($E$26))) -> 0.005273079301
D28: phi | E28: =ATAN(EXP($E$21+$E$27))*2-PI()/2 -> 0.9091039172
D29: dq | E29: =$B$16/2*LN(($B$16*SIN($E$28)+1)/(1-$B$16*SIN($E$28))) -> 0.005273079387
D30: phi | E30: =ATAN(EXP($E$21+$E$29))*2-PI()/2 -> 0.9091039172
D31: lambda | E31: =$E$19/PI()*180 -> 4.920680232
D32: phi | E32: =$E$30/PI()*180 -> 52.0878176
A34: Deze berekening werd overgenomen uit de source-code van de software van Ejo Schrama <schrama@geo.tudelft.nl>.
A35: De software staat op: http://pocus.geo.tudelft.nl/schrama/Public/gps/rd2wgs/

Sheet UK (hidden)
A1: LatLong - to OS | B1: WGS84 | C1: UK Grid | G1: OS-LatLong | I1: WGS84 | BR1: OS Grid Origins
A2: LatArrayIndex | B2: =Calc!Q13 -> 51.50475 | C2: L | D2: E | E2: N | I2: Latitude | J2: Longitude
A3: LongArrayIndex | B3: =Calc!Q14 -> 4.895917 | C3: =B120 -> TO | D3: =B121 -> 78455 | E3: =B122 -> 1007 | G3: OSREF | H3: =Calc!Q17 & " " & Calc!Q18 & " " & Calc!Q19 -> TP 43352 63219 | I3: =H67 -> 52.000361 | J3: =H70 -> 5.919472381 | BS3: X | BT3: Y
D4: =INT(B103) -> 878455 | E4: =INT(B102) -> 201007 | G4: First Space | H4: =FIND(" ",H3) -> 3 | BR4: A | BS4: 0 | BT4: 400
A5: LatArrayIndex | B5: =B69 -> 51.50421496 | G5: SecondSpace | H5: =FIND(" ",H3,H4+1) -> 9 | BR5: B | BS5: 100 | BT5: 400
A6: LongArrayIndex | B6: =B70 -> 4.897970566 | G6: REFLETTERS | H6: =LEFT(H3,H4-1) -> TP | BR6: C | BS6: 200 | BT6: 400
G7: REFEASTING | H7: =MID(H3,H4+1,H5-H4-1) -> 43352 | BR7: D | BS7: 300 | BT7: 400
A8: =A102 -> OSNorthingIndex | B8: =B102 -> 201007 | G8: RefNorthing | H8: =RIGHT(H3,LEN(H3)-H5) -> 63219 | BR8: E | BS8: 400 | BT8: 400
A9: =A103 -> OSeastingIndex | B9: =B103 -> 878455.1054 | G9: RefEasting$ | H9: =LEFT(H7&"00000",5) -> 43352 | BR9: F | BS9: 0 | BT9: 300
G10: RefNorthing$ | H10: =LEFT(H8&"00000",5) -> 63219 | BR10: G | BS10: 100 | BT10: 300
BR11: H | BS11: 200 | BT11: 300
A12: LongArrayOrigin | B12: -2 | G12: EastingLetter | H12: =LEFT(H6,1) -> T | BR12: J | BS12: 300 | BT12: 300
A13: LatArrayOrigin | B13: 49 | G13: NorthingLetter | H13: =RIGHT(H6,1) -> P | BR13: K | BS13: 400 | BT13: 300
A14: rad | B14: =3.14159265358979 / 180 -> 0.01745329252 | BR14: L | BS14: 0 | BT14: 200
G15: eastGridLetterxInd | H15: =VLOOKUP(H12,$BR$4:$BT$28,2,FALSE) -> 300 | BR15: M | BS15: 100 | BT15: 200
A16: majsc | B16: =MajorAxis*MajorAxis -> 4.067331487e+13 | G16: eastGridLetterYInd | H16: =VLOOKUP(H12,$BR$4:$BT$28,3,FALSE) -> 100 | BR16: N | BS16: 200 | BT16: 200
A17: minsc | B17: =MinorAxis*MinorAxis -> 4.040200191e+13 | BR17: O | BS17: 300 | BT17: 200
A18: eccsc | B18: =(majsc-minsc)/majsc -> 0.006670539762 | G18: NorthGridLetterxInd | H18: =VLOOKUP(H13,$BR$4:$BT$28,2,FALSE) -> 400 | BR18: P | BS18: 400 | BT18: 200
A19: ecc4 | B19: =eccsc*eccsc -> 4.449610071e-05 | G19: NorthGridLetterYInd | H19: =VLOOKUP(H13,$BR$4:$BT$28,3,FALSE) -> 200 | BR19: Q | BS19: 0 | BT19: 100
A20: ecc6 | B20: =_ecc4*eccsc -> 2.96813009e-07 | BR20: R | BS20: 100 | BT20: 100
A21: ecc2sq | B21: =(majsc-minsc)/minsc -> 0.006715334669 | BR21: S | BS21: 200 | BT21: 100
G22: OSEastingIndex | H22: =5000 * H15 -> 1500000 | BR22: T | BS22: 300 | BT22: 100
A23: PA | B23: =1+0.75*eccsc+0.703125*_ecc4+0.068359375*_ecc6 -> 1.005034211 | G23: OSNorthingIndex | H23: =5000 * H16 -> 500000 | BR23: U | BS23: 400 | BT23: 100
A24: PB | B24: =0.75*eccsc+0.9375*_ecc4+1.025390625*_ecc6 -> 0.005044924265 | BR24: V | BS24: 0 | BT24: 0
A25: PC | B25: =0.234375 * _ecc4+0.41015625*_ecc6 -> 1.055051331e-05 | G25: OSEastingIndex | H25: =H22+H18*1000 -> 1900000 | BR25: W | BS25: 100 | BT25: 0
G26: OSNorthingIndex | H26: =H23+H19*1000 -> 700000 | BR26: X | BS26: 200 | BT26: 0
A27: OSNorthingOrigin | B27: 5527063 | G27: OSEastingIndex | H27: =H25+H9-1000000 -> 943352 | BR27: Y | BS27: 300 | BT27: 0
A28: OSEastingOrigin | B28: -400000 | G28: OSNorthingIndex | H28: =H26+H10-500000 -> 263219 | BR28: Z | BS28: 400 | BT28: 0
A29: molod_WGS84_f | B29: =1 / 298.257223563 -> 0.003352810665
G30: Convert Co-ords to Lat Long
A31: LatArrayIndex | B31: =B2 -> 51.50475
A32: LongArrayIndex | B32: =B3 -> 4.895917 | G32: K | H32: =1/(rad * MajorAxis) -> 8.983960794e-06 | J32: Iteration 1 | M32: Iteration 2 | P32: Iteration 3 | S32: Iteration 4 | V32: Iteration 5 | Y32: Iteration 6 | AB32: Iteration 7 | AE32: Iteration 8 | AH32: Iteration 9 | AK32: Iteration 10 | AN32: Iteration 11 | AQ32: Iteration 12 | AT32: Iteration 13 | AW32: Iteration 14 | AZ32: Iteration 15 | BC32: Iteration 16 | BF32: Iteration 17 | BI32: Iteration 18 | BL32: Iteration 19 | BO32: Iteration 20
G33: LatitudeSeed | H33: 52 | J33: Longi | K33: =rad*(H34-LongArrayOrigin) -> -0.01745329252 | M33: Longi | N33: =rad*(K63-LongArrayOrigin) -> 0.1393328897 | P33: Longi | Q33: =rad*(N63-LongArrayOrigin) -> 0.1390804471 | S33: Longi | T33: =rad*(Q63-LongArrayOrigin) -> 0.1382490798 | V33: Longi | W33: =rad*(T63-LongArrayOrigin) -> 0.1382488428 | Y33: Longi | Z33: =rad*(W63-LongArrayOrigin) -> 0.1382588386 | AB33: Longi | AC33: =rad*(Z63-LongArrayOrigin) -> 0.1382588733 | AE33: Longi | AF33: =rad*(AC63-LongArrayOrigin) -> 0.1382587617 | AH33: Longi | AI33: =rad*(AF63-LongArrayOrigin) -> 0.1382587617 | AK33: Longi | AL33: =rad*(AI63-LongArrayOrigin) -> 0.1382587617 | AN33: Longi | AO33: =rad*(AL63-LongArrayOrigin) -> 0.1382587617 | AQ33: Longi | AR33: =rad*(AO63-LongArrayOrigin) -> 0.1382587617 | AT33: Longi | AU33: =rad*(AR63-LongArrayOrigin) -> 0.1382587617 | AW33: Longi | AX33: =rad*(AU63-LongArrayOrigin) -> 0.1382587617 | AZ33: Longi | BA33: =rad*(AX63-LongArrayOrigin) -> 0.1382587617 | BC33: Longi | BD33: =rad*(BA63-LongArrayOrigin) -> 0.1382587617 | BF33: Longi | BG33: =rad*(BD63-LongArrayOrigin) -> 0.1382587617 | BI33: Longi | BJ33: =rad*(BG63-LongArrayOrigin) -> 0.1382587617 | BL33: Longi | BM33: =rad*(BJ63-LongArrayOrigin) -> 0.1382587617 | BO33: Longi | BP33: =rad*(BM63-LongArrayOrigin) -> 0.1382587617
G34: LongitudeSeed | H34: -3 | J34: Lati | K34: =rad*H33 -> 0.907571211 | M34: Lati | N34: =rad*K62 -> 0.9121487866 | P34: Lati | Q34: =rad*N62 -> 0.9075109652 | S34: Lati | T34: =rad*Q62 -> 0.9075128468 | V34: Lati | W34: =rad*T62 -> 0.9075691379 | Y34: Lati | Z34: =rad*W62 -> 0.9075692947 | AB34: Lati | AC34: =rad*Z62 -> 0.9075686675 | AE34: Lati | AF34: =rad*AC62 -> 0.9075686675 | AH34: Lati | AI34: =rad*AF62 -> 0.9075686675 | AK34: Lati | AL34: =rad*AI62 -> 0.9075686675 | AN34: Lati | AO34: =rad*AL62 -> 0.9075686675 | AQ34: Lati | AR34: =rad*AO62 -> 0.9075686675 | AT34: Lati | AU34: =rad*AR62 -> 0.9075686675 | AW34: Lati | AX34: =rad*AU62 -> 0.9075686675 | AZ34: Lati | BA34: =rad*AX62 -> 0.9075686675 | BC34: Lati | BD34: =rad*BA62 -> 0.9075686675 | BF34: Lati | BG34: =rad*BD62 -> 0.9075686675 | BI34: Lati | BJ34: =rad*BG62 -> 0.9075686675 | BL34: Lati | BM34: =rad*BJ62 -> 0.9075686675 | BO34: Lati | BP34: =rad*BM62 -> 0.9075686675
J35: t | K35: =TAN(K34) -> 1.279941632 | M35: t | N35: =TAN(N34) -> 1.292089684 | P35: t | Q35: =TAN(Q34) -> 1.279782701 | S35: t | T35: =TAN(T34) -> 1.279787664 | V35: t | W35: =TAN(W34) -> 1.279936163 | Y35: t | Z35: =TAN(Z34) -> 1.279936576 | AB35: t | AC35: =TAN(AC34) -> 1.279934922 | AE35: t | AF35: =TAN(AF34) -> 1.279934922 | AH35: t | AI35: =TAN(AI34) -> 1.279934922 | AK35: t | AL35: =TAN(AL34) -> 1.279934922 | AN35: t | AO35: =TAN(AO34) -> 1.279934922 | AQ35: t | AR35: =TAN(AR34) -> 1.279934922 | AT35: t | AU35: =TAN(AU34) -> 1.279934922 | AW35: t | AX35: =TAN(AX34) -> 1.279934922 | AZ35: t | BA35: =TAN(BA34) -> 1.279934922 | BC35: t | BD35: =TAN(BD34) -> 1.279934922 | BF35: t | BG35: =TAN(BG34) -> 1.279934922 | BI35: t | BJ35: =TAN(BJ34) -> 1.279934922 | BL35: t | BM35: =TAN(BM34) -> 1.279934922 | BO35: t | BP35: =TAN(BP34) -> 1.279934922
A36: Index | G36: Split into 20 iterations on right | J36: tsq | K36: =K35*K35 -> 1.638250582 | M36: tsq | N36: =N35*N35 -> 1.669495752 | P36: tsq | Q36: =Q35*Q35 -> 1.637843761 | S36: tsq | T36: =T35*T35 -> 1.637856465 | V36: tsq | W36: =W35*W35 -> 1.638236581 | Y36: tsq | Z36: =Z35*Z35 -> 1.63823764 | AB36: tsq | AC36: =AC35*AC35 -> 1.638233404 | AE36: tsq | AF36: =AF35*AF35 -> 1.638233404 | AH36: tsq | AI36: =AI35*AI35 -> 1.638233404 | AK36: tsq | AL36: =AL35*AL35 -> 1.638233404 | AN36: tsq | AO36: =AO35*AO35 -> 1.638233404 | AQ36: tsq | AR36: =AR35*AR35 -> 1.638233404 | AT36: tsq | AU36: =AU35*AU35 -> 1.638233404 | AW36: tsq | AX36: =AX35*AX35 -> 1.638233404 | AZ36: tsq | BA36: =BA35*BA35 -> 1.638233404 | BC36: tsq | BD36: =BD35*BD35 -> 1.638233404 | BF36: tsq | BG36: =BG35*BG35 -> 1.638233404 | BI36: tsq | BJ36: =BJ35*BJ35 -> 1.638233404 | BL36: tsq | BM36: =BM35*BM35 -> 1.638233404 | BO36: tsq | BP36: =BP35*BP35 -> 1.638233404
A37: to84 | B37: -1 | J37: L | K37: =K33*COS(K34) -> -0.01074531982 | M37: L | N37: =N33*COS(N34) -> 0.08527839682 | P37: L | Q37: =Q33*COS(Q34) -> 0.08563307583 | S37: L | T37: =T33*COS(T34) -> 0.08512099062 | V37: L | W37: =W33*COS(W34) -> 0.08511471235 | Y37: L | Z37: =Z33*COS(Z34) -> 0.08512084936 | AB37: L | AC37: =AC33*COS(AC34) -> 0.08512093906 | AE37: L | AF37: =AF33*COS(AF34) -> 0.08512087035 | AH37: L | AI37: =AI33*COS(AI34) -> 0.0851208703 | AK37: L | AL37: =AL33*COS(AL34) -> 0.0851208703 | AN37: L | AO37: =AO33*COS(AO34) -> 0.0851208703 | AQ37: L | AR37: =AR33*COS(AR34) -> 0.0851208703 | AT37: L | AU37: =AU33*COS(AU34) -> 0.0851208703 | AW37: L | AX37: =AX33*COS(AX34) -> 0.0851208703 | AZ37: L | BA37: =BA33*COS(BA34) -> 0.0851208703 | BC37: L | BD37: =BD33*COS(BD34) -> 0.0851208703 | BF37: L | BG37: =BG33*COS(BG34) -> 0.0851208703 | BI37: L | BJ37: =BJ33*COS(BJ34) -> 0.0851208703 | BL37: L | BM37: =BM33*COS(BM34) -> 0.0851208703 | BO37: L | BP37: =BP33*COS(BP34) -> 0.0851208703
A38: da | B38: =Molod_Da*$B$37 -> -573.604 | G38: LatitudeArrayIndex | H38: =BP62 -> 51.99985426 | J38: Lsq | K38: =K37*K37 -> 0.0001154618981 | M38: Lsq | N38: =N37*N37 -> 0.007272404964 | P38: Lsq | Q38: =Q37*Q37 -> 0.007333023675 | S38: Lsq | T38: =T37*T37 -> 0.007245583044 | V38: Lsq | W38: =W37*W37 -> 0.007244514258 | Y38: Lsq | Z38: =Z37*Z37 -> 0.007245558996 | AB38: Lsq | AC38: =AC37*AC37 -> 0.007245574266 | AE38: Lsq | AF38: =AF37*AF37 -> 0.007245562569 | AH38: Lsq | AI38: =AI37*AI37 -> 0.007245562561 | AK38: Lsq | AL38: =AL37*AL37 -> 0.007245562561 | AN38: Lsq | AO38: =AO37*AO37 -> 0.007245562561 | AQ38: Lsq | AR38: =AR37*AR37 -> 0.007245562561 | AT38: Lsq | AU38: =AU37*AU37 -> 0.007245562561 | AW38: Lsq | AX38: =AX37*AX37 -> 0.007245562561 | AZ38: Lsq | BA38: =BA37*BA37 -> 0.007245562561 | BC38: Lsq | BD38: =BD37*BD37 -> 0.007245562561 | BF38: Lsq | BG38: =BG37*BG37 -> 0.007245562561 | BI38: Lsq | BJ38: =BJ37*BJ37 -> 0.007245562561 | BL38: Lsq | BM38: =BM37*BM37 -> 0.007245562561 | BO38: Lsq | BP38: =BP37*BP37 -> 0.007245562561
A39: df | B39: =Molod_Df*$B$37 -> -1.1960023e-05 | G39: LongitudeArrayIndex | H39: =BP63 -> 5.921643524 | J39: etas | K39: =COS(K34) -> 0.6156614753 | M39: etas | N39: =COS(N34) -> 0.6120478588 | P39: etas | Q39: =COS(Q34) -> 0.6157089486 | S39: etas | T39: =COS(T34) -> 0.6157074659 | V39: etas | W39: =COS(W34) -> 0.615663109 | Y39: etas | Z39: =COS(Z34) -> 0.6156629854 | AB39: etas | AC39: =COS(AC34) -> 0.6156634797 | AE39: etas | AF39: =COS(AF34) -> 0.6156634797 | AH39: etas | AI39: =COS(AI34) -> 0.6156634797 | AK39: etas | AL39: =COS(AL34) -> 0.6156634797 | AN39: etas | AO39: =COS(AO34) -> 0.6156634797 | AQ39: etas | AR39: =COS(AR34) -> 0.6156634797 | AT39: etas | AU39: =COS(AU34) -> 0.6156634797 | AW39: etas | AX39: =COS(AX34) -> 0.6156634797 | AZ39: etas | BA39: =COS(BA34) -> 0.6156634797 | BC39: etas | BD39: =COS(BD34) -> 0.6156634797 | BF39: etas | BG39: =COS(BG34) -> 0.6156634797 | BI39: etas | BJ39: =COS(BJ34) -> 0.6156634797 | BL39: etas | BM39: =COS(BM34) -> 0.6156634797 | BO39: etas | BP39: =COS(BP34) -> 0.6156634797
A40: dx | B40: =Molod_Dx*$B$37 -> -375 | J40: etasc | K40: =K39*K39*ecc2sq -> 0.002545374088 | M40: etasc | N40: =N39*N39*ecc2sq -> 0.002515581702 | P40: etasc | Q40: =Q39*Q39*ecc2sq -> 0.002545766647 | S40: etasc | T40: =T39*T39*ecc2sq -> 0.002545754387 | V40: etasc | W40: =W39*W39*ecc2sq -> 0.002545387596 | Y40: etasc | Z40: =Z39*Z39*ecc2sq -> 0.002545386575 | AB40: etasc | AC40: =AC39*AC39*ecc2sq -> 0.002545390661 | AE40: etasc | AF40: =AF39*AF39*ecc2sq -> 0.002545390661 | AH40: etasc | AI40: =AI39*AI39*ecc2sq -> 0.002545390661 | AK40: etasc | AL40: =AL39*AL39*ecc2sq -> 0.002545390661 | AN40: etasc | AO40: =AO39*AO39*ecc2sq -> 0.002545390661 | AQ40: etasc | AR40: =AR39*AR39*ecc2sq -> 0.002545390661 | AT40: etasc | AU40: =AU39*AU39*ecc2sq -> 0.002545390661 | AW40: etasc | AX40: =AX39*AX39*ecc2sq -> 0.002545390661 | AZ40: etasc | BA40: =BA39*BA39*ecc2sq -> 0.002545390661 | BC40: etasc | BD40: =BD39*BD39*ecc2sq -> 0.002545390661 | BF40: etasc | BG40: =BG39*BG39*ecc2sq -> 0.002545390661 | BI40: etasc | BJ40: =BJ39*BJ39*ecc2sq -> 0.002545390661 | BL40: etasc | BM40: =BM39*BM39*ecc2sq -> 0.002545390661 | BO40: etasc | BP40: =BP39*BP39*ecc2sq -> 0.002545390661
A41: dy | B41: =Molod_Dy*$B$37 -> 111 | G41: to84 | H41: 1 | J41: nu1 | K41: =SIN(K34) -> 0.7880107536 | M41: nu1 | N41: =SIN(N34) -> 0.7908207246 | P41: nu1 | Q41: =SIN(Q34) -> 0.7879736611 | S41: nu1 | T41: =SIN(T34) -> 0.7879748196 | V41: nu1 | W41: =SIN(W34) -> 0.7880094772 | Y41: nu1 | Z41: =SIN(Z34) -> 0.7880095738 | AB41: nu1 | AC41: =SIN(AC34) -> 0.7880091876 | AE41: nu1 | AF41: =SIN(AF34) -> 0.7880091876 | AH41: nu1 | AI41: =SIN(AI34) -> 0.7880091876 | AK41: nu1 | AL41: =SIN(AL34) -> 0.7880091876 | AN41: nu1 | AO41: =SIN(AO34) -> 0.7880091876 | AQ41: nu1 | AR41: =SIN(AR34) -> 0.7880091876 | AT41: nu1 | AU41: =SIN(AU34) -> 0.7880091876 | AW41: nu1 | AX41: =SIN(AX34) -> 0.7880091876 | AZ41: nu1 | BA41: =SIN(BA34) -> 0.7880091876 | BC41: nu1 | BD41: =SIN(BD34) -> 0.7880091876 | BF41: nu1 | BG41: =SIN(BG34) -> 0.7880091876 | BI41: nu1 | BJ41: =SIN(BJ34) -> 0.7880091876 | BL41: nu1 | BM41: =SIN(BM34) -> 0.7880091876 | BO41: nu1 | BP41: =SIN(BP34) -> 0.7880091876
A42: dz | B42: =Molod_Dz*$B$37 -> -431 | G42: da | H42: =Molod_Da -> 573.604 | J42: nu2 | K42: =SQRT(1-eccsc*K41*K41) -> 0.9979267785 | M42: nu2 | N42: =SQRT(1-eccsc*N41*N41) -> 0.9979119509 | P42: nu2 | Q42: =SQRT(1-eccsc*Q41*Q41) -> 0.9979269739 | S42: nu2 | T42: =SQRT(1-eccsc*T41*T41) -> 0.9979269678 | V42: nu2 | W42: =SQRT(1-eccsc*W41*W41) -> 0.9979267853 | Y42: nu2 | Z42: =SQRT(1-eccsc*Z41*Z41) -> 0.9979267847 | AB42: nu2 | AC42: =SQRT(1-eccsc*AC41*AC41) -> 0.9979267868 | AE42: nu2 | AF42: =SQRT(1-eccsc*AF41*AF41) -> 0.9979267868 | AH42: nu2 | AI42: =SQRT(1-eccsc*AI41*AI41) -> 0.9979267868 | AK42: nu2 | AL42: =SQRT(1-eccsc*AL41*AL41) -> 0.9979267868 | AN42: nu2 | AO42: =SQRT(1-eccsc*AO41*AO41) -> 0.9979267868 | AQ42: nu2 | AR42: =SQRT(1-eccsc*AR41*AR41) -> 0.9979267868 | AT42: nu2 | AU42: =SQRT(1-eccsc*AU41*AU41) -> 0.9979267868 | AW42: nu2 | AX42: =SQRT(1-eccsc*AX41*AX41) -> 0.9979267868 | AZ42: nu2 | BA42: =SQRT(1-eccsc*BA41*BA41) -> 0.9979267868 | BC42: nu2 | BD42: =SQRT(1-eccsc*BD41*BD41) -> 0.9979267868 | BF42: nu2 | BG42: =SQRT(1-eccsc*BG41*BG41) -> 0.9979267868 | BI42: nu2 | BJ42: =SQRT(1-eccsc*BJ41*BJ41) -> 0.9979267868 | BL42: nu2 | BM42: =SQRT(1-eccsc*BM41*BM41) -> 0.9979267868 | BO42: nu2 | BP42: =SQRT(1-eccsc*BP41*BP41) -> 0.9979267868
G43: df | H43: =Molod_Df -> 1.1960023e-05 | J43: nu | K43: =ROUND(MajorAxis/K42,0) -> 6390813 | M43: nu | N43: =ROUND(MajorAxis/N42,0) -> 6390908 | P43: nu | Q43: =ROUND(MajorAxis/Q42,0) -> 6390812 | S43: nu | T43: =ROUND(MajorAxis/T42,0) -> 6390812 | V43: nu | W43: =ROUND(MajorAxis/W42,0) -> 6390813 | Y43: nu | Z43: =ROUND(MajorAxis/Z42,0) -> 6390813 | AB43: nu | AC43: =ROUND(MajorAxis/AC42,0) -> 6390813 | AE43: nu | AF43: =ROUND(MajorAxis/AF42,0) -> 6390813 | AH43: nu | AI43: =ROUND(MajorAxis/AI42,0) -> 6390813 | AK43: nu | AL43: =ROUND(MajorAxis/AL42,0) -> 6390813 | AN43: nu | AO43: =ROUND(MajorAxis/AO42,0) -> 6390813 | AQ43: nu | AR43: =ROUND(MajorAxis/AR42,0) -> 6390813 | AT43: nu | AU43: =ROUND(MajorAxis/AU42,0) -> 6390813 | AW43: nu | AX43: =ROUND(MajorAxis/AX42,0) -> 6390813 | AZ43: nu | BA43: =ROUND(MajorAxis/BA42,0) -> 6390813 | BC43: nu | BD43: =ROUND(MajorAxis/BD42,0) -> 6390813 | BF43: nu | BG43: =ROUND(MajorAxis/BG42,0) -> 6390813 | BI43: nu | BJ43: =ROUND(MajorAxis/BJ42,0) -> 6390813 | BL43: nu | BM43: =ROUND(MajorAxis/BM42,0) -> 6390813 | BO43: nu | BP43: =ROUND(MajorAxis/BP42,0) -> 6390813
A44: my_a | B44: =molod_WGS84_a-B38 -> 6378710.604 | G44: dx | H44: =Molod_Dx -> 375
A45: my_f | B45: =molod_WGS84_f-B39 -> 0.003364771023 | G45: dy | H45: =Molod_Dy -> -111 | J45: A7 | K45: =(61-K36*(479-179*K36+K36*K36))/5040 -> -0.04914822274 | M45: A7 | N45: =(61-N36*(479-179*N36+N36*N36))/5040 -> -0.04849802277 | P45: A7 | Q45: =(61-Q36*(479-179*Q36+Q36*Q36))/5040 -> -0.04915624383 | S45: A7 | T45: =(61-T36*(479-179*T36+T36*T36))/5040 -> -0.04915599352 | V45: A7 | W45: =(61-W36*(479-179*W36+W36*W36))/5040 -> -0.04914849899 | Y45: A7 | Z45: =(61-Z36*(479-179*Z36+Z36*Z36))/5040 -> -0.04914847809 | AB45: A7 | AC45: =(61-AC36*(479-179*AC36+AC36*AC36))/5040 -> -0.04914856167 | AE45: A7 | AF45: =(61-AF36*(479-179*AF36+AF36*AF36))/5040 -> -0.04914856167 | AH45: A7 | AI45: =(61-AI36*(479-179*AI36+AI36*AI36))/5040 -> -0.04914856167 | AK45: A7 | AL45: =(61-AL36*(479-179*AL36+AL36*AL36))/5040 -> -0.04914856167 | AN45: A7 | AO45: =(61-AO36*(479-179*AO36+AO36*AO36))/5040 -> -0.04914856167 | AQ45: A7 | AR45: =(61-AR36*(479-179*AR36+AR36*AR36))/5040 -> -0.04914856167 | AT45: A7 | AU45: =(61-AU36*(479-179*AU36+AU36*AU36))/5040 -> -0.04914856167 | AW45: A7 | AX45: =(61-AX36*(479-179*AX36+AX36*AX36))/5040 -> -0.04914856167 | AZ45: A7 | BA45: =(61-BA36*(479-179*BA36+BA36*BA36))/5040 -> -0.04914856167 | BC45: A7 | BD45: =(61-BD36*(479-179*BD36+BD36*BD36))/5040 -> -0.04914856167 | BF45: A7 | BG45: =(61-BG36*(479-179*BG36+BG36*BG36))/5040 -> -0.04914856167 | BI45: A7 | BJ45: =(61-BJ36*(479-179*BJ36+BJ36*BJ36))/5040 -> -0.04914856167 | BL45: A7 | BM45: =(61-BM36*(479-179*BM36+BM36*BM36))/5040 -> -0.04914856167 | BO45: A7 | BP45: =(61-BP36*(479-179*BP36+BP36*BP36))/5040 -> -0.04914856167
A46: my_es | B46: =2*B45-B45*B45 -> 0.006718220362 | G46: dz | H46: =Molod_Dz -> 431 | J46: A5 | K46: =(5-K36*(18-K36)+K40*(14-58*K36))/120 -> -0.1834238998 | M46: A5 | N46: =(5-N36*(18-N36)+N40*(14-58*N36))/120 -> -0.1872672917 | P46: A5 | Q46: =(5-Q36*(18-Q36)+Q40*(14-58*Q36))/120 -> -0.1833737477 | S46: A5 | T46: =(5-T36*(18-T36)+T40*(14-58*T36))/120 -> -0.1833753139 | V46: A5 | W46: =(5-W36*(18-W36)+W40*(14-58*W36))/120 -> -0.1834221738 | Y46: A5 | Z46: =(5-Z36*(18-Z36)+Z40*(14-58*Z36))/120 -> -0.1834223044 | AB46: A5 | AC46: =(5-AC36*(18-AC36)+AC40*(14-58*AC36))/120 -> -0.1834217822 | AE46: A5 | AF46: =(5-AF36*(18-AF36)+AF40*(14-58*AF36))/120 -> -0.1834217822 | AH46: A5 | AI46: =(5-AI36*(18-AI36)+AI40*(14-58*AI36))/120 -> -0.1834217822 | AK46: A5 | AL46: =(5-AL36*(18-AL36)+AL40*(14-58*AL36))/120 -> -0.1834217822 | AN46: A5 | AO46: =(5-AO36*(18-AO36)+AO40*(14-58*AO36))/120 -> -0.1834217822 | AQ46: A5 | AR46: =(5-AR36*(18-AR36)+AR40*(14-58*AR36))/120 -> -0.1834217822 | AT46: A5 | AU46: =(5-AU36*(18-AU36)+AU40*(14-58*AU36))/120 -> -0.1834217822 | AW46: A5 | AX46: =(5-AX36*(18-AX36)+AX40*(14-58*AX36))/120 -> -0.1834217822 | AZ46: A5 | BA46: =(5-BA36*(18-BA36)+BA40*(14-58*BA36))/120 -> -0.1834217822 | BC46: A5 | BD46: =(5-BD36*(18-BD36)+BD40*(14-58*BD36))/120 -> -0.1834217822 | BF46: A5 | BG46: =(5-BG36*(18-BG36)+BG40*(14-58*BG36))/120 -> -0.1834217822 | BI46: A5 | BJ46: =(5-BJ36*(18-BJ36)+BJ40*(14-58*BJ36))/120 -> -0.1834217822 | BL46: A5 | BM46: =(5-BM36*(18-BM36)+BM40*(14-58*BM36))/120 -> -0.1834217822 | BO46: A5 | BP46: =(5-BP36*(18-BP36)+BP40*(14-58*BP36))/120 -> -0.1834217822
A47: my_lat | B47: =B31*rad -> 0.8989274679 | J47: A3 | K47: =ROUNDDOWN((1-K36+K40)/6,7) -> -0.1059508 | M47: A3 | N47: =ROUNDDOWN((1-N36+N40)/6,7) -> -0.1111633 | P47: A3 | Q47: =ROUNDDOWN((1-Q36+Q40)/6,7) -> -0.1058829 | S47: A3 | T47: =ROUNDDOWN((1-T36+T40)/6,7) -> -0.1058851 | V47: A3 | W47: =ROUNDDOWN((1-W36+W40)/6,7) -> -0.1059485 | Y47: A3 | Z47: =ROUNDDOWN((1-Z36+Z40)/6,7) -> -0.1059487 | AB47: A3 | AC47: =ROUNDDOWN((1-AC36+AC40)/6,7) -> -0.105948 | AE47: A3 | AF47: =ROUNDDOWN((1-AF36+AF40)/6,7) -> -0.105948 | AH47: A3 | AI47: =ROUNDDOWN((1-AI36+AI40)/6,7) -> -0.105948 | AK47: A3 | AL47: =ROUNDDOWN((1-AL36+AL40)/6,7) -> -0.105948 | AN47: A3 | AO47: =ROUNDDOWN((1-AO36+AO40)/6,7) -> -0.105948 | AQ47: A3 | AR47: =ROUNDDOWN((1-AR36+AR40)/6,7) -> -0.105948 | AT47: A3 | AU47: =ROUNDDOWN((1-AU36+AU40)/6,7) -> -0.105948 | AW47: A3 | AX47: =ROUNDDOWN((1-AX36+AX40)/6,7) -> -0.105948 | AZ47: A3 | BA47: =ROUNDDOWN((1-BA36+BA40)/6,7) -> -0.105948 | BC47: A3 | BD47: =ROUNDDOWN((1-BD36+BD40)/6,7) -> -0.105948 | BF47: A3 | BG47: =ROUNDDOWN((1-BG36+BG40)/6,7) -> -0.105948 | BI47: A3 | BJ47: =ROUNDDOWN((1-BJ36+BJ40)/6,7) -> -0.105948 | BL47: A3 | BM47: =ROUNDDOWN((1-BM36+BM40)/6,7) -> -0.105948 | BO47: A3 | BP47: =ROUNDDOWN((1-BP36+BP40)/6,7) -> -0.105948
A48: my_lon | B48: =B32*rad -> 0.08544987155 | G48: my_a | H48: =molod_WGS84_a-H42 -> 6377563.396 | J48: A1 | K48: =ROUND(TMScale*K43,0) -> 6388265 | M48: A1 | N48: =ROUND(TMScale*N43,0) -> 6388360 | P48: A1 | Q48: =ROUND(TMScale*Q43,0) -> 6388264 | S48: A1 | T48: =ROUND(TMScale*T43,0) -> 6388264 | V48: A1 | W48: =ROUND(TMScale*W43,0) -> 6388265 | Y48: A1 | Z48: =ROUND(TMScale*Z43,0) -> 6388265 | AB48: A1 | AC48: =ROUND(TMScale*AC43,0) -> 6388265 | AE48: A1 | AF48: =ROUND(TMScale*AF43,0) -> 6388265 | AH48: A1 | AI48: =ROUND(TMScale*AI43,0) -> 6388265 | AK48: A1 | AL48: =ROUND(TMScale*AL43,0) -> 6388265 | AN48: A1 | AO48: =ROUND(TMScale*AO43,0) -> 6388265 | AQ48: A1 | AR48: =ROUND(TMScale*AR43,0) -> 6388265 | AT48: A1 | AU48: =ROUND(TMScale*AU43,0) -> 6388265 | AW48: A1 | AX48: =ROUND(TMScale*AX43,0) -> 6388265 | AZ48: A1 | BA48: =ROUND(TMScale*BA43,0) -> 6388265 | BC48: A1 | BD48: =ROUND(TMScale*BD43,0) -> 6388265 | BF48: A1 | BG48: =ROUND(TMScale*BG43,0) -> 6388265 | BI48: A1 | BJ48: =ROUND(TMScale*BJ43,0) -> 6388265 | BL48: A1 | BM48: =ROUND(TMScale*BM43,0) -> 6388265 | BO48: A1 | BP48: =ROUND(TMScale*BP43,0) -> 6388265
G49: my_f | H49: =molod_WGS84_f-H43 -> 0.003340850977 | J49: OeastingIndex1 | K49: =K48*K37*(1+K38*(K47+K38*(K46+K45*K38))) -> -68643.11062 | M49: OeastingIndex1 | N49: =N48*N37*(1+N38*(N47+N38*(N46+N45*N38))) -> 544343.2724 | P49: OeastingIndex1 | Q49: =Q48*Q37*(1+Q38*(Q47+Q38*(Q46+Q45*Q38))) -> 546616.5408 | S49: OeastingIndex1 | T49: =T48*T37*(1+T38*(T47+T38*(T46+T45*T38))) -> 543352.9309 | V49: OeastingIndex1 | W49: =W48*W37*(1+W38*(W47+W38*(W46+W45*W38))) -> 543312.7519 | Y49: OeastingIndex1 | Z49: =Z48*Z37*(1+Z38*(Z47+Z38*(Z46+Z45*Z38))) -> 543351.8638 | AB49: OeastingIndex1 | AC49: =AC48*AC37*(1+AC38*(AC47+AC38*(AC46+AC45*AC38))) -> 543352.4382 | AE49: OeastingIndex1 | AF49: =AF48*AF37*(1+AF38*(AF47+AF38*(AF46+AF45*AF38))) -> 543352.0003 | AH49: OeastingIndex1 | AI49: =AI48*AI37*(1+AI38*(AI47+AI38*(AI46+AI45*AI38))) -> 543352 | AK49: OeastingIndex1 | AL49: =AL48*AL37*(1+AL38*(AL47+AL38*(AL46+AL45*AL38))) -> 543352 | AN49: OeastingIndex1 | AO49: =AO48*AO37*(1+AO38*(AO47+AO38*(AO46+AO45*AO38))) -> 543352 | AQ49: OeastingIndex1 | AR49: =AR48*AR37*(1+AR38*(AR47+AR38*(AR46+AR45*AR38))) -> 543352 | AT49: OeastingIndex1 | AU49: =AU48*AU37*(1+AU38*(AU47+AU38*(AU46+AU45*AU38))) -> 543352 | AW49: OeastingIndex1 | AX49: =AX48*AX37*(1+AX38*(AX47+AX38*(AX46+AX45*AX38))) -> 543352 | AZ49: OeastingIndex1 | BA49: =BA48*BA37*(1+BA38*(BA47+BA38*(BA46+BA45*BA38))) -> 543352 | BC49: OeastingIndex1 | BD49: =BD48*BD37*(1+BD38*(BD47+BD38*(BD46+BD45*BD38))) -> 543352 | BF49: OeastingIndex1 | BG49: =BG48*BG37*(1+BG38*(BG47+BG38*(BG46+BG45*BG38))) -> 543352 | BI49: OeastingIndex1 | BJ49: =BJ48*BJ37*(1+BJ38*(BJ47+BJ38*(BJ46+BJ45*BJ38))) -> 543352 | BL49: OeastingIndex1 | BM49: =BM48*BM37*(1+BM38*(BM47+BM38*(BM46+BM45*BM38))) -> 543352 | BO49: OeastingIndex1 | BP49: =BP48*BP37*(1+BP38*(BP47+BP38*(BP46+BP45*BP38))) -> 543352
A50: Slat | B50: =SIN(B47) -> 0.7826597626 | G50: my_es | H50: =2*H49-H49*H49 -> 0.006670540669
A51: slon | B51: =SIN(B48) -> 0.08534592157 | G51: my_lat | H51: =H38*rad -> 0.9075686675
A52: clat | B52: =COS(B47) -> 0.6224497538 | G52: my_lon | H52: =H39*rad -> 0.1033521766 | J52: M | K52: =INT(MajorAxis*(1-eccsc)*(PA*K34-0.5*PB*SIN(2*K34)+0.25*PC*SIN(4*K34))) -> 5762914 | M52: M | N52: =INT(MajorAxis*(1-eccsc)*(PA*N34-0.5*PB*SIN(2*N34)+0.25*PC*SIN(4*N34))) -> 5792095 | P52: M | Q52: =INT(MajorAxis*(1-eccsc)*(PA*Q34-0.5*PB*SIN(2*Q34)+0.25*PC*SIN(4*Q34))) -> 5762530 | S52: M | T52: =INT(MajorAxis*(1-eccsc)*(PA*T34-0.5*PB*SIN(2*T34)+0.25*PC*SIN(4*T34))) -> 5762542 | V52: M | W52: =INT(MajorAxis*(1-eccsc)*(PA*W34-0.5*PB*SIN(2*W34)+0.25*PC*SIN(4*W34))) -> 5762901 | Y52: M | Z52: =INT(MajorAxis*(1-eccsc)*(PA*Z34-0.5*PB*SIN(2*Z34)+0.25*PC*SIN(4*Z34))) -> 5762902 | AB52: M | AC52: =INT(MajorAxis*(1-eccsc)*(PA*AC34-0.5*PB*SIN(2*AC34)+0.25*PC*SIN(4*AC34))) -> 5762898 | AE52: M | AF52: =INT(MajorAxis*(1-eccsc)*(PA*AF34-0.5*PB*SIN(2*AF34)+0.25*PC*SIN(4*AF34))) -> 5762898 | AH52: M | AI52: =INT(MajorAxis*(1-eccsc)*(PA*AI34-0.5*PB*SIN(2*AI34)+0.25*PC*SIN(4*AI34))) -> 5762898 | AK52: M | AL52: =INT(MajorAxis*(1-eccsc)*(PA*AL34-0.5*PB*SIN(2*AL34)+0.25*PC*SIN(4*AL34))) -> 5762898 | AN52: M | AO52: =INT(MajorAxis*(1-eccsc)*(PA*AO34-0.5*PB*SIN(2*AO34)+0.25*PC*SIN(4*AO34))) -> 5762898 | AQ52: M | AR52: =INT(MajorAxis*(1-eccsc)*(PA*AR34-0.5*PB*SIN(2*AR34)+0.25*PC*SIN(4*AR34))) -> 5762898 | AT52: M | AU52: =INT(MajorAxis*(1-eccsc)*(PA*AU34-0.5*PB*SIN(2*AU34)+0.25*PC*SIN(4*AU34))) -> 5762898 | AW52: M | AX52: =INT(MajorAxis*(1-eccsc)*(PA*AX34-0.5*PB*SIN(2*AX34)+0.25*PC*SIN(4*AX34))) -> 5762898 | AZ52: M | BA52: =INT(MajorAxis*(1-eccsc)*(PA*BA34-0.5*PB*SIN(2*BA34)+0.25*PC*SIN(4*BA34))) -> 5762898 | BC52: M | BD52: =INT(MajorAxis*(1-eccsc)*(PA*BD34-0.5*PB*SIN(2*BD34)+0.25*PC*SIN(4*BD34))) -> 5762898 | BF52: M | BG52: =INT(MajorAxis*(1-eccsc)*(PA*BG34-0.5*PB*SIN(2*BG34)+0.25*PC*SIN(4*BG34))) -> 5762898 | BI52: M | BJ52: =INT(MajorAxis*(1-eccsc)*(PA*BJ34-0.5*PB*SIN(2*BJ34)+0.25*PC*SIN(4*BJ34))) -> 5762898 | BL52: M | BM52: =INT(MajorAxis*(1-eccsc)*(PA*BM34-0.5*PB*SIN(2*BM34)+0.25*PC*SIN(4*BM34))) -> 5762898 | BO52: M | BP52: =INT(MajorAxis*(1-eccsc)*(PA*BP34-0.5*PB*SIN(2*BP34)+0.25*PC*SIN(4*BP34))) -> 5762898
A53: clon | B53: =COS(B48) -> 0.9963513806 | J53: A2 | K53: =INT(0.5*K48*K35) -> 4088303 | M53: A2 | N53: =INT(0.5*N48*N35) -> 4127167 | P53: A2 | Q53: =INT(0.5*Q48*Q35) -> 4087794 | S53: A2 | T53: =INT(0.5*T48*T35) -> 4087810 | V53: A2 | W53: =INT(0.5*W48*W35) -> 4088285 | Y53: A2 | Z53: =INT(0.5*Z48*Z35) -> 4088287 | AB53: A2 | AC53: =INT(0.5*AC48*AC35) -> 4088281 | AE53: A2 | AF53: =INT(0.5*AF48*AF35) -> 4088281 | AH53: A2 | AI53: =INT(0.5*AI48*AI35) -> 4088281 | AK53: A2 | AL53: =INT(0.5*AL48*AL35) -> 4088281 | AN53: A2 | AO53: =INT(0.5*AO48*AO35) -> 4088281 | AQ53: A2 | AR53: =INT(0.5*AR48*AR35) -> 4088281 | AT53: A2 | AU53: =INT(0.5*AU48*AU35) -> 4088281 | AW53: A2 | AX53: =INT(0.5*AX48*AX35) -> 4088281 | AZ53: A2 | BA53: =INT(0.5*BA48*BA35) -> 4088281 | BC53: A2 | BD53: =INT(0.5*BD48*BD35) -> 4088281 | BF53: A2 | BG53: =INT(0.5*BG48*BG35) -> 4088281 | BI53: A2 | BJ53: =INT(0.5*BJ48*BJ35) -> 4088281 | BL53: A2 | BM53: =INT(0.5*BM48*BM35) -> 4088281 | BO53: A2 | BP53: =INT(0.5*BP48*BP35) -> 4088281
G54: Slat | H54: =SIN(H51) -> 0.7880091876 | J54: A4 | K54: =ROUND((5-K36+K40*(9+4*K40))/12,7) -> 0.282057 | M54: A4 | N54: =ROUND((5-N36+N40*(9+4*N40))/12,7) -> 0.2794308 | P54: A4 | Q54: =ROUND((5-Q36+Q40*(9+4*Q40))/12,7) -> 0.2820912 | S54: A4 | T54: =ROUND((5-T36+T40*(9+4*T40))/12,7) -> 0.2820901 | V54: A4 | W54: =ROUND((5-W36+W40*(9+4*W40))/12,7) -> 0.2820582 | Y54: A4 | Z54: =ROUND((5-Z36+Z40*(9+4*Z40))/12,7) -> 0.2820581 | AB54: A4 | AC54: =ROUND((5-AC36+AC40*(9+4*AC40))/12,7) -> 0.2820584 | AE54: A4 | AF54: =ROUND((5-AF36+AF40*(9+4*AF40))/12,7) -> 0.2820584 | AH54: A4 | AI54: =ROUND((5-AI36+AI40*(9+4*AI40))/12,7) -> 0.2820584 | AK54: A4 | AL54: =ROUND((5-AL36+AL40*(9+4*AL40))/12,7) -> 0.2820584 | AN54: A4 | AO54: =ROUND((5-AO36+AO40*(9+4*AO40))/12,7) -> 0.2820584 | AQ54: A4 | AR54: =ROUND((5-AR36+AR40*(9+4*AR40))/12,7) -> 0.2820584 | AT54: A4 | AU54: =ROUND((5-AU36+AU40*(9+4*AU40))/12,7) -> 0.2820584 | AW54: A4 | AX54: =ROUND((5-AX36+AX40*(9+4*AX40))/12,7) -> 0.2820584 | AZ54: A4 | BA54: =ROUND((5-BA36+BA40*(9+4*BA40))/12,7) -> 0.2820584 | BC54: A4 | BD54: =ROUND((5-BD36+BD40*(9+4*BD40))/12,7) -> 0.2820584 | BF54: A4 | BG54: =ROUND((5-BG36+BG40*(9+4*BG40))/12,7) -> 0.2820584 | BI54: A4 | BJ54: =ROUND((5-BJ36+BJ40*(9+4*BJ40))/12,7) -> 0.2820584 | BL54: A4 | BM54: =ROUND((5-BM36+BM40*(9+4*BM40))/12,7) -> 0.2820584 | BO54: A4 | BP54: =ROUND((5-BP36+BP40*(9+4*BP40))/12,7) -> 0.2820584
A55: Rn | B55: =B44/SQRT(1-(B46*B50^2)) -> 6391876.37 | G55: slon | H55: =SIN(H52) -> 0.1031682792 | J55: A6 | K55: =(61-K36*(58-K36)+K40*(270-330*K36))/360 -> -0.0889541799 | M55: A6 | N55: =(61-N36*(58-N36)+N40*(270-330*N36))/360 -> -0.09375069159 | P55: A6 | Q55: =(61-Q36*(58-Q36)+Q40*(270-330*Q36))/360 -> -0.0888916845 | S55: A6 | T55: =(61-T36*(58-T36)+T40*(270-330*T36))/360 -> -0.08889363611 | V55: A6 | W55: =(61-W36*(58-W36)+W40*(270-330*W36))/360 -> -0.08895202906 | Y55: A6 | Z55: =(61-Z36*(58-Z36)+Z40*(270-330*Z36))/360 -> -0.08895219174 | AB55: A6 | AC55: =(61-AC36*(58-AC36)+AC40*(270-330*AC36))/360 -> -0.08895154104 | AE55: A6 | AF55: =(61-AF36*(58-AF36)+AF40*(270-330*AF36))/360 -> -0.08895154104 | AH55: A6 | AI55: =(61-AI36*(58-AI36)+AI40*(270-330*AI36))/360 -> -0.08895154104 | AK55: A6 | AL55: =(61-AL36*(58-AL36)+AL40*(270-330*AL36))/360 -> -0.08895154104 | AN55: A6 | AO55: =(61-AO36*(58-AO36)+AO40*(270-330*AO36))/360 -> -0.08895154104 | AQ55: A6 | AR55: =(61-AR36*(58-AR36)+AR40*(270-330*AR36))/360 -> -0.08895154104 | AT55: A6 | AU55: =(61-AU36*(58-AU36)+AU40*(270-330*AU36))/360 -> -0.08895154104 | AW55: A6 | AX55: =(61-AX36*(58-AX36)+AX40*(270-330*AX36))/360 -> -0.08895154104 | AZ55: A6 | BA55: =(61-BA36*(58-BA36)+BA40*(270-330*BA36))/360 -> -0.08895154104 | BC55: A6 | BD55: =(61-BD36*(58-BD36)+BD40*(270-330*BD36))/360 -> -0.08895154104 | BF55: A6 | BG55: =(61-BG36*(58-BG36)+BG40*(270-330*BG36))/360 -> -0.08895154104 | BI55: A6 | BJ55: =(61-BJ36*(58-BJ36)+BJ40*(270-330*BJ36))/360 -> -0.08895154104 | BL55: A6 | BM55: =(61-BM36*(58-BM36)+BM40*(270-330*BM36))/360 -> -0.08895154104 | BO55: A6 | BP55: =(61-BP36*(58-BP36)+BP40*(270-330*BP36))/360 -> -0.08895154104
A56: Rm | B56: =B44*(1-B46)/((1-B46*B50^2)^1.5) -> 6375169.998 | G56: clat | H56: =COS(H51) -> 0.6156634797 | J56: OSNorthingIndex1 | K56: =TMScale*K52+K53*K38*(1+K38*(K54+K55*K38)) -> 5761088.222 | M56: OSNorthingIndex1 | N56: =INT(TMScale*N52+N53*N38*(1+N38*(N54+N55*N38))) -> 5819860 | P56: OSNorthingIndex1 | Q56: =INT(TMScale*Q52+Q53*Q38*(1+Q38*(Q54+Q55*Q38))) -> 5790270 | S56: OSNorthingIndex1 | T56: =INT(TMScale*T52+T53*T38*(1+T38*(T54+T55*T38))) -> 5789923 | V56: OSNorthingIndex1 | W56: =INT(TMScale*W52+W53*W38*(1+W38*(W54+W55*W38))) -> 5790281 | Y56: OSNorthingIndex1 | Z56: =INT(TMScale*Z52+Z53*Z38*(1+Z38*(Z54+Z55*Z38))) -> 5790286 | AB56: OSNorthingIndex1 | AC56: =INT(TMScale*AC52+AC53*AC38*(1+AC38*(AC54+AC55*AC38))) -> 5790282 | AE56: OSNorthingIndex1 | AF56: =INT(TMScale*AF52+AF53*AF38*(1+AF38*(AF54+AF55*AF38))) -> 5790282 | AH56: OSNorthingIndex1 | AI56: =INT(TMScale*AI52+AI53*AI38*(1+AI38*(AI54+AI55*AI38))) -> 5790282 | AK56: OSNorthingIndex1 | AL56: =INT(TMScale*AL52+AL53*AL38*(1+AL38*(AL54+AL55*AL38))) -> 5790282 | AN56: OSNorthingIndex1 | AO56: =INT(TMScale*AO52+AO53*AO38*(1+AO38*(AO54+AO55*AO38))) -> 5790282 | AQ56: OSNorthingIndex1 | AR56: =INT(TMScale*AR52+AR53*AR38*(1+AR38*(AR54+AR55*AR38))) -> 5790282 | AT56: OSNorthingIndex1 | AU56: =INT(TMScale*AU52+AU53*AU38*(1+AU38*(AU54+AU55*AU38))) -> 5790282 | AW56: OSNorthingIndex1 | AX56: =INT(TMScale*AX52+AX53*AX38*(1+AX38*(AX54+AX55*AX38))) -> 5790282 | AZ56: OSNorthingIndex1 | BA56: =INT(TMScale*BA52+BA53*BA38*(1+BA38*(BA54+BA55*BA38))) -> 5790282 | BC56: OSNorthingIndex1 | BD56: =INT(TMScale*BD52+BD53*BD38*(1+BD38*(BD54+BD55*BD38))) -> 5790282 | BF56: OSNorthingIndex1 | BG56: =INT(TMScale*BG52+BG53*BG38*(1+BG38*(BG54+BG55*BG38))) -> 5790282 | BI56: OSNorthingIndex1 | BJ56: =INT(TMScale*BJ52+BJ53*BJ38*(1+BJ38*(BJ54+BJ55*BJ38))) -> 5790282 | BL56: OSNorthingIndex1 | BM56: =INT(TMScale*BM52+BM53*BM38*(1+BM38*(BM54+BM55*BM38))) -> 5790282 | BO56: OSNorthingIndex1 | BP56: =INT(TMScale*BP52+BP53*BP38*(1+BP38*(BP54+BP55*BP38))) -> 5790282
G57: clon | H57: =COS(H52) -> 0.9946639162
A58: d1 | B58: =((-B40*B50*B53-B41*B50*B51)+B42*B52) -> 16.73625985 | J58: OSNorthingIndex | K58: =K56-OSNorthingOrigin -> 234025.2217 | M58: OSNorthingIndex | N58: =INT(N56)-OSNorthingOrigin -> 292797 | P58: OSNorthingIndex | Q58: =INT(Q56)-OSNorthingOrigin -> 263207 | S58: OSNorthingIndex | T58: =INT(T56)-OSNorthingOrigin -> 262860 | V58: OSNorthingIndex | W58: =INT(W56)-OSNorthingOrigin -> 263218 | Y58: OSNorthingIndex | Z58: =INT(Z56)-OSNorthingOrigin -> 263223 | AB58: OSNorthingIndex | AC58: =INT(AC56)-OSNorthingOrigin -> 263219 | AE58: OSNorthingIndex | AF58: =INT(AF56)-OSNorthingOrigin -> 263219 | AH58: OSNorthingIndex | AI58: =INT(AI56)-OSNorthingOrigin -> 263219 | AK58: OSNorthingIndex | AL58: =INT(AL56)-OSNorthingOrigin -> 263219 | AN58: OSNorthingIndex | AO58: =INT(AO56)-OSNorthingOrigin -> 263219 | AQ58: OSNorthingIndex | AR58: =INT(AR56)-OSNorthingOrigin -> 263219 | AT58: OSNorthingIndex | AU58: =INT(AU56)-OSNorthingOrigin -> 263219 | AW58: OSNorthingIndex | AX58: =INT(AX56)-OSNorthingOrigin -> 263219 | AZ58: OSNorthingIndex | BA58: =INT(BA56)-OSNorthingOrigin -> 263219 | BC58: OSNorthingIndex | BD58: =INT(BD56)-OSNorthingOrigin -> 263219 | BF58: OSNorthingIndex | BG58: =INT(BG56)-OSNorthingOrigin -> 263219 | BI58: OSNorthingIndex | BJ58: =INT(BJ56)-OSNorthingOrigin -> 263219 | BL58: OSNorthingIndex | BM58: =INT(BM56)-OSNorthingOrigin -> 263219 | BO58: OSNorthingIndex | BP58: =INT(BP56)-OSNorthingOrigin -> 263219
A59: d2 | B59: =B38*(B55*B46*B50*B52)/B44 -> -1.881218278 | G59: Rn | H59: =H48/SQRT(1-(H50*H54^2)) -> 6390812.916 | J59: OSeastingIndex | K59: =K49-OSEastingOrigin -> 331356.8894 | M59: OSeastingIndex | N59: =N49-OSEastingOrigin -> 944343.2724 | P59: OSeastingIndex | Q59: =Q49-OSEastingOrigin -> 946616.5408 | S59: OSeastingIndex | T59: =T49-OSEastingOrigin -> 943352.9309 | V59: OSeastingIndex | W59: =W49-OSEastingOrigin -> 943312.7519 | Y59: OSeastingIndex | Z59: =Z49-OSEastingOrigin -> 943351.8638 | AB59: OSeastingIndex | AC59: =AC49-OSEastingOrigin -> 943352.4382 | AE59: OSeastingIndex | AF59: =AF49-OSEastingOrigin -> 943352.0003 | AH59: OSeastingIndex | AI59: =AI49-OSEastingOrigin -> 943352 | AK59: OSeastingIndex | AL59: =AL49-OSEastingOrigin -> 943352 | AN59: OSeastingIndex | AO59: =AO49-OSEastingOrigin -> 943352 | AQ59: OSeastingIndex | AR59: =AR49-OSEastingOrigin -> 943352 | AT59: OSeastingIndex | AU59: =AU49-OSEastingOrigin -> 943352 | AW59: OSeastingIndex | AX59: =AX49-OSEastingOrigin -> 943352 | AZ59: OSeastingIndex | BA59: =BA49-OSEastingOrigin -> 943352 | BC59: OSeastingIndex | BD59: =BD49-OSEastingOrigin -> 943352 | BF59: OSeastingIndex | BG59: =BG49-OSEastingOrigin -> 943352 | BI59: OSeastingIndex | BJ59: =BJ49-OSEastingOrigin -> 943352 | BL59: OSeastingIndex | BM59: =BM49-OSEastingOrigin -> 943352 | BO59: OSeastingIndex | BP59: =BP49-OSEastingOrigin -> 943352
A60: d3 | B60: =B39*(B56/(1-B45)+B55*(1-B45))*B50*B52 -> -74.38755908 | G60: Rm | H60: =H48*(1-H50)/((1-H50*H54^2)^1.5) -> 6374587.099 | J60: dx | K60: =$H$27-K59 -> 611995.1106 | M60: dx | N60: =$H$27-N59 -> -991.2723817 | P60: dx | Q60: =$H$27-Q59 -> -3264.54077 | S60: dx | T60: =$H$27-T59 -> -0.9308980581 | V60: dx | W60: =$H$27-W59 -> 39.24813677 | Y60: dx | Z60: =$H$27-Z59 -> 0.1362307302 | AB60: dx | AC60: =$H$27-AC59 -> -0.4381825391 | AE60: dx | AF60: =$H$27-AF59 -> -0.0002967263572 | AH60: dx | AI60: =$H$27-AI59 -> -2.008164302e-07 | AK60: dx | AL60: =$H$27-AL59 -> 0 | AN60: dx | AO60: =$H$27-AO59 -> 0 | AQ60: dx | AR60: =$H$27-AR59 -> 0 | AT60: dx | AU60: =$H$27-AU59 -> 0 | AW60: dx | AX60: =$H$27-AX59 -> 0 | AZ60: dx | BA60: =$H$27-BA59 -> 0 | BC60: dx | BD60: =$H$27-BD59 -> 0 | BF60: dx | BG60: =$H$27-BG59 -> 0 | BI60: dx | BJ60: =$H$27-BJ59 -> 0 | BL60: dx | BM60: =$H$27-BM59 -> 0 | BO60: dx | BP60: =$H$27-BP59 -> 0
J61: dy | K61: =$H$28-K58 -> 29193.77831 | M61: dy | N61: =$H$28-N58 -> -29578 | P61: dy | Q61: =$H$28-Q58 -> 12 | S61: dy | T61: =$H$28-T58 -> 359 | V61: dy | W61: =$H$28-W58 -> 1 | Y61: dy | Z61: =$H$28-Z58 -> -4 | AB61: dy | AC61: =$H$28-AC58 -> 0 | AE61: dy | AF61: =$H$28-AF58 -> 0 | AH61: dy | AI61: =$H$28-AI58 -> 0 | AK61: dy | AL61: =$H$28-AL58 -> 0 | AN61: dy | AO61: =$H$28-AO58 -> 0 | AQ61: dy | AR61: =$H$28-AR58 -> 0 | AT61: dy | AU61: =$H$28-AU58 -> 0 | AW61: dy | AX61: =$H$28-AX58 -> 0 | AZ61: dy | BA61: =$H$28-BA58 -> 0 | BC61: dy | BD61: =$H$28-BD58 -> 0 | BF61: dy | BG61: =$H$28-BG58 -> 0 | BI61: dy | BJ61: =$H$28-BJ58 -> 0 | BL61: dy | BM61: =$H$28-BM58 -> 0 | BO61: dy | BP61: =$H$28-BP58 -> 0
A62: dlat | B62: =(B58+B59+B60)/B56 -> -9.338185103e-06 | G62: d1 | H62: =((-H44*H54*H57-H45*H54*H55)+H46*H56) -> -19.55162621 | J62: LatArrayWork | K62: =H33+K61*H32 -> 52.26227576 | M62: LatArrayWork | N62: =K62+N61*$H$32 -> 51.99654817 | P62: LatArrayWork | Q62: =N62+Q61*$H$32 -> 51.99665597 | S62: LatArrayWork | T62: =Q62+T61*$H$32 -> 51.99988122 | V62: LatArrayWork | W62: =T62+W61*$H$32 -> 51.9998902 | Y62: LatArrayWork | Z62: =W62+Z61*$H$32 -> 51.99985426 | AB62: LatArrayWork | AC62: =Z62+AC61*$H$32 -> 51.99985426 | AE62: LatArrayWork | AF62: =AC62+AF61*$H$32 -> 51.99985426 | AH62: LatArrayWork | AI62: =AF62+AI61*$H$32 -> 51.99985426 | AK62: LatArrayWork | AL62: =AI62+AL61*$H$32 -> 51.99985426 | AN62: LatArrayWork | AO62: =AL62+AO61*$H$32 -> 51.99985426 | AQ62: LatArrayWork | AR62: =AO62+AR61*$H$32 -> 51.99985426 | AT62: LatArrayWork | AU62: =AR62+AU61*$H$32 -> 51.99985426 | AW62: LatArrayWork | AX62: =AU62+AX61*$H$32 -> 51.99985426 | AZ62: LatArrayWork | BA62: =AX62+BA61*$H$32 -> 51.99985426 | BC62: LatArrayWork | BD62: =BA62+BD61*$H$32 -> 51.99985426 | BF62: LatArrayWork | BG62: =BD62+BG61*$H$32 -> 51.99985426 | BI62: LatArrayWork | BJ62: =BG62+BJ61*$H$32 -> 51.99985426 | BL62: LatArrayWork | BM62: =BJ62+BM61*$H$32 -> 51.99985426 | BO62: LatArrayWork | BP62: =BM62+BP61*$H$32 -> 51.99985426
A63: LatArrayIndex | B63: =(B47+B62)/rad -> 51.50421496 | G63: d2 | H63: =H42*(H59*H50*H54*H56)/H48 -> 1.860155287 | J63: LongArrayWork | K63: =H34+K60*H32/COS(rad * K62) -> 5.983186528 | M63: LongArrayWork | N63: =K63+N60*$H$32/COS(rad * N62) -> 5.968722629 | P63: LongArrayWork | Q63: =N63+Q60*$H$32/COS(rad * Q62) -> 5.921088797 | S63: LongArrayWork | T63: =Q63+T60*$H$32/COS(rad * T62) -> 5.921075213 | V63: LongArrayWork | W63: =T63+W60*$H$32/COS(rad * W62) -> 5.921647935 | Y63: LongArrayWork | Z63: =W63+Z60*$H$32/COS(rad * Z62) -> 5.921649923 | AB63: LongArrayWork | AC63: =Z63+AC60*$H$32/COS(rad * AC62) -> 5.921643529 | AE63: LongArrayWork | AF63: =AC63+AF60*$H$32/COS(rad * AF62) -> 5.921643524 | AH63: LongArrayWork | AI63: =AF63+AI60*$H$32/COS(rad * AI62) -> 5.921643524 | AK63: LongArrayWork | AL63: =AI63+AL60*$H$32/COS(rad * AL62) -> 5.921643524 | AN63: LongArrayWork | AO63: =AL63+AO60*$H$32/COS(rad * AO62) -> 5.921643524 | AQ63: LongArrayWork | AR63: =AO63+AR60*$H$32/COS(rad * AR62) -> 5.921643524 | AT63: LongArrayWork | AU63: =AR63+AU60*$H$32/COS(rad * AU62) -> 5.921643524 | AW63: LongArrayWork | AX63: =AU63+AX60*$H$32/COS(rad * AX62) -> 5.921643524 | AZ63: LongArrayWork | BA63: =AX63+BA60*$H$32/COS(rad * BA62) -> 5.921643524 | BC63: LongArrayWork | BD63: =BA63+BD60*$H$32/COS(rad * BD62) -> 5.921643524 | BF63: LongArrayWork | BG63: =BD63+BG60*$H$32/COS(rad * BG62) -> 5.921643524 | BI63: LongArrayWork | BJ63: =BG63+BJ60*$H$32/COS(rad * BJ62) -> 5.921643524 | BL63: LongArrayWork | BM63: =BJ63+BM60*$H$32/COS(rad * BM62) -> 5.921643524 | BO63: LongArrayWork | BP63: =BM63+BP60*$H$32/COS(rad * BP62) -> 5.921643524
G64: d3 | H64: =H43*(H60/(1-H49)+H59*(1-H49))*H54*H56 -> 74.06989028
A65: dLon | B65: =(-B40*B51+B41*B53)/(B55*B52) -> 3.584148692e-05
A66: LongArrayIndex | B66: =(B48+B65)/rad -> 4.897970566 | G66: dlat | H66: =(H62+H63+H64)/H60 -> 8.844246454e-06
G67: Latitude | H67: =(H51+H66)/rad -> 52.000361
A69: LatArrayIndex | B69: =B63 -> 51.50421496 | G69: dLon | H69: =(-H44*H55+H45*H57)/(H59*H56) -> -3.789360389e-05
A70: LongArrayIndex | B70: =B66 -> 4.897970566 | G70: Longitude | H70: =(H52+H69)/rad -> 5.919472381
A72: LatArrayIndex | B72: =B69 -> 51.50421496
A73: LongArrayIndex | B73: =B70 -> 4.897970566
A77: Longi | B77: =rad*(B73-LongArrayOrigin) -> 0.1203922981
A78: Lati | B78: =rad*B72 -> 0.8989181297
A79: t | B79: =TAN(B78) -> 1.25736215
A80: tsq | B80: =B79*B79 -> 1.580959575
A81: L | B81: =B77*COS(B78) -> 0.0749390362
A82: Lsq | B82: =B81*B81 -> 0.005615859147
A83: etas | B83: =COS(B78) -> 0.6224570624
A84: etasc | B84: =B83*B83*ecc2sq -> 0.002601875184
A85: nu1 | B85: =SIN(B78) -> 0.78265395
A86: nu2 | B86: =SQRT(1-eccsc*B85*B85) -> 0.9979548985
A87: nu | B87: =MajorAxis/B86 -> 6390632.889
A89: A7 | B89: =(61-B80*(479-179*B80)+B84*(14-58*B80))/5040 -> -0.04942128016
A90: A5 | B90: =(5-B80*(18-B80)+B84*(14-58*B80))/120 -> -0.1763332798
A91: A3 | B91: =(1-B80+B84)/6 -> -0.09639294998
A92: A1 | B92: =TMScale*B87 -> 6388084.762
A93: OeastingIndex1 | B93: =B92*B81*(1+B82*(B91+B82*(B90+B89*B82))) -> 478455.1054
A96: M | B96: =INT(MajorAxis*(1-eccsc)*(PA*B78-0.5*PB*SIN(2*B78)+0.25*PC*SIN(4*B78))) -> 5707756
A97: A2 | B97: =INT(0.5*B92*B79) -> 4016067
A98: A4 | B98: =ROUND((5-B80+B84*(9+4*B84))/12,7) -> 0.2868737
A99: A6 | B99: =(61-B80*(58-B80)+B84*(270-330*B80))/360 -> -0.08014210419
A100: OSNorthingIndex1 | B100: =INT(TMScale*B96+B97*B82*(1+B82*(B98+B99*B82))) -> 5728070
A102: OSNorthingIndex | B102: =INT(B100)-OSNorthingOrigin -> 201007
A103: OSeastingIndex | B103: =B93-OSEastingOrigin -> 878455.1054
A106: sapceout | B106: 1
A107: digits | B107: 10
A111: MyOSRef_e1 | B111: =INT(1000000 +B103) -> 1878455
A112: MyOSRef_n1 | B112: =INT(B102 + 500000) -> 701007
A113: MyOSRef_I | B113: =INT(B111/500000) -> 3
A114: MyOSRef_j | B114: =INT(B112/500000) -> 1
A115: MyOSRef_L1 | B115: =MID("VWXYZQRSTULMNOPFGHJKABCDE",B113 + 1 +B114 * 5, 1) -> T
A116: MyOSRef_e2 | B116: =MOD(B111,500000) -> 378455
A117: MyOSRef_n2 | B117: =MOD(B112,500000) -> 201007
A118: MyOSRef_i | B118: =INT(B116/100000) -> 3
A119: MyOSRef_j | B119: =INT(B117/100000) -> 2
A120: MyOSRef_L2 | B120: =B115& MID("VWXYZQRSTULMNOPFGHJKABCDE",B119 * 5 +B118+ 1, 1) -> TO
A121: MyOSRef_e3 | B121: =MOD(B116,100000) -> 78455
A122: MyOSRef_n3 | B122: =MOD(B117,100000) -> 1007
A124: MyOSRef_d
A126: MyOSRef_L | B126: =B120& " "& TEXT(B121,"00000") & " " & TEXT(B122,"00000") -> TO 78455 01007
B128: =B120& LEFT(TEXT(B121,"00000"),3) & LEFT(TEXT(B122,"00000"),3) -> TO784010
A131: TMScale | B131: 0.9996012717
A132: MajorAxis | B132: 6377563.396
A133: MinorAxis | B133: 6356256.91
A136: Molod_Da | B136: 573.604
A137: Molod_Df | B137: 1.1960023e-05
A138: Molod_Dx | B138: 375
A139: Molod_Dy | B139: -111
A140: Molod_Dz | B140: 431
A142: molod_WGS84_a | B142: 6378137
A143: molod_WGS84_f | B143: 0.003352811

Sheet UTMConstants (hidden)
B2: Ellipsoid definition | C2: WGS84
B3: Semi major axis (a) (m) | C3: 6378137
B4: Inverse flattening (1/f) | C4: 298.2572236
B5: Flattening (f) | C5: =1/C4 -> 0.003352810665
B6: Semi-minor axis (b) (m) | C6: =C3*(1-C7) -> 6356752.314
B7: Flattening (f) | C7: =1/C4 -> 0.003352810665
B8: Eccentricity (e2) | C8: =(2*C7)-(C7*C7) -> 0.00669437999
B9: e | C9: =SQRT(C8) -> 0.08181919084
B10: Second eccentricity (e'2) | C10: =C8/(1-C8) -> 0.006739496742
B11: e' | C11: =SQRT(C10) -> 0.08209443795
B13: n | C13: =(C3-C6)/(C3+C6) -> 0.001679220386
B14: n**2 | C14: =C13*C13 -> 2.819781106e-06
B15: n**3 | C15: =C13*C14 -> 4.735033918e-09
B16: n**4 | C16: =C14*C14 -> 7.951165486e-12
B17: G | C17: =C3*(1-C13)*(1-C14)*(1+(9*C14)/4+(225*C16)/64)*PI()/180 -> 111132.9525
B19: TM definition | C19: WGS84
B20: False easting (m) | C20: 500000
B21: False northing (m) | C21: 10000000
B22: Central Scale factor (K0) | C22: 0.9996
B23: Zone width (degrees) | C23: 6
B24: Longitude of the central meridian of zone 1(degrees) | C24: -177
B25: Longitude of western edge of zone zero | C25: =C24-(1.5*C23) -> -186
B26: Central meridian of zone zero | C26: =C25+(C23/2) -> -183
B34: KEY
B35: User input

Sheet WGS842UTM (hidden)
B2: Site Name | H2: =UTMConstants!C19 -> WGS84 | L2: dec deg | M2: radians
F3: dec deg | G3: radians
B4: Latitude | C4: 52 | D4: 39 | E4: 10.1561 | F4: =IF(C4<0,-F5,IF(D4<0,-F5,IF(E4<0,-F5,F5))) -> 53.19697116 | G4: =(F4/180)*PI() -> 0.9284622988 | H4: Longitude | I4: 4 | J4: 55 | K4: 35.3839 | L4: =IF(I4<0,-L5,IF(J4<0,-L5,IF(K4<0,-L5,L5))) -> 5.791215403 | M4: =(L4/180)*PI() -> 0.1010757765
B5: Zone no. (real number) | C5: =(L4-UTMConstants!C25)/UTMConstants!C23 -> 31.96520257 | F5: =Calc!Q3 -> 53.19697116 | L5: =Calc!Q4 -> 5.791215403
B6: Central Meridian | C6: =(C7*UTMConstants!C23)+UTMConstants!C26 -> 3 | F6: =ABS(C4)+(ABS(D4)/60)+ABS(E4)/3600 -> 52.65282114 | H6: Diff longitude (w) | I6: =TRUNC(L6,0) -> 2 | J6: =TRUNC(((L6-I6)*60),0) -> 47 | K6: =((L6-I6)-(J6/60))*3600 -> 28.37545026 | L6: =L4-C6 -> 2.791215403 | M6: =(L6/180)*PI() -> 0.04871589891
B7: Zone | C7: =TRUNC(C5) -> 31 | F7: =C6 -> 3 | G7: =(F7/180)*PI() -> 0.05235987756 | L7: =ABS(I4)+(ABS(J4)/60)+ABS(K4)/3600 -> 4.926495528
B8: FUNCTIONS
B9: Sin latitude (sinj) | E9: =SIN(G4) -> 0.8006997035 | L9: A0 | M9: =1-(K10/4)-((3*K11)/64)-((5*K12)/256) -> 0.9983242985
B10: sin(2j) | E10: =SIN(2*G4) -> 0.9593438201 | H10: e2 | K10: =UTMConstants!C8 -> 0.00669437999 | L10: A2 | M10: =(3/8)*(K10+(K11/4)+((15*K12)/128)) -> 0.002514607061
B11: sin(4j) | E11: =SIN(4*G4) -> -0.5415304579 | H11: e4 | K11: =K10*K10 -> 4.481472345e-05 | L11: A4 | M11: =(15/256)*(K11+((3*K12)/4)) -> 2.639046594e-06
B12: sin(6j) | E12: =SIN(6*G4) -> -0.6536606743 | H12: e6 | K12: =K10*K11 -> 3.000067879e-07 | L12: A6 | M12: =(35*K12)/3072 -> 3.418046087e-09
B14: Meridian Distance | H14: Radii of Curvature
B15: 1st term | E15: =(UTMConstants!C3)*M9*G4 -> 5911936.472 | H15: Rho(r) | K15: =UTMConstants!C3*(1-K10)/(1-(K10*E9*E9))^1.5 -> 6376445.861
B16: 2nd term | E16: =-(UTMConstants!C3)*M10*E10 -> -15386.44385 | H16: Nu (n) | K16: =UTMConstants!C3/(1-(K10*E9*E9))^0.5 -> 6391868.382
B17: 3rd term | E17: =(UTMConstants!C3)*M11*E11 -> -9.115149368
B18: 4th term | E18: =-(UTMConstants!C3)*M12*E12 -> 0.01425030354
B19: sum (meridian dist) | E19: =E15+E16+E17+E18 -> 5896540.927
B21: Powers | E21: Cos latitude | H21: Diff long (w) | K21: Tan latitude | M21: Psi (y)= Nu/Rho
B22: 1 | E22: =COS(G4) -> 0.5990659269 | H22: =M6 -> 0.04871589891 | K22: =TAN(G4) -> 1.336580279 | M22: =K16/K15 -> 1.00241867
B23: 2 | E23: =E22*E22 -> 0.3588799848 | H23: =H22*H22 -> 0.002373238807 | K23: =K22*K22 -> 1.786446841 | M23: =M22*M22 -> 1.004843191
B24: 3 | E24: =E23*E22 -> 0.2149927707 | H24: =H23*H22 -> 0.0001156144618 | M24: =M22*M23 -> 1.007273576
B25: 4 | E25: =E23*E23 -> 0.1287948435 | H25: =H23*H23 -> 5.632262434e-06 | K25: =K23*K23 -> 3.191392316 | M25: =M23*M23 -> 1.009709838
B26: 5 | E26: =E24*E23 -> 0.0771566023 | H26: =H24*H23 -> 2.743807274e-07
B27: 6 | E27: =E24*E24 -> 0.04622189147 | H27: =H24*H24 -> 1.336670378e-08 | K27: =K23*K25 -> 5.701252723
B28: 7 | E28: =E27*E22 -> 0.02768996026 | H28: =H27*H22 -> 6.511709901e-10
B29: 8 | H29: =H25*H25 -> 3.172238013e-11
B31: Easting | I31: Northing
H32: Meridian Dist | K32: =E19 -> 5896540.927
B33: 1st term | E33: =K16*H22*E22 -> 186540.5115 | I33: 1st term | K33: =K16*E9*H23*E22/2 -> 3638.174754
B34: 2nd term | E34: =K16*H24*E24*(M22-K23)/6 -> -20.76080835 | I34: 2nd term | K34: =K16*E9*H25*E24*(4*M23+M22-K23)/24 -> 0.8354366674
B35: 3rd term | E35: =K16*H26*E26*(4*M24*(1-6*K23)+M23*(1+8*K23)-M22*(2*K23)+K25)/120 -> -0.02726875596 | I35: 3rd term | K35: =K16*E9*H27*E26*(8*M25*(11-24*K23)-28*M24*(1-6*K23)+M23*(1-32*K23)-M22*(2*K23)+K25)/720 -> -0.0002947046992
B36: 4th term | E36: =K16*H28*E28*(61-479*K23+179*K25-K27)/5040 -> -5.240040562e-06 | I36: 4th term | K36: =K16*E9*H29*E28*(1385-3111*K23+543*K25-K27)/40320 -> -2.726572113e-07
B37: Sum | E37: =SUM(E33:E36) -> 186519.7234 | I37: Sum | K37: =SUM(K32:K36) -> 5900179.937
B38: Sum*K0 | E38: =UTMConstants!C22*E37 -> 186445.1155 | I38: Sum*K0 | K38: =UTMConstants!C22*K37 -> 5897819.865
B39: False Origin | E39: =UTMConstants!C20 -> 500000 | I39: False Origin | K39: =UTMConstants!C21 -> 10000000
B40: Easting | E40: =E38+E39 -> 686445.1155 | I40: Northing | K40: =K38+K39 -> 15897819.86
B41: Grid Convergence | I41: Point Scale
B42: 1st term | C42: =TRUNC(F42) -> -2 | D42: =TRUNC((F42-C42)*60) -> -14 | E42: =(F42-C42-(D42/60))*3600 -> -5.731243813 | F42: =(G42/PI())*180 -> -2.234925346 | G42: =-E9*H22 -> -0.03900680582 | I42: 1st term | K42: =1+(H23*E23*M22)/2 -> 1.000426884
B43: 2nd term | C43: =TRUNC(F43) -> 0 | D43: =TRUNC((F43-C43)*60) -> 0 | E43: =(F43-C43-(D43/60))*3600 -> -2.300805243 | F43: =(G43/PI())*180 -> -0.0006391125676 | G43: =-E9*H24*E23*(2*M23-M22)/3 -> -1.11546186e-05 | I43: 2nd term | K43: =H25*E25*(4*M24*(1-6*K23)+M23*(1+24*K23)-4*M22*K23)/24 -> -6.750314949e-08
B44: 3rd term | C44: =TRUNC(F44) -> 0 | D44: =TRUNC((F44-C44)*60) -> 0 | E44: =(F44-C44-(D44/60))*3600 -> -7.186661501e-05 | F44: =(G44/PI())*180 -> -1.996294861e-08 | G44: =-E9*H26*E25*(M25*(11-24*K23)-M24*(11-36*K23)+2*M23*(1-7*K23)+M22*K23)/15 -> -3.484191817e-10 | I44: 3rd term | K44: =H27*E27*(61-148*K23+16*K25)/720 -> -1.307164584e-10
B45: 4th term | C45: =TRUNC(F45) -> 0 | D45: =TRUNC((F45-C45)*60) -> 0 | E45: =(F45-C45-(D45/60))*3600 -> -3.639798351e-07 | F45: =(G45/PI())*180 -> -1.011055097e-10 | G45: =E9*H28*E27*(17-26*K23+2*K25)/315 -> -1.764624037e-12 | I45: Sum | K45: =SUM(K42:K44) -> 1.000426816
B46: Grid Convergence | C46: =TRUNC(F46) -> -2 | D46: =TRUNC((F46-C46)*60) -> -14 | E46: =(F46-C46-(D46/60))*3600 -> -8.032121286 | F46: =(G46/PI())*180 -> -2.235564478 | G46: =SUM(G42:G45) -> -0.03901796078 | I46: Point Scale | K46: =UTMConstants!C22*K45 -> 1.000026646
K49: KEY
K50: User input
K51: Result

Sheet UTM2WGS84 (hidden)
B2: Station Name | L2: =UTMConstants!C19 -> WGS84
B3: Zone | E3: =Calc!Q7 -> 31
B4: Easting | E4: =Calc!Q8 -> 649333.28 | L4: Northing | O4: =Calc!Q9 -> 15818927.03
B5: False Origin | E5: =UTMConstants!C20 -> 500000 | K5: False origin | L5: =UTMConstants!C21 -> 10000000
B6: E' | E6: =E4-E5 -> 149333.28 | K6: N' | L6: =O4-L5 -> 5818927.034
B7: E'/K0 | E7: =E6/UTMConstants!C22 -> 149393.0373 | K7: m = N'/K0 | L7: =L6/UTMConstants!C22 -> 5821255.536
K9: sigma | L9: =(L7*PI())/(UTMConstants!C17*180) -> 0.9142209703
K10: 2 sigma | L10: =L9*2 -> 1.828441941
K11: 4 sigma | L11: =L9*4 -> 3.656883881
K12: 6 sigma | L12: =L9*6 -> 5.485325822
K13: 8 sigma | L13: =L9*8 -> 7.313767762
B15: Foot Point latitude | C15: deg | D15: min | E15: sec | F15: dec deg | G15: radians | K15: Radii of curvature
B16: Term 1 | C16: =TRUNC(F16) -> 52 | D16: =TRUNC((F16-C16)*60) -> 22 | E16: =(F16-C16-(D16/60))*3600 -> 51.61130037 | F16: =(G16/PI())*180 -> 52.38100314 | G16: =L9 -> 0.9142209703 | K16: Rho' (r') | L16: =UTMConstants!C3*(1-UTMConstants!C8)/(1-UTMConstants!C8*UTM2WGS84!G23*UTM2WGS84!G23)^1.5 -> 6375715.052
B17: Term 2 | C17: 0 | D17: 8 | E17: 22.39642099 | F17: 0.1395545614 | G17: =((3*UTMConstants!C13/2)-(27*UTMConstants!C15/32))*SIN(L10) -> 0.002435686582 | K17: Nu' (n') | L17: =UTMConstants!C3/(1-UTMConstants!C8*UTM2WGS84!G23*UTM2WGS84!G23)^0.5 -> 6391624.181
B18: Term 3 | C18: 0 | D18: 0 | E18: -0.3761825183 | F18: -0.000104495144 | G18: =((21*UTMConstants!C14/16)-(55*UTMConstants!C16/32))*SIN(L11) -> -1.823784315e-06
B19: Term 4 | C19: 0 | D19: 0 | E19: -0.001099724604 | F19: -3.054790566e-07 | G19: =(151*UTMConstants!C15)*SIN(L12)/96 -> -5.331615334e-09
B20: Term 5 | C20: 0 | D20: 0 | E20: 3.013538245e-06 | F20: 8.37093957e-10 | G20: =1097*UTMConstants!C16*SIN(L13)/512 -> 1.46100457e-11
B21: Lat' | C21: 52 | D21: 31 | E21: 13.63044213 | F21: 52.5204529 | G21: =SUM(G16:G20) -> 0.9166548278
B23: sin(j') | G23: =SIN(G21) -> 0.7935705996
B24: sec(j') | G24: =1/COS(G21) -> 1.643444288
B25: t'/(k0n'r') | G25: =J28/(UTMConstants!C22*UTM2WGS84!L17) -> 2.041282335e-07
F27: Powers | G27: n | H27: x = E'/(k0n') | I27: E'2/(k02n'r') | J27: t'=tanj' | K27: y'=n'/r'
F28: 1 | G28: =UTMConstants!C13 -> 0.001679220386 | H28: =E7/L17 -> 0.02337325115 | I28: =(E7*E7)/(L16*L17) -> 0.0005476720575 | J28: =TAN(G21) -> 1.304189069 | K28: =L17/L16 -> 1.00249527
F29: 2 | G29: =G28*G28 -> 2.819781106e-06 | H29: =H28*H28 -> 0.0005463088695 | I29: =I28*I28 -> 2.999446825e-07 | J29: =J28*J28 -> 1.700909128 | K29: =K28*K28 -> 1.004996766
F30: 3 | G30: =G28*G29 -> 4.735033918e-09 | H30: =H28*H29 -> 1.276901441e-05 | I30: =I28*I29 -> 1.642713214e-10 | J30: =J28*J29 -> 2.218307092 | K30: =K29*K28 -> 1.007504504
F31: 4 | G31: =G29*G29 -> 7.951165486e-12 | H31: =H29*H29 -> 2.984533809e-07 | J31: =J29*J29 -> 2.893091861 | K31: =K29*K29 -> 1.010018499
F32: 5 | H32: =H31*H28 -> 6.975825829e-09 | J32: =J31*J28 -> 3.77313878
F33: 6 | H33: =H30*H30 -> 1.630477291e-10 | J33: =J30*J30 -> 4.920886353
F34: 7 | H34: =H28*H33 -> 3.810955522e-12
B36: Latitude | C36: Deg | D36: Min | E36: Secs | F36: Dec Deg | G36: Radians | L36: Longitude | M36: Deg | N36: Min | O36: Secs | P36: Dec Deg | Q36: Radians
B37: Foot point latitude | C37: =TRUNC(F37) -> 52 | D37: =TRUNC((F37-C37)*60) -> 31 | E37: =(F37-C37-(D37/60))*3600 -> 13.63044213 | F37: =(G37/PI())*180 -> 52.5204529 | G37: =G21 -> 0.9166548278 | L37: Central meridian | M37: =TRUNC(P37) -> 3 | N37: =TRUNC((P37-M37)*60) -> 0 | O37: =(P37-M37-(N37/60))*3600 -> 0 | P37: =(E3*UTMConstants!C23)+UTMConstants!C24-UTMConstants!C23 -> 3 | Q37: =(P37/180)*PI() -> 0.05235987756
B38: 1st term | C38: 0 | D38: -1 | E38: -13.66416611 | F38: -0.02046226836 | G38: =-((J28/(UTMConstants!C22*L16))*H28*E6/2) -> -0.0003571339554 | L38: 1st term | M38: 2 | N38: =TRUNC((P38-M38)*60) -> 12 | O38: =(P38-M38-(N38/60))*3600 -> 3.174942466 | P38: =(Q38/PI())*180 -> 2.200881928 | Q38: =G24*H28 -> 0.0384126361
B39: 2nd term | C39: 0 | D39: 0 | E39: 0.03376084734 | F39: 9.378013151e-06 | G39: =(J28/(UTMConstants!C22*L16))*(H30*E6/24)*(-4*K29+9*K28*(1-J29)+12*J29) -> 1.636772068e-07 | L39: 2nd term | M39: 0 | N39: =TRUNC((P39-M39)*60) -> 0 | O39: =(P39-M39-(N39/60))*3600 -> -3.177345729 | P39: =(Q39/PI())*180 -> -0.000882596036 | Q39: =-G24*(H30/6)*(K28+2*J29) -> -1.540420679e-05
B40: 3rd term | C40: 0 | D40: 0 | E40: -2.092695943e-05 | F40: -5.813044287e-09 | G40: =-(J28/(UTMConstants!C22*L16))*(H32*E6/720)*(8*K31*(11-24*J29)-12*K30*(21-71*J29)+15*K29*(15-98*J29+15*J31)+180*K28*(5*J29-3*J31)+360*J31) -> -1.014567624e-10 | L40: 3rd term | M40: 0 | N40: =TRUNC((P40-M40)*60) -> 0 | O40: =(P40-M40-(N40/60))*3600 -> 0.002406250235 | P40: =(Q40/PI())*180 -> 6.684028432e-07 | Q40: =G24*(H32/120)*(-4*K30*(1-6*J29)+K29*(9-68*J29)+72*K28*J29+24*J31) -> 1.166583034e-08
B41: 4th term | C41: 0 | D41: 0 | E41: 1.618238051e-08 | F41: 4.495105697e-12 | G41: =(J28/(UTMConstants!C22*L16))*(H34*E6/40320)*(1385+3633*J29+4095*J31+1575*J33) -> 7.845439464e-14 | L41: 4th term | M41: 0 | N41: =TRUNC((P41-M41)*60) -> 0 | O41: =(P41-M41-(N41/60))*3600 -> -2.191264388e-06 | P41: =(Q41/PI())*180 -> -6.086845523e-10 | Q41: =-G24*(H34/5040)*(61+662*J29+1320*J31+720*J33) -> -1.062354954e-11
B42: Latitude | C42: 52 | D42: 30 | E42: 1.595774393e-05 | F42: 52.5 | G42: =SUM(G37:G41) -> 0.9162978574 | L42: Longitude | M42: 5 | N42: =ABS(TRUNC((P42-M42)*60)) -> 12 | O42: =ABS((P42-M42-(N42/60))*3600) -> 7.959942705e-07 | P42: =(Q42/PI())*180 -> 5.2 | Q42: =SUM(Q37:Q41) -> 0.09075712111
B43: Grid Convergence | C43: Deg | D43: Min | E43: Secs | F43: Dec Deg | G43: Radians | L43: Point Scale
B44: 1st term | C44: =TRUNC(F44) -> -1 | D44: =TRUNC((F44-C44)*60) -> -44 | E44: =(F44-C44-(D44/60))*3600 -> -47.59868971 | F44: =(G44/PI())*180 -> -1.746555192 | G44: =-J28*H28 -> -0.03048313866 | L44: 1st term | Q44: =1+I28/2 -> 1.000273836
B45: 2nd term | C45: =TRUNC(F45) -> 0 | D45: =TRUNC((F45-C45)*60) -> 0 | E45: =(F45-C45-(D45/60))*3600 -> 3.089643463 | F45: =(G45/PI())*180 -> 0.0008582342953 | G45: =(J28*H30/3)*(-2*K29+3*K28+J29) -> 1.497901421e-05 | L45: 2nd term | Q45: =(I29/24)*(4*K28*(1-6*J29)-3*(1-16*J29)-24*J29/K28) -> 1.261926693e-08
B46: 3rd term | C46: =TRUNC(F46) -> 0 | D46: =TRUNC((F46-C46)*60) -> 0 | E46: =(F46-C46-(D46/60))*3600 -> -0.002401119475 | F46: =(G46/PI())*180 -> -6.669776319e-07 | G46: =-(J28*H32/15)*(K31*(11-24*J29)-3*K30*(8-23*J29)+5*K29*(3-14*J29)+30*K28*J29+3*J31) -> -1.164095571e-08 | L46: 3rd term | Q46: =I30/720 -> 2.28154613e-13
B47: 4th term | C47: =TRUNC(F47) -> 0 | D47: =TRUNC((F47-C47)*60) -> 0 | E47: =(F47-C47-(D47/60))*3600 -> 2.190902976e-06 | F47: =(G47/PI())*180 -> 6.085841599e-10 | G47: =(J28*H34/315)*(17+77*J29+105*J31+45*J33) -> 1.062179737e-11 | L47: sum | Q47: =SUM(Q44:Q46) -> 1.000273849
B48: Grid Convergence | C48: =TRUNC(F48) -> -1 | D48: =TRUNC((F48-C48)*60) -> -44 | E48: =(F48-C48-(D48/60))*3600 -> -44.51144517 | F48: =(G48/PI())*180 -> -1.745697624 | G48: =SUM(G44:G47) -> -0.03046817128 | L48: Point Scale | O48: =Q48 -> 0.9998737391 | Q48: =Q47*UTMConstants!C22 -> 0.9998737391
O51: KEY
O52: User input
O53: Result
